Workbook

Sheet Notes
B1: Welcome to the Kansas State University Farm Management Guides for Pork Enterprises
B2: Last Updated Date: | D2: 2015-12-01
B3: The Kansas State University cost-return budgets were developed to serve as a barometer of profitability for various livestock industry enterprises.
B4: These budgets are NOT intended to represent any one operation.
B5: Each individual operation should adjust key inputs to reflect their own situation.
B6: Any number that is blue and bolded is an input the user can adjust.
B8: This spreadsheet is brought to you by:
B15: AND

Sheet Prices
A1: ='[1]Master Prices'!A1 -> Current Prices | H1: ='[1]Master Prices'!H1 -> 0
A2: ='[1]Master Prices'!A2 -> One Year Out Prices | H2: ='[1]Master Prices'!H2 -> 0
A3: ='[1]Master Prices'!A3 -> Five Years Out Prices | H3: ='[1]Master Prices'!H3 -> 0
B4: ='[1]Master Prices'!B4 -> Current Prices | C4: ='[1]Master Prices'!C4 -> 0 | D4: ='[1]Master Prices'!D4 -> One Year Out Prices | E4: ='[1]Master Prices'!E4 -> 0 | F4: ='[1]Master Prices'!F4 -> 0 | G4: ='[1]Master Prices'!G4 -> Five Years Out Prices | H4: ='[1]Master Prices'!H4 -> 0
B5: (as of December 1, 2015) | C5: ='[1]Master Prices'!C5 -> 0 | D5: (as of December 1, 2015) | E5: ='[1]Master Prices'!E5 -> 0 | F5: ='[1]Master Prices'!F5 -> 0 | G5: (Nov. 2014 USDA) | H5: ='[1]Master Prices'!H5 -> 0
A6: ='[1]Master Prices'!#REF! ->  | B6: ='[1]Master Prices'!#REF! ->  | C6: ='[1]Master Prices'!#REF! ->  | D6: ='[1]Master Prices'!#REF! ->  | E6: ='[1]Master Prices'!#REF! ->  | F6: ='[1]Master Prices'!#REF! ->  | G6: ='[1]Master Prices'!#REF! ->  | H6: ='[1]Master Prices'!#REF! -> 
A7: ='[1]Master Prices'!#REF! ->  | B7: ='[1]Master Prices'!#REF! ->  | C7: ='[1]Master Prices'!#REF! ->  | D7: ='[1]Master Prices'!#REF! ->  | E7: ='[1]Master Prices'!#REF! ->  | F7: ='[1]Master Prices'!#REF! ->  | G7: ='[1]Master Prices'!#REF! ->  | H7: ='[1]Master Prices'!#REF! -> 
A8: ='[1]Master Prices'!#REF! ->  | B8: ='[1]Master Prices'!#REF! ->  | C8: ='[1]Master Prices'!#REF! ->  | D8: ='[1]Master Prices'!#REF! ->  | E8: ='[1]Master Prices'!#REF! ->  | F8: ='[1]Master Prices'!#REF! ->  | G8: ='[1]Master Prices'!#REF! ->  | H8: ='[1]Master Prices'!#REF! -> 
A9: ='[1]Master Prices'!#REF! ->  | B9: ='[1]Master Prices'!#REF! ->  | C9: ='[1]Master Prices'!#REF! ->  | D9: ='[1]Master Prices'!#REF! ->  | E9: ='[1]Master Prices'!#REF! ->  | F9: ='[1]Master Prices'!#REF! ->  | G9: ='[1]Master Prices'!#REF! ->  | H9: ='[1]Master Prices'!#REF! -> 
A10: ='[1]Master Prices'!#REF! ->  | B10: ='[1]Master Prices'!#REF! ->  | C10: ='[1]Master Prices'!#REF! ->  | D10: ='[1]Master Prices'!#REF! ->  | E10: ='[1]Master Prices'!#REF! ->  | F10: ='[1]Master Prices'!#REF! ->  | G10: ='[1]Master Prices'!#REF! ->  | H10: ='[1]Master Prices'!#REF! -> 
A11: ='[1]Master Prices'!#REF! ->  | B11: ='[1]Master Prices'!#REF! ->  | C11: ='[1]Master Prices'!#REF! ->  | D11: ='[1]Master Prices'!#REF! ->  | E11: ='[1]Master Prices'!#REF! ->  | F11: ='[1]Master Prices'!#REF! ->  | G11: ='[1]Master Prices'!#REF! ->  | H11: ='[1]Master Prices'!#REF! -> 
A12: ='[1]Master Prices'!#REF! ->  | B12: ='[1]Master Prices'!#REF! ->  | C12: ='[1]Master Prices'!#REF! ->  | D12: ='[1]Master Prices'!#REF! ->  | E12: ='[1]Master Prices'!#REF! ->  | F12: ='[1]Master Prices'!#REF! ->  | G12: ='[1]Master Prices'!#REF! ->  | H12: ='[1]Master Prices'!#REF! -> 
A13: ='[1]Master Prices'!#REF! ->  | B13: ='[1]Master Prices'!#REF! ->  | C13: ='[1]Master Prices'!#REF! ->  | D13: ='[1]Master Prices'!#REF! ->  | E13: ='[1]Master Prices'!#REF! ->  | F13: ='[1]Master Prices'!#REF! ->  | G13: ='[1]Master Prices'!#REF! ->  | H13: ='[1]Master Prices'!#REF! -> 
A14: ='[1]Master Prices'!A6 -> Market Hogs ($/cwt) | B14: 40.36 | C14: ='[1]Master Prices'!C6 -> 0 | D14: 42.8575 | E14: ='[1]Master Prices'!E6 -> 0 | F14: ='[1]Master Prices'!F6 -> 0 | G14: 52.07 | H14: ='[1]Master Prices'!H6 -> 0
A15: ='[1]Master Prices'!A7 -> Weaned Pig ($/hd) | B15: 37.15 | C15: ='[1]Master Prices'!C7 -> 0 | D15: 53.42222799 | E15: ='[1]Master Prices'!E7 -> 0 | F15: ='[1]Master Prices'!F7 -> 0 | G15: 57.27946765 | H15: ='[1]Master Prices'!H7 -> 0
A16: ='[1]Master Prices'!A8 -> Feeder Pig ($/hd) | B16: 46.7 | C16: ='[1]Master Prices'!C8 -> 0 | D16: 64.62344395 | E16: ='[1]Master Prices'!E8 -> 0 | F16: ='[1]Master Prices'!F8 -> 0 | G16: 78.20301786 | H16: ='[1]Master Prices'!H8 -> 0
A17: ='[1]Master Prices'!A9 -> Cull Sows ($/cwt) | B17: 41.83 | C17: ='[1]Master Prices'!C9 -> 0 | D17: 44.41846444 | E17: ='[1]Master Prices'!E9 -> 0 | F17: ='[1]Master Prices'!F9 -> 0 | G17: 53.96650396 | H17: ='[1]Master Prices'!H9 -> 0
A18: ='[1]Master Prices'!A10 -> Replacement Gilts ($/hd) | B18: 185.99 | C18: ='[1]Master Prices'!C10 -> 0 | D18: 197.4991681 | E18: ='[1]Master Prices'!E10 -> 0 | F18: ='[1]Master Prices'!F10 -> 0 | G18: 239.9529063 | H18: ='[1]Master Prices'!H10 -> 0
A19: ='[1]Master Prices'!#REF! ->  | B19: ='[1]Master Prices'!#REF! ->  | C19: ='[1]Master Prices'!#REF! ->  | D19: ='[1]Master Prices'!#REF! ->  | E19: ='[1]Master Prices'!#REF! ->  | F19: ='[1]Master Prices'!#REF! ->  | G19: ='[1]Master Prices'!#REF! ->  | H19: ='[1]Master Prices'!#REF! -> 
A20: ='[1]Master Prices'!#REF! ->  | B20: ='[1]Master Prices'!#REF! ->  | C20: ='[1]Master Prices'!#REF! ->  | D20: ='[1]Master Prices'!#REF! ->  | E20: ='[1]Master Prices'!#REF! ->  | F20: ='[1]Master Prices'!#REF! ->  | G20: ='[1]Master Prices'!#REF! ->  | H20: ='[1]Master Prices'!#REF! -> 
A21: ='[1]Master Prices'!#REF! ->  | B21: ='[1]Master Prices'!#REF! ->  | C21: ='[1]Master Prices'!#REF! ->  | D21: ='[1]Master Prices'!#REF! ->  | E21: ='[1]Master Prices'!#REF! ->  | F21: ='[1]Master Prices'!#REF! ->  | G21: ='[1]Master Prices'!#REF! ->  | H21: ='[1]Master Prices'!#REF! -> 
A22: ='[1]Master Prices'!#REF! ->  | B22: ='[1]Master Prices'!#REF! ->  | C22: ='[1]Master Prices'!#REF! ->  | D22: ='[1]Master Prices'!#REF! ->  | E22: ='[1]Master Prices'!#REF! ->  | F22: ='[1]Master Prices'!#REF! ->  | G22: ='[1]Master Prices'!#REF! ->  | H22: ='[1]Master Prices'!#REF! -> 
A23: ='[1]Master Prices'!#REF! ->  | B23: ='[1]Master Prices'!#REF! ->  | C23: ='[1]Master Prices'!#REF! ->  | D23: ='[1]Master Prices'!#REF! ->  | E23: ='[1]Master Prices'!#REF! ->  | F23: ='[1]Master Prices'!#REF! ->  | G23: ='[1]Master Prices'!#REF! ->  | H23: ='[1]Master Prices'!#REF! -> 
A24: ='[1]Master Prices'!#REF! ->  | B24: ='[1]Master Prices'!#REF! ->  | C24: ='[1]Master Prices'!#REF! ->  | D24: ='[1]Master Prices'!#REF! ->  | E24: ='[1]Master Prices'!#REF! ->  | F24: ='[1]Master Prices'!#REF! ->  | G24: ='[1]Master Prices'!#REF! ->  | H24: ='[1]Master Prices'!#REF! -> 
A25: ='[1]Master Prices'!#REF! ->  | B25: ='[1]Master Prices'!#REF! ->  | C25: ='[1]Master Prices'!#REF! ->  | D25: ='[1]Master Prices'!#REF! ->  | E25: ='[1]Master Prices'!#REF! ->  | F25: ='[1]Master Prices'!#REF! ->  | G25: ='[1]Master Prices'!#REF! ->  | H25: ='[1]Master Prices'!#REF! -> 
A26: ='[1]Master Prices'!#REF! ->  | B26: ='[1]Master Prices'!#REF! ->  | C26: ='[1]Master Prices'!#REF! ->  | D26: ='[1]Master Prices'!#REF! ->  | E26: ='[1]Master Prices'!#REF! ->  | F26: ='[1]Master Prices'!#REF! ->  | G26: ='[1]Master Prices'!#REF! ->  | H26: ='[1]Master Prices'!#REF! -> 
A27: ='[1]Master Prices'!#REF! ->  | B27: ='[1]Master Prices'!#REF! ->  | C27: ='[1]Master Prices'!#REF! ->  | D27: ='[1]Master Prices'!#REF! ->  | E27: ='[1]Master Prices'!#REF! ->  | F27: ='[1]Master Prices'!#REF! ->  | G27: ='[1]Master Prices'!#REF! ->  | H27: ='[1]Master Prices'!#REF! -> 
A28: ='[1]Master Prices'!#REF! ->  | B28: ='[1]Master Prices'!#REF! ->  | C28: ='[1]Master Prices'!#REF! ->  | D28: ='[1]Master Prices'!#REF! ->  | E28: ='[1]Master Prices'!#REF! ->  | F28: ='[1]Master Prices'!#REF! ->  | G28: ='[1]Master Prices'!#REF! ->  | H28: ='[1]Master Prices'!#REF! -> 
H29: ='[1]Master Prices'!H25 -> 0
A30: ='[1]Master Prices'!A38 -> Swine Feed processing ($/ton) charge | B30: 17 | C30: ='[1]Master Prices'!C38 -> 0 | D30: 17 | E30: ='[1]Master Prices'!E38 -> 0 | F30: ='[1]Master Prices'!F38 -> 0 | G30: 17 | H30: ='[1]Master Prices'!H38 -> 0
A31: ='[1]Master Prices'!A26 -> Corn ($/bu) | B31: 3.77 | C31: ='[1]Master Prices'!C26 -> 0 | D31: 4.066 | E31: ='[1]Master Prices'!E26 -> 0 | F31: ='[1]Master Prices'!F26 -> 0 | G31: 3.55 | H31: ='[1]Master Prices'!H26 -> 0
A32: ='[1]Master Prices'!A28 -> Soybean Meal ($/ton) | B32: 281.6 | C32: ='[1]Master Prices'!C28 -> 0 | D32: 291.7 | E32: ='[1]Master Prices'!E28 -> 0 | F32: ='[1]Master Prices'!F28 -> 0 | G32: 326 | H32: ='[1]Master Prices'!H28 -> 0
A33: ='[1]Master Prices'!A29 -> DDGS ($/ton) | B33: 147.5 | C33: ='[1]Master Prices'!C29 -> 0 | D33: 159.0809019 | E33: ='[1]Master Prices'!E29 -> 0 | F33: ='[1]Master Prices'!F29 -> 0 | G33: 138.8925729 | H33: ='[1]Master Prices'!H29 -> 0
A34: ='[1]Master Prices'!A39 -> Other Feed Ingredients ($/lb, Farrow-Finish) | B34: 0.448964035 | C34: ='[1]Master Prices'!C39 -> 0 | D34: 0.4534536754 | E34: ='[1]Master Prices'!E39 -> 0 | F34: ='[1]Master Prices'!F39 -> 0 | G34: 0.4579433157 | H34: ='[1]Master Prices'!H39 -> 0
A35: ='[1]Master Prices'!A40 -> Other Feed Ingredients ($/lb, Farrow-Wean) | B35: 0.3483308499 | C35: ='[1]Master Prices'!C40 -> 0 | D35: 0.3518141584 | E35: ='[1]Master Prices'!E40 -> 0 | F35: ='[1]Master Prices'!F40 -> 0 | G35: 0.3552974669 | H35: ='[1]Master Prices'!H40 -> 0
A36: ='[1]Master Prices'!A41 -> Other Feed Ingredients ($/lb, Wean-Finish) | B36: 0.4721745618 | C36: ='[1]Master Prices'!C41 -> 0 | D36: 0.4768963074 | E36: ='[1]Master Prices'!E41 -> 0 | F36: ='[1]Master Prices'!F41 -> 0 | G36: 0.481618053 | H36: ='[1]Master Prices'!H41 -> 0
A37: ='[1]Master Prices'!A42 -> Other Feed Ingredients ($/lb, Nursery) | B37: 0.5896838294 | C37: ='[1]Master Prices'!C42 -> 0 | D37: 0.5955806677 | E37: ='[1]Master Prices'!E42 -> 0 | F37: ='[1]Master Prices'!F42 -> 0 | G37: 0.601477506 | H37: ='[1]Master Prices'!H42 -> 0
A38: ='[1]Master Prices'!A43 -> Other Feed Ingredients ($/lb, Finish) | B38: 0.4144807044 | C38: ='[1]Master Prices'!C43 -> 0 | D38: 0.4186255115 | E38: ='[1]Master Prices'!E43 -> 0 | F38: ='[1]Master Prices'!F43 -> 0 | G38: 0.4227703185 | H38: ='[1]Master Prices'!H43 -> 0
A40: ='[1]Master Prices'!A45 -> Hide from here down when published | B40: ='[1]Master Prices'!B45 -> 0 | C40: ='[1]Master Prices'!C45 -> 0 | D40: ='[1]Master Prices'!D45 -> 0 | E40: ='[1]Master Prices'!E45 -> 0 | F40: ='[1]Master Prices'!F45 -> 0 | G40: ='[1]Master Prices'!G45 -> 0 | H40: ='[1]Master Prices'!H45 -> 0 | I40: ='[1]Master Prices'!I45 -> 0
A41: ='[1]Master Prices'!A46 -> Corn, Yellow Dent | B41: ='[1]Master Prices'!B46 -> 0.06330357143 | C41: ='[1]Master Prices'!C46 -> USDA St. Joseph, MO SJ_GR851 Report (http://www.ams.usda.gov/mnreports/sj_gr851.txt) | D41: ='[1]Master Prices'!D46 -> 0.06393660714 | E41: ='[1]Master Prices'!E46 -> 0 | F41: ='[1]Master Prices'!F46 -> 0 | G41: ='[1]Master Prices'!G46 -> 0.06456964286 | H41: ='[1]Master Prices'!H46 -> http://www.usda.gov/oce/commodity/projections/ | I41: ='[1]Master Prices'!I46 -> $/lb
A42: ='[1]Master Prices'!A47 -> Corn, Nutridense | B42: ='[1]Master Prices'!B47 -> 0 | C42: ='[1]Master Prices'!C47 -> USDA St. Joseph, MO SJ_GR210 Report (http://www.ams.usda.gov/mnreports/sj_gr210.txt) | D42: ='[1]Master Prices'!D47 -> 0 | E42: ='[1]Master Prices'!E47 -> 0 | F42: ='[1]Master Prices'!F47 -> 0 | G42: ='[1]Master Prices'!G47 -> 0 | H42: ='[1]Master Prices'!H47 -> 0 | I42: ='[1]Master Prices'!I47 -> $/lb
A43: ='[1]Master Prices'!A48 -> Corn Bran | B43: ='[1]Master Prices'!B48 -> 0 | C43: ='[1]Master Prices'!C48 -> USDA St. Joseph, MO NW_GR112 Report (http://www.ams.usda.gov/mnreports/nw_gr112.txt) | D43: ='[1]Master Prices'!D48 -> 0 | E43: ='[1]Master Prices'!E48 -> 0 | F43: ='[1]Master Prices'!F48 -> 0 | G43: ='[1]Master Prices'!G48 -> 0 | H43: ='[1]Master Prices'!H48 -> 0 | I43: ='[1]Master Prices'!I48 -> $/lb
A44: ='[1]Master Prices'!A49 -> Corn DDG | B44: ='[1]Master Prices'!B49 -> 0 | C44: ='[1]Master Prices'!C49 -> 0 | D44: ='[1]Master Prices'!D49 -> 0 | E44: ='[1]Master Prices'!E49 -> 0 | F44: ='[1]Master Prices'!F49 -> 0 | G44: ='[1]Master Prices'!G49 -> 0 | H44: ='[1]Master Prices'!H49 -> 0 | I44: ='[1]Master Prices'!I49 -> $/lb
A45: ='[1]Master Prices'!A50 -> Corn DDGS, >10% Oil | B45: ='[1]Master Prices'!B50 -> 0 | C45: ='[1]Master Prices'!C50 -> 0 | D45: ='[1]Master Prices'!D50 -> 0 | E45: ='[1]Master Prices'!E50 -> 0 | F45: ='[1]Master Prices'!F50 -> 0 | G45: ='[1]Master Prices'!G50 -> 0 | H45: ='[1]Master Prices'!H50 -> 0 | I45: ='[1]Master Prices'!I50 -> $/lb
A46: ='[1]Master Prices'!A51 -> Corn DDGS, >6 and <9% Oil | B46: ='[1]Master Prices'!B51 -> 0 | C46: ='[1]Master Prices'!C51 -> 0 | D46: ='[1]Master Prices'!D51 -> 0 | E46: ='[1]Master Prices'!E51 -> 0 | F46: ='[1]Master Prices'!F51 -> 0 | G46: ='[1]Master Prices'!G51 -> 0 | H46: ='[1]Master Prices'!H51 -> 0 | I46: ='[1]Master Prices'!I51 -> $/lb
A47: ='[1]Master Prices'!A52 -> Corn DDGS, <4% Oil | B47: ='[1]Master Prices'!B52 -> 0 | C47: ='[1]Master Prices'!C52 -> 0 | D47: ='[1]Master Prices'!D52 -> 0 | E47: ='[1]Master Prices'!E52 -> 0 | F47: ='[1]Master Prices'!F52 -> 0 | G47: ='[1]Master Prices'!G52 -> 0 | H47: ='[1]Master Prices'!H52 -> 0 | I47: ='[1]Master Prices'!I52 -> $/lb
A48: ='[1]Master Prices'!A53 -> Corn HP DDG | B48: ='[1]Master Prices'!B53 -> 0 | C48: ='[1]Master Prices'!C53 -> 0 | D48: ='[1]Master Prices'!D53 -> 0 | E48: ='[1]Master Prices'!E53 -> 0 | F48: ='[1]Master Prices'!F53 -> 0 | G48: ='[1]Master Prices'!G53 -> 0 | H48: ='[1]Master Prices'!H53 -> 0 | I48: ='[1]Master Prices'!I53 -> $/lb
A49: ='[1]Master Prices'!A54 -> Soybean Meal, Dehull, Sol Extr | B49: ='[1]Master Prices'!B54 -> 0 | C49: ='[1]Master Prices'!C54 -> 0 | D49: ='[1]Master Prices'!D54 -> 0 | E49: ='[1]Master Prices'!E54 -> 0 | F49: ='[1]Master Prices'!F54 -> 0 | G49: ='[1]Master Prices'!G54 -> 0 | H49: ='[1]Master Prices'!H54 -> 0 | I49: ='[1]Master Prices'!I54 -> $/lb
A50: ='[1]Master Prices'!A55 -> Soybean Meal, Dehulled, Expelled | B50: ='[1]Master Prices'!B55 -> 0 | C50: ='[1]Master Prices'!C55 -> 0 | D50: ='[1]Master Prices'!D55 -> 0 | E50: ='[1]Master Prices'!E55 -> 0 | F50: ='[1]Master Prices'!F55 -> 0 | G50: ='[1]Master Prices'!G55 -> 0 | H50: ='[1]Master Prices'!H55 -> 0 | I50: ='[1]Master Prices'!I55 -> $/lb
A51: ='[1]Master Prices'!A56 -> Soybean Meal, Solvent Extracted | B51: ='[1]Master Prices'!B56 -> 0 | C51: ='[1]Master Prices'!C56 -> USDA St. Joseph, MO SJ_GR851 Report (http://www.ams.usda.gov/mnreports/sj_gr851.txt) | D51: ='[1]Master Prices'!D56 -> 0 | E51: ='[1]Master Prices'!E56 -> 0 | F51: ='[1]Master Prices'!F56 -> 0 | G51: ='[1]Master Prices'!G56 -> 0 | H51: ='[1]Master Prices'!H56 -> 0 | I51: ='[1]Master Prices'!I56 -> $/lb
A52: ='[1]Master Prices'!A57 -> Corn Gluten Meal | B52: ='[1]Master Prices'!B57 -> 0 | C52: ='[1]Master Prices'!C57 -> USDA St. Joseph, MO SJ_GR210 Report (http://www.ams.usda.gov/mnreports/sj_gr210.txt) | D52: ='[1]Master Prices'!D57 -> 0 | E52: ='[1]Master Prices'!E57 -> 0 | F52: ='[1]Master Prices'!F57 -> 0 | G52: ='[1]Master Prices'!G57 -> 0 | H52: ='[1]Master Prices'!H57 -> 0 | I52: ='[1]Master Prices'!I57 -> $/lb
A53: ='[1]Master Prices'!A58 -> Corn Grits, Hominy Feed | B53: ='[1]Master Prices'!B58 -> 0 | C53: ='[1]Master Prices'!C58 -> USDA St. Joseph, MO NW_GR112 Report (http://www.ams.usda.gov/mnreports/nw_gr112.txt) | D53: ='[1]Master Prices'!D58 -> 0 | E53: ='[1]Master Prices'!E58 -> 0 | F53: ='[1]Master Prices'!F58 -> 0 | G53: ='[1]Master Prices'!G58 -> 0 | H53: ='[1]Master Prices'!H58 -> 0 | I53: ='[1]Master Prices'!I58 -> $/lb
A54: ='[1]Master Prices'!A59 -> Cotton Seeds, Fullfat | B54: ='[1]Master Prices'!B59 -> 0 | C54: ='[1]Master Prices'!C59 -> 0 | D54: ='[1]Master Prices'!D59 -> 0 | E54: ='[1]Master Prices'!E59 -> 0 | F54: ='[1]Master Prices'!F59 -> 0 | G54: ='[1]Master Prices'!G59 -> 0 | H54: ='[1]Master Prices'!H59 -> 0 | I54: ='[1]Master Prices'!I59 -> $/lb
A55: ='[1]Master Prices'!A60 -> Cotton Seed Meal | B55: ='[1]Master Prices'!B60 -> 0 | C55: ='[1]Master Prices'!C60 -> 0 | D55: ='[1]Master Prices'!D60 -> 0 | E55: ='[1]Master Prices'!E60 -> 0 | F55: ='[1]Master Prices'!F60 -> 0 | G55: ='[1]Master Prices'!G60 -> 0 | H55: ='[1]Master Prices'!H60 -> 0 | I55: ='[1]Master Prices'!I60 -> $/lb
A56: ='[1]Master Prices'!A61 -> Feather Meal | B56: ='[1]Master Prices'!B61 -> 0 | C56: ='[1]Master Prices'!C61 -> 0 | D56: ='[1]Master Prices'!D61 -> 0 | E56: ='[1]Master Prices'!E61 -> 0 | F56: ='[1]Master Prices'!F61 -> 0 | G56: ='[1]Master Prices'!G61 -> 0 | H56: ='[1]Master Prices'!H61 -> 0 | I56: ='[1]Master Prices'!I61 -> $/lb
A57: ='[1]Master Prices'!A62 -> Fish Meal Combined | B57: ='[1]Master Prices'!B62 -> 0 | C57: ='[1]Master Prices'!C62 -> 0 | D57: ='[1]Master Prices'!D62 -> 0 | E57: ='[1]Master Prices'!E62 -> 0 | F57: ='[1]Master Prices'!F62 -> 0 | G57: ='[1]Master Prices'!G62 -> 0 | H57: ='[1]Master Prices'!H62 -> 0 | I57: ='[1]Master Prices'!I62 -> $/lb
A58: ='[1]Master Prices'!A63 -> Flaxseed | B58: ='[1]Master Prices'!B63 -> 0 | C58: ='[1]Master Prices'!C63 -> 0 | D58: ='[1]Master Prices'!D63 -> 0 | E58: ='[1]Master Prices'!E63 -> 0 | F58: ='[1]Master Prices'!F63 -> 0 | G58: ='[1]Master Prices'!G63 -> 0 | H58: ='[1]Master Prices'!H63 -> 0 | I58: ='[1]Master Prices'!I63 -> $/lb
A59: ='[1]Master Prices'!A64 -> Flaxseed Meal | B59: ='[1]Master Prices'!B64 -> 0 | C59: ='[1]Master Prices'!C64 -> 0 | D59: ='[1]Master Prices'!D64 -> 0 | E59: ='[1]Master Prices'!E64 -> 0 | F59: ='[1]Master Prices'!F64 -> 0 | G59: ='[1]Master Prices'!G64 -> 0 | H59: ='[1]Master Prices'!H64 -> 0 | I59: ='[1]Master Prices'!I64 -> $/lb
A60: ='[1]Master Prices'!A65 -> Lupins | B60: ='[1]Master Prices'!B65 -> 0 | C60: ='[1]Master Prices'!C65 -> 0 | D60: ='[1]Master Prices'!D65 -> 0 | E60: ='[1]Master Prices'!E65 -> 0 | F60: ='[1]Master Prices'!F65 -> 0 | G60: ='[1]Master Prices'!G65 -> 0 | H60: ='[1]Master Prices'!H65 -> 0 | I60: ='[1]Master Prices'!I65 -> $/lb
A61: ='[1]Master Prices'!A66 -> Meat Meal | B61: ='[1]Master Prices'!B66 -> 0 | C61: ='[1]Master Prices'!C66 -> USDA St. Joseph, MO SJ_GR851 Report (http://www.ams.usda.gov/mnreports/sj_gr851.txt) | D61: ='[1]Master Prices'!D66 -> 0 | E61: ='[1]Master Prices'!E66 -> 0 | F61: ='[1]Master Prices'!F66 -> 0 | G61: ='[1]Master Prices'!G66 -> 0 | H61: ='[1]Master Prices'!H66 -> 0 | I61: ='[1]Master Prices'!I66 -> $/lb
A62: ='[1]Master Prices'!A67 -> Meat and Bone Meal, P >4% | B62: ='[1]Master Prices'!B67 -> 0 | C62: ='[1]Master Prices'!C67 -> USDA St. Joseph, MO SJ_GR210 Report (http://www.ams.usda.gov/mnreports/sj_gr210.txt) | D62: ='[1]Master Prices'!D67 -> 0 | E62: ='[1]Master Prices'!E67 -> 0 | F62: ='[1]Master Prices'!F67 -> 0 | G62: ='[1]Master Prices'!G67 -> 0 | H62: ='[1]Master Prices'!H67 -> 0 | I62: ='[1]Master Prices'!I67 -> $/lb
A63: ='[1]Master Prices'!A68 -> Milk, Casein | B63: ='[1]Master Prices'!B68 -> 0 | C63: ='[1]Master Prices'!C68 -> USDA St. Joseph, MO NW_GR112 Report (http://www.ams.usda.gov/mnreports/nw_gr112.txt) | D63: ='[1]Master Prices'!D68 -> 0 | E63: ='[1]Master Prices'!E68 -> 0 | F63: ='[1]Master Prices'!F68 -> 0 | G63: ='[1]Master Prices'!G68 -> 0 | H63: ='[1]Master Prices'!H68 -> 0 | I63: ='[1]Master Prices'!I68 -> $/lb
A64: ='[1]Master Prices'!A69 -> Milk, Lactose | B64: ='[1]Master Prices'!B69 -> 0 | C64: ='[1]Master Prices'!C69 -> 0 | D64: ='[1]Master Prices'!D69 -> 0 | E64: ='[1]Master Prices'!E69 -> 0 | F64: ='[1]Master Prices'!F69 -> 0 | G64: ='[1]Master Prices'!G69 -> 0 | H64: ='[1]Master Prices'!H69 -> 0 | I64: ='[1]Master Prices'!I69 -> $/lb
A65: ='[1]Master Prices'!A70 -> Milk, Skim Milk Powder | B65: ='[1]Master Prices'!B70 -> 0 | C65: ='[1]Master Prices'!C70 -> 0 | D65: ='[1]Master Prices'!D70 -> 0 | E65: ='[1]Master Prices'!E70 -> 0 | F65: ='[1]Master Prices'!F70 -> 0 | G65: ='[1]Master Prices'!G70 -> 0 | H65: ='[1]Master Prices'!H70 -> 0 | I65: ='[1]Master Prices'!I70 -> $/lb
A66: ='[1]Master Prices'!A71 -> Milk, Whey Powder | B66: ='[1]Master Prices'!B71 -> 0 | C66: ='[1]Master Prices'!C71 -> 0 | D66: ='[1]Master Prices'!D71 -> 0 | E66: ='[1]Master Prices'!E71 -> 0 | F66: ='[1]Master Prices'!F71 -> 0 | G66: ='[1]Master Prices'!G71 -> 0 | H66: ='[1]Master Prices'!H71 -> 0 | I66: ='[1]Master Prices'!I71 -> $/lb
A67: ='[1]Master Prices'!A72 -> Milk, Whey Permeate, 85% lactose | B67: ='[1]Master Prices'!B72 -> 0 | C67: ='[1]Master Prices'!C72 -> 0 | D67: ='[1]Master Prices'!D72 -> 0 | E67: ='[1]Master Prices'!E72 -> 0 | F67: ='[1]Master Prices'!F72 -> 0 | G67: ='[1]Master Prices'!G72 -> 0 | H67: ='[1]Master Prices'!H72 -> 0 | I67: ='[1]Master Prices'!I72 -> $/lb
A68: ='[1]Master Prices'!A73 -> Milk, Whey Protein Concentrate | B68: ='[1]Master Prices'!B73 -> 0 | C68: ='[1]Master Prices'!C73 -> 0 | D68: ='[1]Master Prices'!D73 -> 0 | E68: ='[1]Master Prices'!E73 -> 0 | F68: ='[1]Master Prices'!F73 -> 0 | G68: ='[1]Master Prices'!G73 -> 0 | H68: ='[1]Master Prices'!H73 -> 0 | I68: ='[1]Master Prices'!I73 -> $/lb
A69: ='[1]Master Prices'!A74 -> Millet | B69: ='[1]Master Prices'!B74 -> 0 | C69: ='[1]Master Prices'!C74 -> 0 | D69: ='[1]Master Prices'!D74 -> 0 | E69: ='[1]Master Prices'!E74 -> 0 | F69: ='[1]Master Prices'!F74 -> 0 | G69: ='[1]Master Prices'!G74 -> 0 | H69: ='[1]Master Prices'!H74 -> 0 | I69: ='[1]Master Prices'!I74 -> $/lb
A70: ='[1]Master Prices'!A75 -> Molasses, Sugarbeet | B70: ='[1]Master Prices'!B75 -> 0 | C70: ='[1]Master Prices'!C75 -> 0 | D70: ='[1]Master Prices'!D75 -> 0 | E70: ='[1]Master Prices'!E75 -> 0 | F70: ='[1]Master Prices'!F75 -> 0 | G70: ='[1]Master Prices'!G75 -> 0 | H70: ='[1]Master Prices'!H75 -> 0 | I70: ='[1]Master Prices'!I75 -> $/lb
A71: ='[1]Master Prices'!A76 -> Molasses, Sugarcane | B71: ='[1]Master Prices'!B76 -> 0 | C71: ='[1]Master Prices'!C76 -> USDA St. Joseph, MO SJ_GR851 Report (http://www.ams.usda.gov/mnreports/sj_gr851.txt) | D71: ='[1]Master Prices'!D76 -> 0 | E71: ='[1]Master Prices'!E76 -> 0 | F71: ='[1]Master Prices'!F76 -> 0 | G71: ='[1]Master Prices'!G76 -> 0 | H71: ='[1]Master Prices'!H76 -> 0 | I71: ='[1]Master Prices'!I76 -> $/lb
A72: ='[1]Master Prices'!A77 -> Oats | B72: ='[1]Master Prices'!B77 -> 0 | C72: ='[1]Master Prices'!C77 -> USDA St. Joseph, MO SJ_GR210 Report (http://www.ams.usda.gov/mnreports/sj_gr210.txt) | D72: ='[1]Master Prices'!D77 -> 0 | E72: ='[1]Master Prices'!E77 -> 0 | F72: ='[1]Master Prices'!F77 -> 0 | G72: ='[1]Master Prices'!G77 -> 0 | H72: ='[1]Master Prices'!H77 -> 0 | I72: ='[1]Master Prices'!I77 -> $/lb
A73: ='[1]Master Prices'!A78 -> Oats, Naked | B73: ='[1]Master Prices'!B78 -> 0 | C73: ='[1]Master Prices'!C78 -> USDA St. Joseph, MO NW_GR112 Report (http://www.ams.usda.gov/mnreports/nw_gr112.txt) | D73: ='[1]Master Prices'!D78 -> 0 | E73: ='[1]Master Prices'!E78 -> 0 | F73: ='[1]Master Prices'!F78 -> 0 | G73: ='[1]Master Prices'!G78 -> 0 | H73: ='[1]Master Prices'!H78 -> 0 | I73: ='[1]Master Prices'!I78 -> $/lb
A74: ='[1]Master Prices'!A79 -> Oat Groats | B74: ='[1]Master Prices'!B79 -> 0 | C74: ='[1]Master Prices'!C79 -> 0 | D74: ='[1]Master Prices'!D79 -> 0 | E74: ='[1]Master Prices'!E79 -> 0 | F74: ='[1]Master Prices'!F79 -> 0 | G74: ='[1]Master Prices'!G79 -> 0 | H74: ='[1]Master Prices'!H79 -> 0 | I74: ='[1]Master Prices'!I79 -> $/lb
A75: ='[1]Master Prices'!A80 -> Peanut Meal, Expelled | B75: ='[1]Master Prices'!B80 -> 0 | C75: ='[1]Master Prices'!C80 -> 0 | D75: ='[1]Master Prices'!D80 -> 0 | E75: ='[1]Master Prices'!E80 -> 0 | F75: ='[1]Master Prices'!F80 -> 0 | G75: ='[1]Master Prices'!G80 -> 0 | H75: ='[1]Master Prices'!H80 -> 0 | I75: ='[1]Master Prices'!I80 -> $/lb
A76: ='[1]Master Prices'!A81 -> Peanut Meal, Extracted | B76: ='[1]Master Prices'!B81 -> 0 | C76: ='[1]Master Prices'!C81 -> 0 | D76: ='[1]Master Prices'!D81 -> 0 | E76: ='[1]Master Prices'!E81 -> 0 | F76: ='[1]Master Prices'!F81 -> 0 | G76: ='[1]Master Prices'!G81 -> 0 | H76: ='[1]Master Prices'!H81 -> 0 | I76: ='[1]Master Prices'!I81 -> $/lb
A77: ='[1]Master Prices'!A82 -> Peas, Field Peas | B77: ='[1]Master Prices'!B82 -> 0 | C77: ='[1]Master Prices'!C82 -> 0 | D77: ='[1]Master Prices'!D82 -> 0 | E77: ='[1]Master Prices'!E82 -> 0 | F77: ='[1]Master Prices'!F82 -> 0 | G77: ='[1]Master Prices'!G82 -> 0 | H77: ='[1]Master Prices'!H82 -> 0 | I77: ='[1]Master Prices'!I82 -> $/lb
A78: ='[1]Master Prices'!A83 -> Pea Protein Concentrate | B78: ='[1]Master Prices'!B83 -> 0 | C78: ='[1]Master Prices'!C83 -> 0 | D78: ='[1]Master Prices'!D83 -> 0 | E78: ='[1]Master Prices'!E83 -> 0 | F78: ='[1]Master Prices'!F83 -> 0 | G78: ='[1]Master Prices'!G83 -> 0 | H78: ='[1]Master Prices'!H83 -> 0 | I78: ='[1]Master Prices'!I83 -> $/lb
A79: ='[1]Master Prices'!A84 -> Potato Protein Concentrate | B79: ='[1]Master Prices'!B84 -> 0 | C79: ='[1]Master Prices'!C84 -> 0 | D79: ='[1]Master Prices'!D84 -> 0 | E79: ='[1]Master Prices'!E84 -> 0 | F79: ='[1]Master Prices'!F84 -> 0 | G79: ='[1]Master Prices'!G84 -> 0 | H79: ='[1]Master Prices'!H84 -> 0 | I79: ='[1]Master Prices'!I84 -> $/lb
A80: ='[1]Master Prices'!A85 -> Poultry Byproduct | B80: ='[1]Master Prices'!B85 -> 0 | C80: ='[1]Master Prices'!C85 -> 0 | D80: ='[1]Master Prices'!D85 -> 0 | E80: ='[1]Master Prices'!E85 -> 0 | F80: ='[1]Master Prices'!F85 -> 0 | G80: ='[1]Master Prices'!G85 -> 0 | H80: ='[1]Master Prices'!H85 -> 0 | I80: ='[1]Master Prices'!I85 -> $/lb
A81: ='[1]Master Prices'!A86 -> Rice | B81: ='[1]Master Prices'!B86 -> 0 | C81: ='[1]Master Prices'!C86 -> USDA St. Joseph, MO SJ_GR851 Report (http://www.ams.usda.gov/mnreports/sj_gr851.txt) | D81: ='[1]Master Prices'!D86 -> 0 | E81: ='[1]Master Prices'!E86 -> 0 | F81: ='[1]Master Prices'!F86 -> 0 | G81: ='[1]Master Prices'!G86 -> 0 | H81: ='[1]Master Prices'!H86 -> 0 | I81: ='[1]Master Prices'!I86 -> $/lb
A82: ='[1]Master Prices'!A87 -> Rice Bran | B82: ='[1]Master Prices'!B87 -> 0 | C82: ='[1]Master Prices'!C87 -> USDA St. Joseph, MO SJ_GR210 Report (http://www.ams.usda.gov/mnreports/sj_gr210.txt) | D82: ='[1]Master Prices'!D87 -> 0 | E82: ='[1]Master Prices'!E87 -> 0 | F82: ='[1]Master Prices'!F87 -> 0 | G82: ='[1]Master Prices'!G87 -> 0 | H82: ='[1]Master Prices'!H87 -> 0 | I82: ='[1]Master Prices'!I87 -> $/lb
A83: ='[1]Master Prices'!A88 -> Rice Bran, Defatted | B83: ='[1]Master Prices'!B88 -> 0 | C83: ='[1]Master Prices'!C88 -> USDA St. Joseph, MO NW_GR112 Report (http://www.ams.usda.gov/mnreports/nw_gr112.txt) | D83: ='[1]Master Prices'!D88 -> 0 | E83: ='[1]Master Prices'!E88 -> 0 | F83: ='[1]Master Prices'!F88 -> 0 | G83: ='[1]Master Prices'!G88 -> 0 | H83: ='[1]Master Prices'!H88 -> 0 | I83: ='[1]Master Prices'!I88 -> $/lb
A84: ='[1]Master Prices'!A89 -> Rice, Broken | B84: ='[1]Master Prices'!B89 -> 0 | C84: ='[1]Master Prices'!C89 -> 0 | D84: ='[1]Master Prices'!D89 -> 0 | E84: ='[1]Master Prices'!E89 -> 0 | F84: ='[1]Master Prices'!F89 -> 0 | G84: ='[1]Master Prices'!G89 -> 0 | H84: ='[1]Master Prices'!H89 -> 0 | I84: ='[1]Master Prices'!I89 -> $/lb
A85: ='[1]Master Prices'!A90 -> Rye | B85: ='[1]Master Prices'!B90 -> 0 | C85: ='[1]Master Prices'!C90 -> 0 | D85: ='[1]Master Prices'!D90 -> 0 | E85: ='[1]Master Prices'!E90 -> 0 | F85: ='[1]Master Prices'!F90 -> 0 | G85: ='[1]Master Prices'!G90 -> 0 | H85: ='[1]Master Prices'!H90 -> 0 | I85: ='[1]Master Prices'!I90 -> $/lb
A86: ='[1]Master Prices'!A91 -> Sesame Meal | B86: ='[1]Master Prices'!B91 -> 0 | C86: ='[1]Master Prices'!C91 -> 0 | D86: ='[1]Master Prices'!D91 -> 0 | E86: ='[1]Master Prices'!E91 -> 0 | F86: ='[1]Master Prices'!F91 -> 0 | G86: ='[1]Master Prices'!G91 -> 0 | H86: ='[1]Master Prices'!H91 -> 0 | I86: ='[1]Master Prices'!I91 -> $/lb
A87: ='[1]Master Prices'!A92 -> Sorghum | B87: ='[1]Master Prices'!B92 -> 0 | C87: ='[1]Master Prices'!C92 -> 0 | D87: ='[1]Master Prices'!D92 -> 0 | E87: ='[1]Master Prices'!E92 -> 0 | F87: ='[1]Master Prices'!F92 -> 0 | G87: ='[1]Master Prices'!G92 -> 0 | H87: ='[1]Master Prices'!H92 -> 0 | I87: ='[1]Master Prices'!I92 -> $/lb
A88: ='[1]Master Prices'!A93 -> Soybeans, Full Fat | B88: ='[1]Master Prices'!B93 -> 0 | C88: ='[1]Master Prices'!C93 -> 0 | D88: ='[1]Master Prices'!D93 -> 0 | E88: ='[1]Master Prices'!E93 -> 0 | F88: ='[1]Master Prices'!F93 -> 0 | G88: ='[1]Master Prices'!G93 -> 0 | H88: ='[1]Master Prices'!H93 -> 0 | I88: ='[1]Master Prices'!I93 -> $/lb
A89: ='[1]Master Prices'!A94 -> Soybeans, High Protein, Full Fat | B89: ='[1]Master Prices'!B94 -> 0 | C89: ='[1]Master Prices'!C94 -> 0 | D89: ='[1]Master Prices'!D94 -> 0 | E89: ='[1]Master Prices'!E94 -> 0 | F89: ='[1]Master Prices'!F94 -> 0 | G89: ='[1]Master Prices'!G94 -> 0 | H89: ='[1]Master Prices'!H94 -> 0 | I89: ='[1]Master Prices'!I94 -> $/lb
A90: ='[1]Master Prices'!A95 -> Soybeans, Low Oligosaccharide, Full Fat | B90: ='[1]Master Prices'!B95 -> 0 | C90: ='[1]Master Prices'!C95 -> 0 | D90: ='[1]Master Prices'!D95 -> 0 | E90: ='[1]Master Prices'!E95 -> 0 | F90: ='[1]Master Prices'!F95 -> 0 | G90: ='[1]Master Prices'!G95 -> 0 | H90: ='[1]Master Prices'!H95 -> 0 | I90: ='[1]Master Prices'!I95 -> $/lb
A91: ='[1]Master Prices'!A96 -> Soybean Meal, High Protein, Expelled | B91: ='[1]Master Prices'!B96 -> 0 | C91: ='[1]Master Prices'!C96 -> USDA St. Joseph, MO SJ_GR851 Report (http://www.ams.usda.gov/mnreports/sj_gr851.txt) | D91: ='[1]Master Prices'!D96 -> 0 | E91: ='[1]Master Prices'!E96 -> 0 | F91: ='[1]Master Prices'!F96 -> 0 | G91: ='[1]Master Prices'!G96 -> 0 | H91: ='[1]Master Prices'!H96 -> 0 | I91: ='[1]Master Prices'!I96 -> $/lb
A92: ='[1]Master Prices'!A97 -> Soybean Meal, Low Oligosacch, Expell | B92: ='[1]Master Prices'!B97 -> 0 | C92: ='[1]Master Prices'!C97 -> USDA St. Joseph, MO SJ_GR210 Report (http://www.ams.usda.gov/mnreports/sj_gr210.txt) | D92: ='[1]Master Prices'!D97 -> 0 | E92: ='[1]Master Prices'!E97 -> 0 | F92: ='[1]Master Prices'!F97 -> 0 | G92: ='[1]Master Prices'!G97 -> 0 | H92: ='[1]Master Prices'!H97 -> 0 | I92: ='[1]Master Prices'!I97 -> $/lb
A93: ='[1]Master Prices'!A98 -> Soybean Meal, Expelled | B93: ='[1]Master Prices'!B98 -> 0 | C93: ='[1]Master Prices'!C98 -> USDA St. Joseph, MO NW_GR112 Report (http://www.ams.usda.gov/mnreports/nw_gr112.txt) | D93: ='[1]Master Prices'!D98 -> 0 | E93: ='[1]Master Prices'!E98 -> 0 | F93: ='[1]Master Prices'!F98 -> 0 | G93: ='[1]Master Prices'!G98 -> 0 | H93: ='[1]Master Prices'!H98 -> 0 | I93: ='[1]Master Prices'!I98 -> $/lb
A94: ='[1]Master Prices'!A99 -> Soybean Meal, Dehulled, Expelled | B94: ='[1]Master Prices'!B99 -> 0 | C94: ='[1]Master Prices'!C99 -> 0 | D94: ='[1]Master Prices'!D99 -> 0 | E94: ='[1]Master Prices'!E99 -> 0 | F94: ='[1]Master Prices'!F99 -> 0 | G94: ='[1]Master Prices'!G99 -> 0 | H94: ='[1]Master Prices'!H99 -> 0 | I94: ='[1]Master Prices'!I99 -> $/lb
A95: ='[1]Master Prices'!A100 -> Soybean Meal, Solvent Extracted | B95: ='[1]Master Prices'!B100 -> 0 | C95: ='[1]Master Prices'!C100 -> 0 | D95: ='[1]Master Prices'!D100 -> 0 | E95: ='[1]Master Prices'!E100 -> 0 | F95: ='[1]Master Prices'!F100 -> 0 | G95: ='[1]Master Prices'!G100 -> 0 | H95: ='[1]Master Prices'!H100 -> 0 | I95: ='[1]Master Prices'!I100 -> $/lb
A96: ='[1]Master Prices'!A101 -> Soybean Meal, Dehull, Sol Extr | B96: ='[1]Master Prices'!B101 -> 0.1581 | C96: ='[1]Master Prices'!C101 -> USDA St. Joseph, MO SJ_GR210 Report (http://www.ams.usda.gov/mnreports/sj_gr210.txt) | D96: ='[1]Master Prices'!D101 -> 0.159681 | E96: ='[1]Master Prices'!E101 -> 0 | F96: ='[1]Master Prices'!F101 -> 0 | G96: ='[1]Master Prices'!G101 -> 0.161262 | H96: ='[1]Master Prices'!H101 -> http://www.usda.gov/oce/commodity/projections/ | I96: ='[1]Master Prices'!I101 -> $/lb
A97: ='[1]Master Prices'!A102 -> Soybean Meal, High Prot, Dehull, Solv Extr | B97: ='[1]Master Prices'!B102 -> 0 | C97: ='[1]Master Prices'!C102 -> 0 | D97: ='[1]Master Prices'!D102 -> 0 | E97: ='[1]Master Prices'!E102 -> 0 | F97: ='[1]Master Prices'!F102 -> 0 | G97: ='[1]Master Prices'!G102 -> 0 | H97: ='[1]Master Prices'!H102 -> 0 | I97: ='[1]Master Prices'!I102 -> $/lb
A98: ='[1]Master Prices'!A103 -> Soybean Meal, Enzyme Treated | B98: ='[1]Master Prices'!B103 -> 0 | C98: ='[1]Master Prices'!C103 -> 0 | D98: ='[1]Master Prices'!D103 -> 0 | E98: ='[1]Master Prices'!E103 -> 0 | F98: ='[1]Master Prices'!F103 -> 0 | G98: ='[1]Master Prices'!G103 -> 0 | H98: ='[1]Master Prices'!H103 -> 0 | I98: ='[1]Master Prices'!I103 -> $/lb
A99: ='[1]Master Prices'!A104 -> Soybean Meal, Fermented | B99: ='[1]Master Prices'!B104 -> 0 | C99: ='[1]Master Prices'!C104 -> 0 | D99: ='[1]Master Prices'!D104 -> 0 | E99: ='[1]Master Prices'!E104 -> 0 | F99: ='[1]Master Prices'!F104 -> 0 | G99: ='[1]Master Prices'!G104 -> 0 | H99: ='[1]Master Prices'!H104 -> 0 | I99: ='[1]Master Prices'!I104 -> $/lb
A100: ='[1]Master Prices'!A105 -> Soybean Hulls | B100: ='[1]Master Prices'!B105 -> 0 | C100: ='[1]Master Prices'!C105 -> 0 | D100: ='[1]Master Prices'!D105 -> 0 | E100: ='[1]Master Prices'!E105 -> 0 | F100: ='[1]Master Prices'!F105 -> 0 | G100: ='[1]Master Prices'!G105 -> 0 | H100: ='[1]Master Prices'!H105 -> 0 | I100: ='[1]Master Prices'!I105 -> $/lb
A101: ='[1]Master Prices'!A106 -> Soy Protein Concentrate | B101: ='[1]Master Prices'!B106 -> 0 | C101: ='[1]Master Prices'!C106 -> 0 | D101: ='[1]Master Prices'!D106 -> 0 | E101: ='[1]Master Prices'!E106 -> 0 | F101: ='[1]Master Prices'!F106 -> 0 | G101: ='[1]Master Prices'!G106 -> 0 | H101: ='[1]Master Prices'!H106 -> 0 | I101: ='[1]Master Prices'!I106 -> $/lb
A102: ='[1]Master Prices'!A107 -> Soy Protein Isolate | B102: ='[1]Master Prices'!B107 -> 0 | C102: ='[1]Master Prices'!C107 -> 0 | D102: ='[1]Master Prices'!D107 -> 0 | E102: ='[1]Master Prices'!E107 -> 0 | F102: ='[1]Master Prices'!F107 -> 0 | G102: ='[1]Master Prices'!G107 -> 0 | H102: ='[1]Master Prices'!H107 -> 0 | I102: ='[1]Master Prices'!I107 -> $/lb
A103: ='[1]Master Prices'!A108 -> Sugar Beet Pulp | B103: ='[1]Master Prices'!B108 -> 0 | C103: ='[1]Master Prices'!C108 -> 0 | D103: ='[1]Master Prices'!D108 -> 0 | E103: ='[1]Master Prices'!E108 -> 0 | F103: ='[1]Master Prices'!F108 -> 0 | G103: ='[1]Master Prices'!G108 -> 0 | H103: ='[1]Master Prices'!H108 -> 0 | I103: ='[1]Master Prices'!I108 -> $/lb
A104: ='[1]Master Prices'!A109 -> Sunflower, Full Fat | B104: ='[1]Master Prices'!B109 -> 0 | C104: ='[1]Master Prices'!C109 -> 0 | D104: ='[1]Master Prices'!D109 -> 0 | E104: ='[1]Master Prices'!E109 -> 0 | F104: ='[1]Master Prices'!F109 -> 0 | G104: ='[1]Master Prices'!G109 -> 0 | H104: ='[1]Master Prices'!H109 -> 0 | I104: ='[1]Master Prices'!I109 -> $/lb
A105: ='[1]Master Prices'!A110 -> Sunflower Meal, Solvent Extracted | B105: ='[1]Master Prices'!B110 -> 0 | C105: ='[1]Master Prices'!C110 -> 0 | D105: ='[1]Master Prices'!D110 -> 0 | E105: ='[1]Master Prices'!E110 -> 0 | F105: ='[1]Master Prices'!F110 -> 0 | G105: ='[1]Master Prices'!G110 -> 0 | H105: ='[1]Master Prices'!H110 -> 0 | I105: ='[1]Master Prices'!I110 -> $/lb
A106: ='[1]Master Prices'!A111 -> Sunflower Meal, Dehulled, Solvent Extr | B106: ='[1]Master Prices'!B111 -> 0 | C106: ='[1]Master Prices'!C111 -> 0 | D106: ='[1]Master Prices'!D111 -> 0 | E106: ='[1]Master Prices'!E111 -> 0 | F106: ='[1]Master Prices'!F111 -> 0 | G106: ='[1]Master Prices'!G111 -> 0 | H106: ='[1]Master Prices'!H111 -> 0 | I106: ='[1]Master Prices'!I111 -> $/lb
A107: ='[1]Master Prices'!A112 -> Triticale | B107: ='[1]Master Prices'!B112 -> 0 | C107: ='[1]Master Prices'!C112 -> 0 | D107: ='[1]Master Prices'!D112 -> 0 | E107: ='[1]Master Prices'!E112 -> 0 | F107: ='[1]Master Prices'!F112 -> 0 | G107: ='[1]Master Prices'!G112 -> 0 | H107: ='[1]Master Prices'!H112 -> 0 | I107: ='[1]Master Prices'!I112 -> $/lb
A108: ='[1]Master Prices'!A113 -> Wheat, Hard Red | B108: ='[1]Master Prices'!B113 -> 0 | C108: ='[1]Master Prices'!C113 -> 0 | D108: ='[1]Master Prices'!D113 -> 0 | E108: ='[1]Master Prices'!E113 -> 0 | F108: ='[1]Master Prices'!F113 -> 0 | G108: ='[1]Master Prices'!G113 -> 0 | H108: ='[1]Master Prices'!H113 -> 0 | I108: ='[1]Master Prices'!I113 -> $/lb
A109: ='[1]Master Prices'!A114 -> Wheat, Soft Red | B109: ='[1]Master Prices'!B114 -> 0 | C109: ='[1]Master Prices'!C114 -> 0 | D109: ='[1]Master Prices'!D114 -> 0 | E109: ='[1]Master Prices'!E114 -> 0 | F109: ='[1]Master Prices'!F114 -> 0 | G109: ='[1]Master Prices'!G114 -> 0 | H109: ='[1]Master Prices'!H114 -> 0 | I109: ='[1]Master Prices'!I114 -> $/lb
A110: ='[1]Master Prices'!A115 -> Wheat Bran | B110: ='[1]Master Prices'!B115 -> 0 | C110: ='[1]Master Prices'!C115 -> 0 | D110: ='[1]Master Prices'!D115 -> 0 | E110: ='[1]Master Prices'!E115 -> 0 | F110: ='[1]Master Prices'!F115 -> 0 | G110: ='[1]Master Prices'!G115 -> 0 | H110: ='[1]Master Prices'!H115 -> 0 | I110: ='[1]Master Prices'!I115 -> $/lb
A111: ='[1]Master Prices'!A116 -> Wheat Middlings | B111: ='[1]Master Prices'!B116 -> 0 | C111: ='[1]Master Prices'!C116 -> 0 | D111: ='[1]Master Prices'!D116 -> 0 | E111: ='[1]Master Prices'!E116 -> 0 | F111: ='[1]Master Prices'!F116 -> 0 | G111: ='[1]Master Prices'!G116 -> 0 | H111: ='[1]Master Prices'!H116 -> 0 | I111: ='[1]Master Prices'!I116 -> $/lb
A112: ='[1]Master Prices'!A117 -> Wheat Shorts | B112: ='[1]Master Prices'!B117 -> 0 | C112: ='[1]Master Prices'!C117 -> 0 | D112: ='[1]Master Prices'!D117 -> 0 | E112: ='[1]Master Prices'!E117 -> 0 | F112: ='[1]Master Prices'!F117 -> 0 | G112: ='[1]Master Prices'!G117 -> 0 | H112: ='[1]Master Prices'!H117 -> 0 | I112: ='[1]Master Prices'!I117 -> $/lb
A113: ='[1]Master Prices'!A118 -> Wheat DDGS | B113: ='[1]Master Prices'!B118 -> 0 | C113: ='[1]Master Prices'!C118 -> 0 | D113: ='[1]Master Prices'!D118 -> 0 | E113: ='[1]Master Prices'!E118 -> 0 | F113: ='[1]Master Prices'!F118 -> 0 | G113: ='[1]Master Prices'!G118 -> 0 | H113: ='[1]Master Prices'!H118 -> 0 | I113: ='[1]Master Prices'!I118 -> $/lb
A114: ='[1]Master Prices'!A119 -> Yeast, Brewers' Yeast | B114: ='[1]Master Prices'!B119 -> 0 | C114: ='[1]Master Prices'!C119 -> 0 | D114: ='[1]Master Prices'!D119 -> 0 | E114: ='[1]Master Prices'!E119 -> 0 | F114: ='[1]Master Prices'!F119 -> 0 | G114: ='[1]Master Prices'!G119 -> 0 | H114: ='[1]Master Prices'!H119 -> 0 | I114: ='[1]Master Prices'!I119 -> $/lb
A115: ='[1]Master Prices'!A120 -> Yeast, Single Cell Protein | B115: ='[1]Master Prices'!B120 -> 0 | C115: ='[1]Master Prices'!C120 -> 0 | D115: ='[1]Master Prices'!D120 -> 0 | E115: ='[1]Master Prices'!E120 -> 0 | F115: ='[1]Master Prices'!F120 -> 0 | G115: ='[1]Master Prices'!G120 -> 0 | H115: ='[1]Master Prices'!H120 -> 0 | I115: ='[1]Master Prices'!I120 -> $/lb
A116: ='[1]Master Prices'!A121 -> Beef Tallow | B116: ='[1]Master Prices'!B121 -> 0 | C116: ='[1]Master Prices'!C121 -> 0 | D116: ='[1]Master Prices'!D121 -> 0 | E116: ='[1]Master Prices'!E121 -> 0 | F116: ='[1]Master Prices'!F121 -> 0 | G116: ='[1]Master Prices'!G121 -> 0 | H116: ='[1]Master Prices'!H121 -> 0 | I116: ='[1]Master Prices'!I121 -> $/lb
A117: ='[1]Master Prices'!A122 -> Choice White Grease | B117: ='[1]Master Prices'!B122 -> 0 | C117: ='[1]Master Prices'!C122 -> 0 | D117: ='[1]Master Prices'!D122 -> 0 | E117: ='[1]Master Prices'!E122 -> 0 | F117: ='[1]Master Prices'!F122 -> 0 | G117: ='[1]Master Prices'!G122 -> 0 | H117: ='[1]Master Prices'!H122 -> 0 | I117: ='[1]Master Prices'!I122 -> $/lb
A118: ='[1]Master Prices'!A123 -> Poultry Fat | B118: ='[1]Master Prices'!B123 -> 0 | C118: ='[1]Master Prices'!C123 -> 0 | D118: ='[1]Master Prices'!D123 -> 0 | E118: ='[1]Master Prices'!E123 -> 0 | F118: ='[1]Master Prices'!F123 -> 0 | G118: ='[1]Master Prices'!G123 -> 0 | H118: ='[1]Master Prices'!H123 -> 0 | I118: ='[1]Master Prices'!I123 -> $/lb
A119: ='[1]Master Prices'!A124 -> Lard | B119: ='[1]Master Prices'!B124 -> 0 | C119: ='[1]Master Prices'!C124 -> 0 | D119: ='[1]Master Prices'!D124 -> 0 | E119: ='[1]Master Prices'!E124 -> 0 | F119: ='[1]Master Prices'!F124 -> 0 | G119: ='[1]Master Prices'!G124 -> 0 | H119: ='[1]Master Prices'!H124 -> 0 | I119: ='[1]Master Prices'!I124 -> $/lb
A120: ='[1]Master Prices'!A125 -> Restaurant Grease | B120: ='[1]Master Prices'!B125 -> 0 | C120: ='[1]Master Prices'!C125 -> 0 | D120: ='[1]Master Prices'!D125 -> 0 | E120: ='[1]Master Prices'!E125 -> 0 | F120: ='[1]Master Prices'!F125 -> 0 | G120: ='[1]Master Prices'!G125 -> 0 | H120: ='[1]Master Prices'!H125 -> 0 | I120: ='[1]Master Prices'!I125 -> $/lb
A121: ='[1]Master Prices'!A126 -> Canola oil | B121: ='[1]Master Prices'!B126 -> 0 | C121: ='[1]Master Prices'!C126 -> 0 | D121: ='[1]Master Prices'!D126 -> 0 | E121: ='[1]Master Prices'!E126 -> 0 | F121: ='[1]Master Prices'!F126 -> 0 | G121: ='[1]Master Prices'!G126 -> 0 | H121: ='[1]Master Prices'!H126 -> 0 | I121: ='[1]Master Prices'!I126 -> $/lb
A122: ='[1]Master Prices'!A127 -> Coconut oil | B122: ='[1]Master Prices'!B127 -> 0 | C122: ='[1]Master Prices'!C127 -> 0 | D122: ='[1]Master Prices'!D127 -> 0 | E122: ='[1]Master Prices'!E127 -> 0 | F122: ='[1]Master Prices'!F127 -> 0 | G122: ='[1]Master Prices'!G127 -> 0 | H122: ='[1]Master Prices'!H127 -> 0 | I122: ='[1]Master Prices'!I127 -> $/lb
A123: ='[1]Master Prices'!A128 -> Corn oil | B123: ='[1]Master Prices'!B128 -> 0 | C123: ='[1]Master Prices'!C128 -> 0 | D123: ='[1]Master Prices'!D128 -> 0 | E123: ='[1]Master Prices'!E128 -> 0 | F123: ='[1]Master Prices'!F128 -> 0 | G123: ='[1]Master Prices'!G128 -> 0 | H123: ='[1]Master Prices'!H128 -> 0 | I123: ='[1]Master Prices'!I128 -> $/lb
A124: ='[1]Master Prices'!A129 -> Palm Kernel oil | B124: ='[1]Master Prices'!B129 -> 0 | C124: ='[1]Master Prices'!C129 -> 0 | D124: ='[1]Master Prices'!D129 -> 0 | E124: ='[1]Master Prices'!E129 -> 0 | F124: ='[1]Master Prices'!F129 -> 0 | G124: ='[1]Master Prices'!G129 -> 0 | H124: ='[1]Master Prices'!H129 -> 0 | I124: ='[1]Master Prices'!I129 -> $/lb
A125: ='[1]Master Prices'!A130 -> Soybean oil | B125: ='[1]Master Prices'!B130 -> 0 | C125: ='[1]Master Prices'!C130 -> 0 | D125: ='[1]Master Prices'!D130 -> 0 | E125: ='[1]Master Prices'!E130 -> 0 | F125: ='[1]Master Prices'!F130 -> 0 | G125: ='[1]Master Prices'!G130 -> 0 | H125: ='[1]Master Prices'!H130 -> 0 | I125: ='[1]Master Prices'!I130 -> $/lb
A126: ='[1]Master Prices'!A131 -> Soybean Lecithin | B126: ='[1]Master Prices'!B131 -> 0 | C126: ='[1]Master Prices'!C131 -> 0 | D126: ='[1]Master Prices'!D131 -> 0 | E126: ='[1]Master Prices'!E131 -> 0 | F126: ='[1]Master Prices'!F131 -> 0 | G126: ='[1]Master Prices'!G131 -> 0 | H126: ='[1]Master Prices'!H131 -> 0 | I126: ='[1]Master Prices'!I131 -> $/lb
A127: ='[1]Master Prices'!A132 -> Sunflower oil | B127: ='[1]Master Prices'!B132 -> 0 | C127: ='[1]Master Prices'!C132 -> 0 | D127: ='[1]Master Prices'!D132 -> 0 | E127: ='[1]Master Prices'!E132 -> 0 | F127: ='[1]Master Prices'!F132 -> 0 | G127: ='[1]Master Prices'!G132 -> 0 | H127: ='[1]Master Prices'!H132 -> 0 | I127: ='[1]Master Prices'!I132 -> $/lb
A128: ='[1]Master Prices'!A133 -> Fat, A/V blend | B128: ='[1]Master Prices'!B133 -> 0 | C128: ='[1]Master Prices'!C133 -> 0 | D128: ='[1]Master Prices'!D133 -> 0 | E128: ='[1]Master Prices'!E133 -> 0 | F128: ='[1]Master Prices'!F133 -> 0 | G128: ='[1]Master Prices'!G133 -> 0 | H128: ='[1]Master Prices'!H133 -> 0 | I128: ='[1]Master Prices'!I133 -> $/lb
A129: ='[1]Master Prices'!A134 -> Calcium carbonate | B129: ='[1]Master Prices'!B134 -> 0 | C129: ='[1]Master Prices'!C134 -> 0 | D129: ='[1]Master Prices'!D134 -> 0 | E129: ='[1]Master Prices'!E134 -> 0 | F129: ='[1]Master Prices'!F134 -> 0 | G129: ='[1]Master Prices'!G134 -> 0 | H129: ='[1]Master Prices'!H134 -> 0 | I129: ='[1]Master Prices'!I134 -> $/lb
A130: ='[1]Master Prices'!A135 -> Calcium phosphate (tricalcium) | B130: ='[1]Master Prices'!B135 -> 0 | C130: ='[1]Master Prices'!C135 -> 0 | D130: ='[1]Master Prices'!D135 -> 0 | E130: ='[1]Master Prices'!E135 -> 0 | F130: ='[1]Master Prices'!F135 -> 0 | G130: ='[1]Master Prices'!G135 -> 0 | H130: ='[1]Master Prices'!H135 -> 0 | I130: ='[1]Master Prices'!I135 -> $/lb
A131: ='[1]Master Prices'!A136 -> Calcium phosphate (dicalcium) | B131: ='[1]Master Prices'!B136 -> 0 | C131: ='[1]Master Prices'!C136 -> 0 | D131: ='[1]Master Prices'!D136 -> 0 | E131: ='[1]Master Prices'!E136 -> 0 | F131: ='[1]Master Prices'!F136 -> 0 | G131: ='[1]Master Prices'!G136 -> 0 | H131: ='[1]Master Prices'!H136 -> 0 | I131: ='[1]Master Prices'!I136 -> $/lb
A132: ='[1]Master Prices'!A137 -> Calcium phosphate (monocalcium) | B132: ='[1]Master Prices'!B137 -> 0.328 | C132: ='[1]Master Prices'!C137 -> KSU ration (Apr 2015) | D132: ='[1]Master Prices'!D137 -> 0.33128 | E132: ='[1]Master Prices'!E137 -> Assumes 1% increase | F132: ='[1]Master Prices'!F137 -> 0 | G132: ='[1]Master Prices'!G137 -> 0.33456 | H132: ='[1]Master Prices'!H137 -> Assumes 2% increase | I132: ='[1]Master Prices'!I137 -> $/lb
A133: ='[1]Master Prices'!A138 -> Calcium sulfate, dihydrate | B133: ='[1]Master Prices'!B138 -> 0 | C133: ='[1]Master Prices'!C138 -> KSU ration (Apr 2015) | D133: ='[1]Master Prices'!D138 -> 0 | E133: ='[1]Master Prices'!E138 -> Assumes 1% increase | F133: ='[1]Master Prices'!F138 -> 0 | G133: ='[1]Master Prices'!G138 -> 0 | H133: ='[1]Master Prices'!H138 -> Assumes 2% increase | I133: ='[1]Master Prices'!I138 -> $/lb
A134: ='[1]Master Prices'!A139 -> Limestone, ground | B134: ='[1]Master Prices'!B139 -> 0.0176 | C134: ='[1]Master Prices'!C139 -> KSU ration (Apr 2015) | D134: ='[1]Master Prices'!D139 -> 0.017776 | E134: ='[1]Master Prices'!E139 -> Assumes 1% increase | F134: ='[1]Master Prices'!F139 -> 0 | G134: ='[1]Master Prices'!G139 -> 0.017952 | H134: ='[1]Master Prices'!H139 -> Assumes 2% increase | I134: ='[1]Master Prices'!I139 -> $/lb
A135: ='[1]Master Prices'!A140 -> Magnesium phosphate | B135: ='[1]Master Prices'!B140 -> 0 | C135: ='[1]Master Prices'!C140 -> KSU ration (Apr 2015) | D135: ='[1]Master Prices'!D140 -> 0 | E135: ='[1]Master Prices'!E140 -> Assumes 1% increase | F135: ='[1]Master Prices'!F140 -> 0 | G135: ='[1]Master Prices'!G140 -> 0 | H135: ='[1]Master Prices'!H140 -> Assumes 2% increase | I135: ='[1]Master Prices'!I140 -> $/lb
A136: ='[1]Master Prices'!A141 -> Sodium carbonate | B136: ='[1]Master Prices'!B141 -> 0 | C136: ='[1]Master Prices'!C141 -> KSU ration (Apr 2015) | D136: ='[1]Master Prices'!D141 -> 0 | E136: ='[1]Master Prices'!E141 -> Assumes 1% increase | F136: ='[1]Master Prices'!F141 -> 0 | G136: ='[1]Master Prices'!G141 -> 0 | H136: ='[1]Master Prices'!H141 -> Assumes 2% increase | I136: ='[1]Master Prices'!I141 -> $/lb
A137: ='[1]Master Prices'!A142 -> Sodium bicarbonate | B137: ='[1]Master Prices'!B142 -> 0 | C137: ='[1]Master Prices'!C142 -> KSU ration (Apr 2015) | D137: ='[1]Master Prices'!D142 -> 0 | E137: ='[1]Master Prices'!E142 -> Assumes 1% increase | F137: ='[1]Master Prices'!F142 -> 0 | G137: ='[1]Master Prices'!G142 -> 0 | H137: ='[1]Master Prices'!H142 -> Assumes 2% increase | I137: ='[1]Master Prices'!I142 -> $/lb
A138: ='[1]Master Prices'!A143 -> Sodium chloride | B138: ='[1]Master Prices'!B143 -> 0.058 | C138: ='[1]Master Prices'!C143 -> KSU ration (Apr 2015) | D138: ='[1]Master Prices'!D143 -> 0.05858 | E138: ='[1]Master Prices'!E143 -> Assumes 1% increase | F138: ='[1]Master Prices'!F143 -> 0 | G138: ='[1]Master Prices'!G143 -> 0.05916 | H138: ='[1]Master Prices'!H143 -> Assumes 2% increase | I138: ='[1]Master Prices'!I143 -> $/lb
A139: ='[1]Master Prices'!A144 -> Sodium phosphate, monobasic | B139: ='[1]Master Prices'!B144 -> 0 | C139: ='[1]Master Prices'!C144 -> KSU ration (Apr 2015) | D139: ='[1]Master Prices'!D144 -> 0 | E139: ='[1]Master Prices'!E144 -> Assumes 1% increase | F139: ='[1]Master Prices'!F144 -> 0 | G139: ='[1]Master Prices'!G144 -> 0 | H139: ='[1]Master Prices'!H144 -> Assumes 2% increase | I139: ='[1]Master Prices'!I144 -> $/lb
A140: ='[1]Master Prices'!A145 -> Sodium sulfate, decahydrate | B140: ='[1]Master Prices'!B145 -> 0 | C140: ='[1]Master Prices'!C145 -> KSU ration (Apr 2015) | D140: ='[1]Master Prices'!D145 -> 0 | E140: ='[1]Master Prices'!E145 -> Assumes 1% increase | F140: ='[1]Master Prices'!F145 -> 0 | G140: ='[1]Master Prices'!G145 -> 0 | H140: ='[1]Master Prices'!H145 -> Assumes 2% increase | I140: ='[1]Master Prices'!I145 -> $/lb
A141: ='[1]Master Prices'!A146 -> L-Lys-HCL | B141: ='[1]Master Prices'!B146 -> 0.909 | C141: ='[1]Master Prices'!C146 -> KSU ration (Apr 2015) | D141: ='[1]Master Prices'!D146 -> 0.91809 | E141: ='[1]Master Prices'!E146 -> Assumes 1% increase | F141: ='[1]Master Prices'!F146 -> 0 | G141: ='[1]Master Prices'!G146 -> 0.92718 | H141: ='[1]Master Prices'!H146 -> Assumes 2% increase | I141: ='[1]Master Prices'!I146 -> $/lb
A142: ='[1]Master Prices'!A147 -> DL-Met | B142: ='[1]Master Prices'!B147 -> 4.359 | C142: ='[1]Master Prices'!C147 -> KSU ration (Apr 2015) | D142: ='[1]Master Prices'!D147 -> 4.40259 | E142: ='[1]Master Prices'!E147 -> Assumes 1% increase | F142: ='[1]Master Prices'!F147 -> 0 | G142: ='[1]Master Prices'!G147 -> 4.44618 | H142: ='[1]Master Prices'!H147 -> Assumes 2% increase | I142: ='[1]Master Prices'!I147 -> $/lb
A143: ='[1]Master Prices'!A148 -> L-Thr | B143: ='[1]Master Prices'!B148 -> 3.5102 | C143: ='[1]Master Prices'!C148 -> KSU ration (Apr 2015) | D143: ='[1]Master Prices'!D148 -> 3.545302 | E143: ='[1]Master Prices'!E148 -> Assumes 1% increase | F143: ='[1]Master Prices'!F148 -> 0 | G143: ='[1]Master Prices'!G148 -> 3.580404 | H143: ='[1]Master Prices'!H148 -> Assumes 2% increase | I143: ='[1]Master Prices'!I148 -> $/lb
A144: ='[1]Master Prices'!A149 -> L-Trp | B144: ='[1]Master Prices'!B149 -> 0 | C144: ='[1]Master Prices'!C149 -> KSU ration (Apr 2015) | D144: ='[1]Master Prices'!D149 -> 0 | E144: ='[1]Master Prices'!E149 -> Assumes 1% increase | F144: ='[1]Master Prices'!F149 -> 0 | G144: ='[1]Master Prices'!G149 -> 0 | H144: ='[1]Master Prices'!H149 -> Assumes 2% increase | I144: ='[1]Master Prices'!I149 -> $/lb
A145: ='[1]Master Prices'!A150 -> L-Val | B145: ='[1]Master Prices'!B150 -> 7 | C145: ='[1]Master Prices'!C150 -> KSU ration (Apr 2015) | D145: ='[1]Master Prices'!D150 -> 7.07 | E145: ='[1]Master Prices'!E150 -> Assumes 1% increase | F145: ='[1]Master Prices'!F150 -> 0 | G145: ='[1]Master Prices'!G150 -> 7.14 | H145: ='[1]Master Prices'!H150 -> Assumes 2% increase | I145: ='[1]Master Prices'!I150 -> $/lb
A146: ='[1]Master Prices'!A151 -> L-Ileu | B146: ='[1]Master Prices'!B151 -> 7 | C146: ='[1]Master Prices'!C151 -> KSU ration (Apr 2015) | D146: ='[1]Master Prices'!D151 -> 7.07 | E146: ='[1]Master Prices'!E151 -> Assumes 1% increase | F146: ='[1]Master Prices'!F151 -> 0 | G146: ='[1]Master Prices'!G151 -> 7.14 | H146: ='[1]Master Prices'!H151 -> Assumes 2% increase | I146: ='[1]Master Prices'!I151 -> $/lb
A147: ='[1]Master Prices'!A152 -> Methionine hydroxy analog | B147: ='[1]Master Prices'!B152 -> 1.2 | C147: ='[1]Master Prices'!C152 -> KSU ration (Apr 2015) | D147: ='[1]Master Prices'!D152 -> 1.212 | E147: ='[1]Master Prices'!E152 -> Assumes 1% increase | F147: ='[1]Master Prices'!F152 -> 0 | G147: ='[1]Master Prices'!G152 -> 1.224 | H147: ='[1]Master Prices'!H152 -> Assumes 2% increase | I147: ='[1]Master Prices'!I152 -> $/lb
A148: ='[1]Master Prices'!A153 -> Glutamine | B148: ='[1]Master Prices'!B153 -> 0 | C148: ='[1]Master Prices'!C153 -> KSU ration (Apr 2015) | D148: ='[1]Master Prices'!D153 -> 0 | E148: ='[1]Master Prices'!E153 -> Assumes 1% increase | F148: ='[1]Master Prices'!F153 -> 0 | G148: ='[1]Master Prices'!G153 -> 0 | H148: ='[1]Master Prices'!H153 -> Assumes 2% increase | I148: ='[1]Master Prices'!I153 -> $/lb
A149: ='[1]Master Prices'!A154 -> Glutamic acid | B149: ='[1]Master Prices'!B154 -> 0 | C149: ='[1]Master Prices'!C154 -> KSU ration (Apr 2015) | D149: ='[1]Master Prices'!D154 -> 0 | E149: ='[1]Master Prices'!E154 -> Assumes 1% increase | F149: ='[1]Master Prices'!F154 -> 0 | G149: ='[1]Master Prices'!G154 -> 0 | H149: ='[1]Master Prices'!H154 -> Assumes 2% increase | I149: ='[1]Master Prices'!I154 -> $/lb
A150: ='[1]Master Prices'!A155 -> Biolys | B150: ='[1]Master Prices'!B155 -> 0.7 | C150: ='[1]Master Prices'!C155 -> KSU ration (Apr 2015) | D150: ='[1]Master Prices'!D155 -> 0.707 | E150: ='[1]Master Prices'!E155 -> Assumes 1% increase | F150: ='[1]Master Prices'!F155 -> 0 | G150: ='[1]Master Prices'!G155 -> 0.714 | H150: ='[1]Master Prices'!H155 -> Assumes 2% increase | I150: ='[1]Master Prices'!I155 -> $/lb
A151: ='[1]Master Prices'!A156 -> Liquid lysine 60% | B151: ='[1]Master Prices'!B156 -> 0.6 | C151: ='[1]Master Prices'!C156 -> KSU ration (Apr 2015) | D151: ='[1]Master Prices'!D156 -> 0.606 | E151: ='[1]Master Prices'!E156 -> Assumes 1% increase | F151: ='[1]Master Prices'!F156 -> 0 | G151: ='[1]Master Prices'!G156 -> 0.612 | H151: ='[1]Master Prices'!H156 -> Assumes 2% increase | I151: ='[1]Master Prices'!I156 -> $/lb
A152: ='[1]Master Prices'!A157 -> MHA dry | B152: ='[1]Master Prices'!B157 -> 2.2 | C152: ='[1]Master Prices'!C157 -> KSU ration (Apr 2015) | D152: ='[1]Master Prices'!D157 -> 2.222 | E152: ='[1]Master Prices'!E157 -> Assumes 1% increase | F152: ='[1]Master Prices'!F157 -> 0 | G152: ='[1]Master Prices'!G157 -> 2.244 | H152: ='[1]Master Prices'!H157 -> Assumes 2% increase | I152: ='[1]Master Prices'!I157 -> $/lb
A153: ='[1]Master Prices'!A158 -> Ractopamine 9 g/lb | B153: ='[1]Master Prices'!B158 -> 37 | C153: ='[1]Master Prices'!C158 -> KSU ration (Apr 2015) | D153: ='[1]Master Prices'!D158 -> 37.37 | E153: ='[1]Master Prices'!E158 -> Assumes 1% increase | F153: ='[1]Master Prices'!F158 -> 0 | G153: ='[1]Master Prices'!G158 -> 37.74 | H153: ='[1]Master Prices'!H158 -> Assumes 2% increase | I153: ='[1]Master Prices'!I158 -> $/lb
A154: ='[1]Master Prices'!A159 -> Phase 2 supplement (PEP2) | B154: ='[1]Master Prices'!B159 -> 0.45 | C154: ='[1]Master Prices'!C159 -> KSU ration (Apr 2015) | D154: ='[1]Master Prices'!D159 -> 0.4545 | E154: ='[1]Master Prices'!E159 -> Assumes 1% increase | F154: ='[1]Master Prices'!F159 -> 0 | G154: ='[1]Master Prices'!G159 -> 0.459 | H154: ='[1]Master Prices'!H159 -> Assumes 2% increase | I154: ='[1]Master Prices'!I159 -> $/lb
A155: ='[1]Master Prices'!A160 -> 2007 Starter base mix | B155: ='[1]Master Prices'!B160 -> 0.36 | C155: ='[1]Master Prices'!C160 -> KSU ration (Apr 2015) | D155: ='[1]Master Prices'!D160 -> 0.3636 | E155: ='[1]Master Prices'!E160 -> Assumes 1% increase | F155: ='[1]Master Prices'!F160 -> 0 | G155: ='[1]Master Prices'!G160 -> 0.3672 | H155: ='[1]Master Prices'!H160 -> Assumes 2% increase | I155: ='[1]Master Prices'!I160 -> $/lb
A156: ='[1]Master Prices'!A161 -> 2007 Grow-finish base mix | B156: ='[1]Master Prices'!B161 -> 0.22 | C156: ='[1]Master Prices'!C161 -> KSU ration (Apr 2015) | D156: ='[1]Master Prices'!D161 -> 0.2222 | E156: ='[1]Master Prices'!E161 -> Assumes 1% increase | F156: ='[1]Master Prices'!F161 -> 0 | G156: ='[1]Master Prices'!G161 -> 0.2244 | H156: ='[1]Master Prices'!H161 -> Assumes 2% increase | I156: ='[1]Master Prices'!I161 -> $/lb
A157: ='[1]Master Prices'!A162 -> Developer base mix | B157: ='[1]Master Prices'!B162 -> 0.2 | C157: ='[1]Master Prices'!C162 -> KSU ration (Apr 2015) | D157: ='[1]Master Prices'!D162 -> 0.202 | E157: ='[1]Master Prices'!E162 -> Assumes 1% increase | F157: ='[1]Master Prices'!F162 -> 0 | G157: ='[1]Master Prices'!G162 -> 0.204 | H157: ='[1]Master Prices'!H162 -> Assumes 2% increase | I157: ='[1]Master Prices'!I162 -> $/lb
A158: ='[1]Master Prices'!A163 -> 2007 Sow base mix | B158: ='[1]Master Prices'!B163 -> 0.22 | C158: ='[1]Master Prices'!C163 -> KSU ration (Apr 2015) | D158: ='[1]Master Prices'!D163 -> 0.2222 | E158: ='[1]Master Prices'!E163 -> Assumes 1% increase | F158: ='[1]Master Prices'!F163 -> 0 | G158: ='[1]Master Prices'!G163 -> 0.2244 | H158: ='[1]Master Prices'!H163 -> Assumes 2% increase | I158: ='[1]Master Prices'!I163 -> $/lb
A159: ='[1]Master Prices'!A164 -> Vitamin premix with phytase | B159: ='[1]Master Prices'!B164 -> 0.677 | C159: ='[1]Master Prices'!C164 -> KSU ration (Apr 2015) | D159: ='[1]Master Prices'!D164 -> 0.68377 | E159: ='[1]Master Prices'!E164 -> Assumes 1% increase | F159: ='[1]Master Prices'!F164 -> 0 | G159: ='[1]Master Prices'!G164 -> 0.69054 | H159: ='[1]Master Prices'!H164 -> Assumes 2% increase | I159: ='[1]Master Prices'!I164 -> $/lb
A160: ='[1]Master Prices'!A165 -> Trace mineral premix | B160: ='[1]Master Prices'!B165 -> 0.41 | C160: ='[1]Master Prices'!C165 -> KSU ration (Apr 2015) | D160: ='[1]Master Prices'!D165 -> 0.4141 | E160: ='[1]Master Prices'!E165 -> Assumes 1% increase | F160: ='[1]Master Prices'!F165 -> 0 | G160: ='[1]Master Prices'!G165 -> 0.4182 | H160: ='[1]Master Prices'!H165 -> Assumes 2% increase | I160: ='[1]Master Prices'!I165 -> $/lb
A161: ='[1]Master Prices'!A166 -> Sow add pack | B161: ='[1]Master Prices'!B166 -> 1.7 | C161: ='[1]Master Prices'!C166 -> KSU ration (Apr 2015) | D161: ='[1]Master Prices'!D166 -> 1.717 | E161: ='[1]Master Prices'!E166 -> Assumes 1% increase | F161: ='[1]Master Prices'!F166 -> 0 | G161: ='[1]Master Prices'!G166 -> 1.734 | H161: ='[1]Master Prices'!H166 -> Assumes 2% increase | I161: ='[1]Master Prices'!I166 -> $/lb
A162: ='[1]Master Prices'!A167 -> Vitamin premix without phytase | B162: ='[1]Master Prices'!B167 -> 0.9 | C162: ='[1]Master Prices'!C167 -> KSU ration (Apr 2015) | D162: ='[1]Master Prices'!D167 -> 0.909 | E162: ='[1]Master Prices'!E167 -> Assumes 1% increase | F162: ='[1]Master Prices'!F167 -> 0 | G162: ='[1]Master Prices'!G167 -> 0.918 | H162: ='[1]Master Prices'!H167 -> Assumes 2% increase | I162: ='[1]Master Prices'!I167 -> $/lb
A163: ='[1]Master Prices'!A168 -> GF DDGS Base Mix | B163: ='[1]Master Prices'!B168 -> 0.25 | C163: ='[1]Master Prices'!C168 -> KSU ration (Apr 2015) | D163: ='[1]Master Prices'!D168 -> 0.2525 | E163: ='[1]Master Prices'!E168 -> Assumes 1% increase | F163: ='[1]Master Prices'!F168 -> 0 | G163: ='[1]Master Prices'!G168 -> 0.255 | H163: ='[1]Master Prices'!H168 -> Assumes 2% increase | I163: ='[1]Master Prices'!I168 -> $/lb
A164: ='[1]Master Prices'!A169 -> GF synthetics Base Mix | B164: ='[1]Master Prices'!B169 -> 0.3 | C164: ='[1]Master Prices'!C169 -> KSU ration (Apr 2015) | D164: ='[1]Master Prices'!D169 -> 0.303 | E164: ='[1]Master Prices'!E169 -> Assumes 1% increase | F164: ='[1]Master Prices'!F169 -> 0 | G164: ='[1]Master Prices'!G169 -> 0.306 | H164: ='[1]Master Prices'!H169 -> Assumes 2% increase | I164: ='[1]Master Prices'!I169 -> $/lb
A165: ='[1]Master Prices'!A170 -> Choline chloride 60% | B165: ='[1]Master Prices'!B170 -> 0.6 | C165: ='[1]Master Prices'!C170 -> KSU ration (Apr 2015) | D165: ='[1]Master Prices'!D170 -> 0.606 | E165: ='[1]Master Prices'!E170 -> Assumes 1% increase | F165: ='[1]Master Prices'!F170 -> 0 | G165: ='[1]Master Prices'!G170 -> 0.612 | H165: ='[1]Master Prices'!H170 -> Assumes 2% increase | I165: ='[1]Master Prices'!I170 -> $/lb
A166: ='[1]Master Prices'!A171 -> Natuphos 600 | B166: ='[1]Master Prices'!B171 -> 0 | C166: ='[1]Master Prices'!C171 -> KSU ration (Apr 2015) | D166: ='[1]Master Prices'!D171 -> 0 | E166: ='[1]Master Prices'!E171 -> Assumes 1% increase | F166: ='[1]Master Prices'!F171 -> 0 | G166: ='[1]Master Prices'!G171 -> 0 | H166: ='[1]Master Prices'!H171 -> Assumes 2% increase | I166: ='[1]Master Prices'!I171 -> $/lb
A167: ='[1]Master Prices'!A172 -> Natuphos 1200 | B167: ='[1]Master Prices'!B172 -> 0 | C167: ='[1]Master Prices'!C172 -> KSU ration (Apr 2015) | D167: ='[1]Master Prices'!D172 -> 0 | E167: ='[1]Master Prices'!E172 -> Assumes 1% increase | F167: ='[1]Master Prices'!F172 -> 0 | G167: ='[1]Master Prices'!G172 -> 0 | H167: ='[1]Master Prices'!H172 -> Assumes 2% increase | I167: ='[1]Master Prices'!I172 -> $/lb
A168: ='[1]Master Prices'!A173 -> Optiphos 2000 | B168: ='[1]Master Prices'!B173 -> 0 | C168: ='[1]Master Prices'!C173 -> KSU ration (Apr 2015) | D168: ='[1]Master Prices'!D173 -> 0 | E168: ='[1]Master Prices'!E173 -> Assumes 1% increase | F168: ='[1]Master Prices'!F173 -> 0 | G168: ='[1]Master Prices'!G173 -> 0 | H168: ='[1]Master Prices'!H173 -> Assumes 2% increase | I168: ='[1]Master Prices'!I173 -> $/lb
A169: ='[1]Master Prices'!A174 -> Phyzyme 1200 | B169: ='[1]Master Prices'!B174 -> 0 | C169: ='[1]Master Prices'!C174 -> KSU ration (Apr 2015) | D169: ='[1]Master Prices'!D174 -> 0 | E169: ='[1]Master Prices'!E174 -> Assumes 1% increase | F169: ='[1]Master Prices'!F174 -> 0 | G169: ='[1]Master Prices'!G174 -> 0 | H169: ='[1]Master Prices'!H174 -> Assumes 2% increase | I169: ='[1]Master Prices'!I174 -> $/lb
A170: ='[1]Master Prices'!A175 -> Phyzyme 5000 | B170: ='[1]Master Prices'!B175 -> 0 | C170: ='[1]Master Prices'!C175 -> KSU ration (Apr 2015) | D170: ='[1]Master Prices'!D175 -> 0 | E170: ='[1]Master Prices'!E175 -> Assumes 1% increase | F170: ='[1]Master Prices'!F175 -> 0 | G170: ='[1]Master Prices'!G175 -> 0 | H170: ='[1]Master Prices'!H175 -> Assumes 2% increase | I170: ='[1]Master Prices'!I175 -> $/lb
A171: ='[1]Master Prices'!A176 -> Ronozyme CT (10,000) | B171: ='[1]Master Prices'!B176 -> 0 | C171: ='[1]Master Prices'!C176 -> KSU ration (Apr 2015) | D171: ='[1]Master Prices'!D176 -> 0 | E171: ='[1]Master Prices'!E176 -> Assumes 1% increase | F171: ='[1]Master Prices'!F176 -> 0 | G171: ='[1]Master Prices'!G176 -> 0 | H171: ='[1]Master Prices'!H176 -> Assumes 2% increase | I171: ='[1]Master Prices'!I176 -> $/lb
A172: ='[1]Master Prices'!A177 -> Ronozyme M (50,000) | B172: ='[1]Master Prices'!B177 -> 0 | C172: ='[1]Master Prices'!C177 -> KSU ration (Apr 2015) | D172: ='[1]Master Prices'!D177 -> 0 | E172: ='[1]Master Prices'!E177 -> Assumes 1% increase | F172: ='[1]Master Prices'!F177 -> 0 | G172: ='[1]Master Prices'!G177 -> 0 | H172: ='[1]Master Prices'!H177 -> Assumes 2% increase | I172: ='[1]Master Prices'!I177 -> $/lb
A173: ='[1]Master Prices'!A178 -> Ronozyme PMX PLT (4625 FYT/g) | B173: ='[1]Master Prices'!B178 -> 0.8332 | C173: ='[1]Master Prices'!C178 -> KSU ration (Apr 2015) | D173: ='[1]Master Prices'!D178 -> 0.841532 | E173: ='[1]Master Prices'!E178 -> Assumes 1% increase | F173: ='[1]Master Prices'!F178 -> 0 | G173: ='[1]Master Prices'!G178 -> 0.849864 | H173: ='[1]Master Prices'!H178 -> Assumes 2% increase | I173: ='[1]Master Prices'!I178 -> $/lb
A174: ='[1]Master Prices'!A179 -> Zinc oxide | B174: ='[1]Master Prices'!B179 -> 1.1 | C174: ='[1]Master Prices'!C179 -> KSU ration (Apr 2015) | D174: ='[1]Master Prices'!D179 -> 1.111 | E174: ='[1]Master Prices'!E179 -> Assumes 1% increase | F174: ='[1]Master Prices'!F179 -> 0 | G174: ='[1]Master Prices'!G179 -> 1.122 | H174: ='[1]Master Prices'!H179 -> Assumes 2% increase | I174: ='[1]Master Prices'!I179 -> $/lb
A175: ='[1]Master Prices'!A180 -> Copper sulfate | B175: ='[1]Master Prices'!B180 -> 1.1 | C175: ='[1]Master Prices'!C180 -> KSU ration (Apr 2015) | D175: ='[1]Master Prices'!D180 -> 1.111 | E175: ='[1]Master Prices'!E180 -> Assumes 1% increase | F175: ='[1]Master Prices'!F180 -> 0 | G175: ='[1]Master Prices'!G180 -> 1.122 | H175: ='[1]Master Prices'!H180 -> Assumes 2% increase | I175: ='[1]Master Prices'!I180 -> $/lb
A176: ='[1]Master Prices'!A181 -> Potassium chloride | B176: ='[1]Master Prices'!B181 -> 0.175 | C176: ='[1]Master Prices'!C181 -> KSU ration (Apr 2015) | D176: ='[1]Master Prices'!D181 -> 0.17675 | E176: ='[1]Master Prices'!E181 -> Assumes 1% increase | F176: ='[1]Master Prices'!F181 -> 0 | G176: ='[1]Master Prices'!G181 -> 0.1785 | H176: ='[1]Master Prices'!H181 -> Assumes 2% increase | I176: ='[1]Master Prices'!I181 -> $/lb
A177: ='[1]Master Prices'!A182 -> Calcium chloride | B177: ='[1]Master Prices'!B182 -> 0.2 | C177: ='[1]Master Prices'!C182 -> KSU ration (Apr 2015) | D177: ='[1]Master Prices'!D182 -> 0.202 | E177: ='[1]Master Prices'!E182 -> Assumes 1% increase | F177: ='[1]Master Prices'!F182 -> 0 | G177: ='[1]Master Prices'!G182 -> 0.204 | H177: ='[1]Master Prices'!H182 -> Assumes 2% increase | I177: ='[1]Master Prices'!I182 -> $/lb
A178: ='[1]Master Prices'!A183 -> Acidifier | B178: ='[1]Master Prices'!B183 -> 1 | C178: ='[1]Master Prices'!C183 -> KSU ration (Apr 2015) | D178: ='[1]Master Prices'!D183 -> 1.01 | E178: ='[1]Master Prices'!E183 -> Assumes 1% increase | F178: ='[1]Master Prices'!F183 -> 0 | G178: ='[1]Master Prices'!G183 -> 1.02 | H178: ='[1]Master Prices'!H183 -> Assumes 2% increase | I178: ='[1]Master Prices'!I183 -> $/lb
A179: ='[1]Master Prices'!A184 -> Vitamin E, 20,000 IU | B179: ='[1]Master Prices'!B184 -> 0.4 | C179: ='[1]Master Prices'!C184 -> KSU ration (Apr 2015) | D179: ='[1]Master Prices'!D184 -> 0.404 | E179: ='[1]Master Prices'!E184 -> Assumes 1% increase | F179: ='[1]Master Prices'!F184 -> 0 | G179: ='[1]Master Prices'!G184 -> 0.408 | H179: ='[1]Master Prices'!H184 -> Assumes 2% increase | I179: ='[1]Master Prices'!I184 -> $/lb
A180: ='[1]Master Prices'!A185 -> Phase 2 supplement D | B180: ='[1]Master Prices'!B185 -> 0.4 | C180: ='[1]Master Prices'!C185 -> KSU ration (Apr 2015) | D180: ='[1]Master Prices'!D185 -> 0.404 | E180: ='[1]Master Prices'!E185 -> Assumes 1% increase | F180: ='[1]Master Prices'!F185 -> 0 | G180: ='[1]Master Prices'!G185 -> 0.408 | H180: ='[1]Master Prices'!H185 -> Assumes 2% increase | I180: ='[1]Master Prices'!I185 -> $/lb
A181: ='[1]Master Prices'!A186 -> DPS 50 | B181: ='[1]Master Prices'!B186 -> 0.5 | C181: ='[1]Master Prices'!C186 -> KSU ration (Apr 2015) | D181: ='[1]Master Prices'!D186 -> 0.505 | E181: ='[1]Master Prices'!E186 -> Assumes 1% increase | F181: ='[1]Master Prices'!F186 -> 0 | G181: ='[1]Master Prices'!G186 -> 0.51 | H181: ='[1]Master Prices'!H186 -> Assumes 2% increase | I181: ='[1]Master Prices'!I186 -> $/lb
A182: ='[1]Master Prices'!A187 -> PEP2+ | B182: ='[1]Master Prices'!B187 -> 0.6 | C182: ='[1]Master Prices'!C187 -> KSU ration (Apr 2015) | D182: ='[1]Master Prices'!D187 -> 0.606 | E182: ='[1]Master Prices'!E187 -> Assumes 1% increase | F182: ='[1]Master Prices'!F187 -> 0 | G182: ='[1]Master Prices'!G187 -> 0.612 | H182: ='[1]Master Prices'!H187 -> Assumes 2% increase | I182: ='[1]Master Prices'!I187 -> $/lb
A183: ='[1]Master Prices'!A188 -> PEP NS | B183: ='[1]Master Prices'!B188 -> 0.5 | C183: ='[1]Master Prices'!C188 -> KSU ration (Apr 2015) | D183: ='[1]Master Prices'!D188 -> 0.505 | E183: ='[1]Master Prices'!E188 -> Assumes 1% increase | F183: ='[1]Master Prices'!F188 -> 0 | G183: ='[1]Master Prices'!G188 -> 0.51 | H183: ='[1]Master Prices'!H188 -> Assumes 2% increase | I183: ='[1]Master Prices'!I188 -> $/lb
A184: ='[1]Master Prices'!A189 -> Natural vitamin E 20,000 IU/lb | B184: ='[1]Master Prices'!B189 -> 9.4375 | C184: ='[1]Master Prices'!C189 -> KSU ration (Apr 2015) | D184: ='[1]Master Prices'!D189 -> 9.531875 | E184: ='[1]Master Prices'!E189 -> Assumes 1% increase | F184: ='[1]Master Prices'!F189 -> 0 | G184: ='[1]Master Prices'!G189 -> 9.62625 | H184: ='[1]Master Prices'!H189 -> Assumes 2% increase | I184: ='[1]Master Prices'!I189 -> $/lb
A185: ='[1]Master Prices'!A190 -> Other ingredient | B185: ='[1]Master Prices'!B190 -> 0 | C185: ='[1]Master Prices'!C190 -> 0 | D185: ='[1]Master Prices'!D190 -> 0 | E185: ='[1]Master Prices'!E190 -> 0 | F185: ='[1]Master Prices'!F190 -> 0 | G185: ='[1]Master Prices'!G190 -> 0 | H185: ='[1]Master Prices'!H190 -> 0 | I185: ='[1]Master Prices'!I190 -> $/lb
A186: ='[1]Master Prices'!A191 -> Corn DDGS, 10.5% Oil | B186: ='[1]Master Prices'!B191 -> 0.125 | C186: ='[1]Master Prices'!C191 -> 0 | D186: ='[1]Master Prices'!D191 -> 0.12625 | E186: ='[1]Master Prices'!E191 -> 0 | F186: ='[1]Master Prices'!F191 -> 0 | G186: ='[1]Master Prices'!G191 -> 0.1275 | H186: ='[1]Master Prices'!H191 -> 0 | I186: ='[1]Master Prices'!I191 -> $/lb
A187: ='[1]Master Prices'!A192 -> Corn DDGS, 7.5% Oil | B187: ='[1]Master Prices'!B192 -> 0.08375 | C187: ='[1]Master Prices'!C192 -> USDA St. Joseph, MO NW_GR112 Report (http://www.ams.usda.gov/mnreports/nw_gr112.txt) | D187: ='[1]Master Prices'!D192 -> 0.0845875 | E187: ='[1]Master Prices'!E192 -> 0 | F187: ='[1]Master Prices'!F192 -> 0 | G187: ='[1]Master Prices'!G192 -> 0.085425 | H187: ='[1]Master Prices'!H192 -> Adjust off of Corn Price | I187: ='[1]Master Prices'!I192 -> $/lb
A188: ='[1]Master Prices'!A193 -> Corn DDGS, 4.5% Oil | B188: ='[1]Master Prices'!B193 -> 0.125 | C188: ='[1]Master Prices'!C193 -> 0 | D188: ='[1]Master Prices'!D193 -> 0.12625 | E188: ='[1]Master Prices'!E193 -> 0 | F188: ='[1]Master Prices'!F193 -> 0 | G188: ='[1]Master Prices'!G193 -> 0.1275 | H188: ='[1]Master Prices'!H193 -> 0 | I188: ='[1]Master Prices'!I193 -> $/lb
A189: ='[1]Master Prices'!A194 -> Denegard | B189: ='[1]Master Prices'!B194 -> 4.7286 | C189: ='[1]Master Prices'!C194 -> KSU ration (Apr 2015) | D189: ='[1]Master Prices'!D194 -> 4.775886 | E189: ='[1]Master Prices'!E194 -> Assumes 1% increase | F189: ='[1]Master Prices'!F194 -> 0 | G189: ='[1]Master Prices'!G194 -> 4.823172 | H189: ='[1]Master Prices'!H194 -> Assumes 2% increase | I189: ='[1]Master Prices'!I194 -> $/lb
A190: ='[1]Master Prices'!A195 -> CTC 50 | B190: ='[1]Master Prices'!B195 -> 1.44 | C190: ='[1]Master Prices'!C195 -> KSU ration (Apr 2015) | D190: ='[1]Master Prices'!D195 -> 1.4544 | E190: ='[1]Master Prices'!E195 -> Assumes 1% increase | F190: ='[1]Master Prices'!F195 -> 0 | G190: ='[1]Master Prices'!G195 -> 1.4688 | H190: ='[1]Master Prices'!H195 -> Assumes 2% increase | I190: ='[1]Master Prices'!I195 -> $/lb
A191: ='[1]Master Prices'!A196 -> Bentonite | B191: ='[1]Master Prices'!B196 -> 0.15 | C191: ='[1]Master Prices'!C196 -> KSU ration (Apr 2015) | D191: ='[1]Master Prices'!D196 -> 0.1515 | E191: ='[1]Master Prices'!E196 -> Assumes 1% increase | F191: ='[1]Master Prices'!F196 -> 0 | G191: ='[1]Master Prices'!G196 -> 0.153 | H191: ='[1]Master Prices'!H196 -> Assumes 2% increase | I191: ='[1]Master Prices'!I196 -> $/lb
A192: ='[1]Master Prices'!A197 -> Phase 2 supplement (Feb, 2014) | B192: ='[1]Master Prices'!B197 -> 0.7362 | C192: ='[1]Master Prices'!C197 -> KSU ration (Apr 2015) | D192: ='[1]Master Prices'!D197 -> 0.743562 | E192: ='[1]Master Prices'!E197 -> Assumes 1% increase | F192: ='[1]Master Prices'!F197 -> 0 | G192: ='[1]Master Prices'!G197 -> 0.750924 | H192: ='[1]Master Prices'!H197 -> Assumes 2% increase | I192: ='[1]Master Prices'!I197 -> $/lb
A193: ='[1]Master Prices'!A198 -> Other ingredient | B193: ='[1]Master Prices'!B198 -> 0 | C193: ='[1]Master Prices'!C198 -> KSU ration (Apr 2015) | D193: ='[1]Master Prices'!D198 -> 0 | E193: ='[1]Master Prices'!E198 -> Assumes 1% increase | F193: ='[1]Master Prices'!F198 -> 0 | G193: ='[1]Master Prices'!G198 -> 0 | H193: ='[1]Master Prices'!H198 -> Assumes 2% increase | I193: ='[1]Master Prices'!I198 -> $/lb
A194: ='[1]Master Prices'!A199 -> Other ingredient | B194: ='[1]Master Prices'!B199 -> 0 | C194: ='[1]Master Prices'!C199 -> KSU ration (Apr 2015) | D194: ='[1]Master Prices'!D199 -> 0 | E194: ='[1]Master Prices'!E199 -> Assumes 1% increase | F194: ='[1]Master Prices'!F199 -> 0 | G194: ='[1]Master Prices'!G199 -> 0 | H194: ='[1]Master Prices'!H199 -> Assumes 2% increase | I194: ='[1]Master Prices'!I199 -> $/lb
A195: ='[1]Master Prices'!A200 -> Other ingredient | B195: ='[1]Master Prices'!B200 -> 0 | C195: ='[1]Master Prices'!C200 -> KSU ration (Apr 2015) | D195: ='[1]Master Prices'!D200 -> 0 | E195: ='[1]Master Prices'!E200 -> Assumes 1% increase | F195: ='[1]Master Prices'!F200 -> 0 | G195: ='[1]Master Prices'!G200 -> 0 | H195: ='[1]Master Prices'!H200 -> Assumes 2% increase | I195: ='[1]Master Prices'!I200 -> $/lb
A196: ='[1]Master Prices'!A201 -> Other ingredient | B196: ='[1]Master Prices'!B201 -> 0 | C196: ='[1]Master Prices'!C201 -> KSU ration (Apr 2015) | D196: ='[1]Master Prices'!D201 -> 0 | E196: ='[1]Master Prices'!E201 -> Assumes 1% increase | F196: ='[1]Master Prices'!F201 -> 0 | G196: ='[1]Master Prices'!G201 -> 0 | H196: ='[1]Master Prices'!H201 -> Assumes 2% increase | I196: ='[1]Master Prices'!I201 -> $/lb
A197: ='[1]Master Prices'!A202 -> Other ingredient | B197: ='[1]Master Prices'!B202 -> 0 | C197: ='[1]Master Prices'!C202 -> KSU ration (Apr 2015) | D197: ='[1]Master Prices'!D202 -> 0 | E197: ='[1]Master Prices'!E202 -> Assumes 1% increase | F197: ='[1]Master Prices'!F202 -> 0 | G197: ='[1]Master Prices'!G202 -> 0 | H197: ='[1]Master Prices'!H202 -> Assumes 2% increase | I197: ='[1]Master Prices'!I202 -> $/lb
A198: ='[1]Master Prices'!A203 -> Other ingredient | B198: ='[1]Master Prices'!B203 -> 0 | C198: ='[1]Master Prices'!C203 -> KSU ration (Apr 2015) | D198: ='[1]Master Prices'!D203 -> 0 | E198: ='[1]Master Prices'!E203 -> Assumes 1% increase | F198: ='[1]Master Prices'!F203 -> 0 | G198: ='[1]Master Prices'!G203 -> 0 | H198: ='[1]Master Prices'!H203 -> Assumes 2% increase | I198: ='[1]Master Prices'!I203 -> $/lb
A199: ='[1]Master Prices'!A204 -> Other ingredient | B199: ='[1]Master Prices'!B204 -> 0 | C199: ='[1]Master Prices'!C204 -> KSU ration (Apr 2015) | D199: ='[1]Master Prices'!D204 -> 0 | E199: ='[1]Master Prices'!E204 -> Assumes 1% increase | F199: ='[1]Master Prices'!F204 -> 0 | G199: ='[1]Master Prices'!G204 -> 0 | H199: ='[1]Master Prices'!H204 -> Assumes 2% increase | I199: ='[1]Master Prices'!I204 -> $/lb
A200: ='[1]Master Prices'!A205 -> Other ingredient | B200: ='[1]Master Prices'!B205 -> 0 | C200: ='[1]Master Prices'!C205 -> KSU ration (Apr 2015) | D200: ='[1]Master Prices'!D205 -> 0 | E200: ='[1]Master Prices'!E205 -> Assumes 1% increase | F200: ='[1]Master Prices'!F205 -> 0 | G200: ='[1]Master Prices'!G205 -> 0 | H200: ='[1]Master Prices'!H205 -> Assumes 2% increase | I200: ='[1]Master Prices'!I205 -> $/lb
A201: ='[1]Master Prices'!A206 -> Other ingredient | B201: ='[1]Master Prices'!B206 -> 0 | C201: ='[1]Master Prices'!C206 -> KSU ration (Apr 2015) | D201: ='[1]Master Prices'!D206 -> 0 | E201: ='[1]Master Prices'!E206 -> Assumes 1% increase | F201: ='[1]Master Prices'!F206 -> 0 | G201: ='[1]Master Prices'!G206 -> 0 | H201: ='[1]Master Prices'!H206 -> Assumes 2% increase | I201: ='[1]Master Prices'!I206 -> $/lb
... 8 more rows

Sheet Feed
A1: SWINE RATIONS TO SET FEED COSTS
A3: Ingredient | E3: Usage per pig, lb | H3: Total Useage (lbs per pig) by Production Phase/Type
B4: Price | C4: Unit | E4: Sows | F4: Nursery | G4: GF | H4: Farrow-Finish | I4: Farrow-Wean | J4: Wean-Finish | K4: Nursery | L4: Finish
A5: Corn | E5: 96.90757083 | F5: 31.02462613 | G5: 506.0257035 | H5: =SUM(E5:G5) -> 633.9579005 | I5: =E5 -> 96.90757083 | J5: =F5+G5 -> 537.0503297 | K5: =F5 -> 31.02462613 | L5: =G5 -> 506.0257035
A6: Soybean Meal, Dehull, Sol Extr | E6: 22.37742917 | F6: 16.29137387 | G6: 120.2952058 | H6: =SUM(E6:G6) -> 158.9640088 | I6: =E6 -> 22.37742917 | J6: =F6+G6 -> 136.5865797 | K6: =F6 -> 16.29137387 | L6: =G6 -> 120.2952058
A7: Corn | E7: 0 | F7: 0 | G7: 0 | H7: 0 | I7: 0 | J7: 0 | K7: 0 | L7: 0
A8: Milo | E8: 0 | F8: 0 | G8: 0 | H8: 0 | I8: 0 | J8: 0 | K8: 0 | L8: 0
A9: Alfalfa Meal | E9: 0 | F9: 0 | G9: 0 | H9: 0 | I9: 0 | J9: 0 | K9: 0 | L9: 0
A10: Bakery Meal | E10: 0 | F10: 0 | G10: 0 | H10: 0 | I10: 0 | J10: 0 | K10: 0 | L10: 0
A11: Barley | E11: 0 | F11: 0 | G11: 0 | H11: 0 | I11: 0 | J11: 0 | K11: 0 | L11: 0
A12: Barley, Hulless | E12: 0 | F12: 0 | G12: 0 | H12: 0 | I12: 0 | J12: 0 | K12: 0 | L12: 0
A13: Beans, Faba | E13: 0 | F13: 0 | G13: 0 | H13: 0 | I13: 0 | J13: 0 | K13: 0 | L13: 0
A14: Blood Meal | E14: 0 | F14: 0 | G14: 0 | H14: 0 | I14: 0 | J14: 0 | K14: 0 | L14: 0
A15: Blood Plasma | E15: 0 | F15: 0 | G15: 0 | H15: 0 | I15: 0 | J15: 0 | K15: 0 | L15: 0
A16: Brewers Grain | E16: 0 | F16: 0 | G16: 0 | H16: 0 | I16: 0 | J16: 0 | K16: 0 | L16: 0
A17: Canola, Full Fat | E17: 0 | F17: 0 | G17: 0 | H17: 0 | I17: 0 | J17: 0 | K17: 0 | L17: 0
A18: Canola Meal, Expelled | E18: 0 | F18: 0 | G18: 0 | H18: 0 | I18: 0 | J18: 0 | K18: 0 | L18: 0
A19: Canola Meal, Solvent Extracted | E19: 0 | F19: 0 | G19: 0 | H19: 0 | I19: 0 | J19: 0 | K19: 0 | L19: 0
A20: Casava Meal | E20: 0 | F20: 0 | G20: 0 | H20: 0 | I20: 0 | J20: 0 | K20: 0 | L20: 0
A21: Citrus Pulp | E21: 0 | F21: 0 | G21: 0 | H21: 0 | I21: 0 | J21: 0 | K21: 0 | L21: 0
A22: Copra Meal | E22: 0 | F22: 0 | G22: 0 | H22: 0 | I22: 0 | J22: 0 | K22: 0 | L22: 0
A23: Corn, Yellow Dent | B23: 3.73 | C23: $/bu | E23: 97.9293231 | F23: 28.49171889 | G23: 464.3919634 | H23: =SUM(E23:G23) -> 590.8130054 | I23: =E23 -> 97.9293231 | J23: =F23+G23 -> 492.8836823 | K23: =F23 -> 28.49171889 | L23: =G23 -> 464.3919634
A24: Corn, Nutridense | B24: 0.048 | E24: 0 | F24: 0 | G24: 0 | H24: 0 | I24: 0 | J24: 0 | K24: 0 | L24: 0
A25: Corn Bran | E25: 0 | F25: 0 | G25: 0 | H25: 0 | I25: 0 | J25: 0 | K25: 0 | L25: 0
A26: Corn DDG | E26: 0 | F26: 0 | G26: 0 | H26: 0 | I26: 0 | J26: 0 | K26: 0 | L26: 0
A27: Corn DDGS, >10% Oil | B27: 0.125 | E27: 0 | F27: 0 | G27: 0 | H27: 0 | I27: 0 | J27: 0 | K27: 0 | L27: 0
A28: Corn DDGS, >6 and <9% Oil | B28: 0.078 | E28: 0 | F28: 0 | G28: 0 | H28: 0 | I28: 0 | J28: 0 | K28: 0 | L28: 0
A29: Corn DDGS, <4% Oil | E29: 0 | F29: 0 | G29: 0 | H29: 0 | I29: 0 | J29: 0 | K29: 0 | L29: 0
A30: Corn HP DDG | B30: 0.06 | E30: 0 | F30: 0 | G30: 0 | H30: 0 | I30: 0 | J30: 0 | K30: 0 | L30: 0
A31: Soybean Meal, Dehull, Sol Extr | C31: $/ton | E31: 0 | F31: 0 | G31: 0 | H31: 0 | I31: 0 | J31: 0 | K31: 0 | L31: 0
A32: Soybean Meal, Dehulled, Expelled | E32: 0 | F32: 0 | G32: 0 | H32: 0 | I32: 0 | J32: 0 | K32: 0 | L32: 0
A33: Soybean Meal, Solvent Extracted | E33: 0 | F33: 0 | G33: 0 | H33: 0 | I33: 0 | J33: 0 | K33: 0 | L33: 0
A34: Corn Gluten Meal | E34: 0 | F34: 0 | G34: 0 | H34: 0 | I34: 0 | J34: 0 | K34: 0 | L34: 0
A35: Corn Grits, Hominy Feed | B35: 0.045 | E35: 0 | F35: 0 | G35: 0 | H35: 0 | I35: 0 | J35: 0 | K35: 0 | L35: 0
A36: Cotton Seeds, Fullfat | E36: 0 | F36: 0 | G36: 0 | H36: 0 | I36: 0 | J36: 0 | K36: 0 | L36: 0
A37: Cotton Seed Meal | E37: 0 | F37: 0 | G37: 0 | H37: 0 | I37: 0 | J37: 0 | K37: 0 | L37: 0
A38: Feather Meal | E38: 0 | F38: 0 | G38: 0 | H38: 0 | I38: 0 | J38: 0 | K38: 0 | L38: 0
A39: Fish Meal Combined | B39: 0.7 | E39: 0 | F39: 0 | G39: 0 | H39: 0 | I39: 0 | J39: 0 | K39: 0 | L39: 0
A40: Flaxseed | E40: 0 | F40: 0 | G40: 0 | H40: 0 | I40: 0 | J40: 0 | K40: 0 | L40: 0
A41: Flaxseed Meal | E41: 0 | F41: 0 | G41: 0 | H41: 0 | I41: 0 | J41: 0 | K41: 0 | L41: 0
A42: Lupins | E42: 0 | F42: 0 | G42: 0 | H42: 0 | I42: 0 | J42: 0 | K42: 0 | L42: 0
A43: Meat Meal | E43: 0 | F43: 0 | G43: 0 | H43: 0 | I43: 0 | J43: 0 | K43: 0 | L43: 0
A44: Meat and Bone Meal, P >4% | B44: 0.15 | E44: 0 | F44: 0 | G44: 0 | H44: 0 | I44: 0 | J44: 0 | K44: 0 | L44: 0
A45: Milk, Casein | E45: 0 | F45: 0 | G45: 0 | H45: 0 | I45: 0 | J45: 0 | K45: 0 | L45: 0
A46: Milk, Lactose | B46: 0.3 | E46: 0 | F46: 0 | G46: 0 | H46: 0 | I46: 0 | J46: 0 | K46: 0 | L46: 0
A47: Milk, Skim Milk Powder | B47: 1.2 | E47: 0 | F47: 0 | G47: 0 | H47: 0 | I47: 0 | J47: 0 | K47: 0 | L47: 0
A48: Milk, Whey Powder | B48: 0.55 | E48: 0 | F48: 0 | G48: 0 | H48: 0 | I48: 0 | J48: 0 | K48: 0 | L48: 0
A49: Milk, Whey Permeate, 85% lactose | B49: 0.45 | E49: 0 | F49: 0 | G49: 0 | H49: 0 | I49: 0 | J49: 0 | K49: 0 | L49: 0
A50: Milk, Whey Protein Concentrate | E50: 0 | F50: 0 | G50: 0 | H50: 0 | I50: 0 | J50: 0 | K50: 0 | L50: 0
A51: Millet | E51: 0 | F51: 0 | G51: 0 | H51: 0 | I51: 0 | J51: 0 | K51: 0 | L51: 0
A52: Molasses, Sugarbeet | E52: 0 | F52: 0 | G52: 0 | H52: 0 | I52: 0 | J52: 0 | K52: 0 | L52: 0
A53: Molasses, Sugarcane | E53: 0 | F53: 0 | G53: 0 | H53: 0 | I53: 0 | J53: 0 | K53: 0 | L53: 0
A54: Oats | E54: 0 | F54: 0 | G54: 0 | H54: 0 | I54: 0 | J54: 0 | K54: 0 | L54: 0
A55: Oats, Naked | E55: 0 | F55: 0 | G55: 0 | H55: 0 | I55: 0 | J55: 0 | K55: 0 | L55: 0
A56: Oat Groats | B56: 0.175 | E56: 0 | F56: 0 | G56: 0 | H56: 0 | I56: 0 | J56: 0 | K56: 0 | L56: 0
A57: Peanut Meal, Expelled | E57: 0 | F57: 0 | G57: 0 | H57: 0 | I57: 0 | J57: 0 | K57: 0 | L57: 0
A58: Peanut Meal, Extracted | E58: 0 | F58: 0 | G58: 0 | H58: 0 | I58: 0 | J58: 0 | K58: 0 | L58: 0
A59: Peas, Field Peas | B59: 0.08 | E59: 0 | F59: 0 | G59: 0 | H59: 0 | I59: 0 | J59: 0 | K59: 0 | L59: 0
A60: Pea Protein Concentrate | E60: 0 | F60: 0 | G60: 0 | H60: 0 | I60: 0 | J60: 0 | K60: 0 | L60: 0
A61: Potato Protein Concentrate | E61: 0 | F61: 0 | G61: 0 | H61: 0 | I61: 0 | J61: 0 | K61: 0 | L61: 0
A62: Poultry Byproduct | B62: 0.12 | E62: 0 | F62: 0 | G62: 0 | H62: 0 | I62: 0 | J62: 0 | K62: 0 | L62: 0
A63: Rice | E63: 0 | F63: 0 | G63: 0 | H63: 0 | I63: 0 | J63: 0 | K63: 0 | L63: 0
A64: Rice Bran | E64: 0 | F64: 0 | G64: 0 | H64: 0 | I64: 0 | J64: 0 | K64: 0 | L64: 0
A65: Rice Bran, Defatted | E65: 0 | F65: 0 | G65: 0 | H65: 0 | I65: 0 | J65: 0 | K65: 0 | L65: 0
A66: Rice, Broken | E66: 0 | F66: 0 | G66: 0 | H66: 0 | I66: 0 | J66: 0 | K66: 0 | L66: 0
A67: Rye | E67: 0 | F67: 0 | G67: 0 | H67: 0 | I67: 0 | J67: 0 | K67: 0 | L67: 0
A68: Sesame Meal | E68: 0 | F68: 0 | G68: 0 | H68: 0 | I68: 0 | J68: 0 | K68: 0 | L68: 0
A69: Sorghum | B69: 0.1 | E69: 0 | F69: 0 | G69: 0 | H69: 0 | I69: 0 | J69: 0 | K69: 0 | L69: 0
A70: Soybeans, Full Fat | B70: 0.2 | E70: 0 | F70: 0 | G70: 0 | H70: =SUM(E70:G70) -> 0 | I70: =E70 -> 0 | J70: =F70+G70 -> 0 | K70: =F70 -> 0 | L70: =G70 -> 0
A71: Soybeans, High Protein, Full Fat | E71: 0 | F71: 0 | G71: 0 | H71: 0 | I71: 0 | J71: 0 | K71: 0 | L71: 0
A72: Soybeans, Low Oligosaccharide, Full Fat | E72: 0 | F72: 0 | G72: 0 | H72: 0 | I72: 0 | J72: 0 | K72: 0 | L72: 0
A73: Soybean Meal, High Protein, Expelled | E73: 0 | F73: 0 | G73: 0 | H73: 0 | I73: 0 | J73: 0 | K73: 0 | L73: 0
A74: Soybean Meal, Low Oligosacch, Expell | E74: 0 | F74: 0 | G74: 0 | H74: 0 | I74: 0 | J74: 0 | K74: 0 | L74: 0
A75: Soybean Meal, Expelled | E75: 0 | F75: 0 | G75: 0 | H75: 0 | I75: 0 | J75: 0 | K75: 0 | L75: 0
A76: Soybean Meal, Dehulled, Expelled | B76: 0.175 | E76: 0 | F76: 0 | G76: 0 | H76: 0 | I76: 0 | J76: 0 | K76: 0 | L76: 0
A77: Soybean Meal, Solvent Extracted | B77: 0.155 | E77: 0 | F77: 0 | G77: 0 | H77: 0 | I77: 0 | J77: 0 | K77: 0 | L77: 0
A78: Soybean Meal, Dehull, Sol Extr | B78: 363.15 | C78: $/ton | E78: 22.3056769 | F78: 14.95518111 | G78: 110.143669 | H78: 147.404527 | I78: 22.3056769 | J78: 125.0988501 | K78: 14.95518111 | L78: 110.143669
A79: Soybean Meal, High Prot, Dehull, Solv Extr | B79: 0.32 | E79: 0 | F79: 0 | G79: 0 | H79: 0 | I79: 0 | J79: 0 | K79: 0 | L79: 0
A80: Soybean Meal, Enzyme Treated | B80: 0.02 | E80: 0 | F80: 0 | G80: 0 | H80: 0 | I80: 0 | J80: 0 | K80: 0 | L80: 0
A81: Soybean Meal, Fermented | B81: 0.035 | E81: 0 | F81: 0 | G81: 0 | H81: 0 | I81: 0 | J81: 0 | K81: 0 | L81: 0
A82: Soybean Hulls | B82: 0.048 | E82: 0 | F82: 0 | G82: 0 | H82: 0 | I82: 0 | J82: 0 | K82: 0 | L82: 0
A83: Soy Protein Concentrate | B83: 0.55 | E83: 0 | F83: 0 | G83: 0 | H83: 0 | I83: 0 | J83: 0 | K83: 0 | L83: 0
A84: Soy Protein Isolate | B84: 0.175 | E84: 0 | F84: 0 | G84: 0 | H84: 0 | I84: 0 | J84: 0 | K84: 0 | L84: 0
A85: Sugar Beet Pulp | B85: 0.2 | E85: 0 | F85: 0 | G85: 0 | H85: 0 | I85: 0 | J85: 0 | K85: 0 | L85: 0
A86: Sunflower, Full Fat | B86: 0 | E86: 0 | F86: 0 | G86: 0 | H86: 0 | I86: 0 | J86: 0 | K86: 0 | L86: 0
A87: Sunflower Meal, Solvent Extracted | B87: 0 | E87: 0 | F87: 0 | G87: 0 | H87: 0 | I87: 0 | J87: 0 | K87: 0 | L87: 0
A88: Sunflower Meal, Dehulled, Solvent Extr | B88: 0 | E88: 0 | F88: 0 | G88: 0 | H88: 0 | I88: 0 | J88: 0 | K88: 0 | L88: 0
A89: Triticale | B89: 0 | E89: 0 | F89: 0 | G89: 0 | H89: 0 | I89: 0 | J89: 0 | K89: 0 | L89: 0
A90: Wheat, Hard Red | B90: 0.06 | E90: 0 | F90: 0 | G90: 0 | H90: 0 | I90: 0 | J90: 0 | K90: 0 | L90: 0
A91: Wheat, Soft Red | B91: 0.45 | E91: 0 | F91: 0 | G91: 0 | H91: 0 | I91: 0 | J91: 0 | K91: 0 | L91: 0
A92: Wheat Bran | B92: 0.05 | E92: 0 | F92: 0 | G92: 0 | H92: 0 | I92: 0 | J92: 0 | K92: 0 | L92: 0
A93: Wheat Middlings | B93: 0.12 | E93: 0 | F93: 0 | G93: 0 | H93: 0 | I93: 0 | J93: 0 | K93: 0 | L93: 0
A94: Wheat Shorts | B94: 0 | E94: 0 | F94: 0 | G94: 0 | H94: 0 | I94: 0 | J94: 0 | K94: 0 | L94: 0
A95: Wheat DDGS | B95: 0 | E95: 0 | F95: 0 | G95: 0 | H95: 0 | I95: 0 | J95: 0 | K95: 0 | L95: 0
A96: Yeast, Brewers' Yeast | B96: 0 | E96: 0 | F96: 0 | G96: 0 | H96: 0 | I96: 0 | J96: 0 | K96: 0 | L96: 0
A97: Yeast, Single Cell Protein | B97: 0 | E97: 0 | F97: 0 | G97: 0 | H97: 0 | I97: 0 | J97: 0 | K97: 0 | L97: 0
A98: Beef Tallow | B98: 0.4 | E98: 0 | F98: 0 | G98: 0 | H98: 0 | I98: 0 | J98: 0 | K98: 0 | L98: 0
A99: Choice White Grease | B99: 0.42 | E99: 0 | F99: 0 | G99: 0 | H99: 0 | I99: 0 | J99: 0 | K99: 0 | L99: 0
A100: Poultry Fat | B100: 2.7 | E100: 0 | F100: 0 | G100: 0 | H100: 0 | I100: 0 | J100: 0 | K100: 0 | L100: 0
A101: Lard | B101: 1.25 | E101: 0 | F101: 0 | G101: 0 | H101: 0 | I101: 0 | J101: 0 | K101: 0 | L101: 0
A102: Restaurant Grease | B102: 0.38 | E102: 0 | F102: 0 | G102: 0 | H102: 0 | I102: 0 | J102: 0 | K102: 0 | L102: 0
A103: Canola oil | B103: 1.2 | E103: 0 | F103: 0 | G103: 0 | H103: 0 | I103: 0 | J103: 0 | K103: 0 | L103: 0
A104: Coconut oil | B104: 7 | E104: 0 | F104: 0 | G104: 0 | H104: 0 | I104: 0 | J104: 0 | K104: 0 | L104: 0
A105: Corn oil | B105: 7 | E105: 0 | F105: 0 | G105: 0 | H105: 0 | I105: 0 | J105: 0 | K105: 0 | L105: 0
A106: Palm Kernel oil | B106: 0 | E106: 0 | F106: 0 | G106: 0 | H106: 0 | I106: 0 | J106: 0 | K106: 0 | L106: 0
A107: Soybean oil | B107: 0.38 | E107: 0 | F107: 0 | G107: 0 | H107: 0 | I107: 0 | J107: 0 | K107: 0 | L107: 0
A108: Soybean Lecithin | B108: 0.7 | E108: 0 | F108: 0 | G108: 0 | H108: 0 | I108: 0 | J108: 0 | K108: 0 | L108: 0
A109: Sunflower oil | B109: 0.6 | E109: 0 | F109: 0 | G109: 0 | H109: 0 | I109: 0 | J109: 0 | K109: 0 | L109: 0
A110: Fat, A/V blend | B110: 2.2 | E110: 0 | F110: 0 | G110: 0 | H110: 0 | I110: 0 | J110: 0 | K110: 0 | L110: 0
A111: Calcium carbonate | B111: 0 | E111: 0 | F111: 0 | G111: 0 | H111: 0 | I111: 0 | J111: 0 | K111: 0 | L111: 0
A112: Calcium phosphate (tricalcium) | B112: 0 | E112: 0 | F112: 0 | G112: 0 | H112: 0 | I112: 0 | J112: 0 | K112: 0 | L112: 0
A113: Calcium phosphate (dicalcium) | B113: 0.3 | E113: 0 | F113: 0 | G113: 0 | H113: 0 | I113: 0 | J113: 0 | K113: 0 | L113: 0
A114: Calcium phosphate (monocalcium) | B114: 656 | C114: $/ton | E114: 1.625 | F114: 0.324 | G114: 2.20671783 | H114: 4.15571783 | I114: 1.625 | J114: 2.53071783 | K114: 0.324 | L114: 2.20671783
A115: Calcium sulfate, dihydrate | B115: 0 | E115: 0 | F115: 0 | G115: 0 | H115: 0 | I115: 0 | J115: 0 | K115: 0 | L115: 0
A116: Limestone, ground | B116: 35.2 | C116: $/ton | E116: 1.6025 | F116: 0.46575 | G116: 5.295528 | H116: 7.363778 | I116: 1.6025 | J116: 5.761278 | K116: 0.46575 | L116: 5.295528
A117: Magnesium phosphate | B117: 0 | E117: 0 | F117: 0 | G117: 0 | H117: 0 | I117: 0 | J117: 0 | K117: 0 | L117: 0
A118: Sodium carbonate | B118: 0 | E118: 0 | F118: 0 | G118: 0 | H118: 0 | I118: 0 | J118: 0 | K118: 0 | L118: 0
A119: Sodium bicarbonate | B119: 0 | E119: 0 | F119: 0 | G119: 0 | H119: 0 | I119: 0 | J119: 0 | K119: 0 | L119: 0
A120: Sodium chloride | B120: 116 | C120: $/ton | E120: 0.58 | F120: 0.2025 | G120: 2.94196 | H120: 3.72446 | I120: 0.58 | J120: 3.14446 | K120: 0.2025 | L120: 2.94196
A121: Sodium phosphate, monobasic | B121: 0 | E121: 0 | F121: 0 | G121: 0 | H121: 0 | I121: 0 | J121: 0 | K121: 0 | L121: 0
A122: Sodium sulfate, decahydrate | B122: 32 | E122: 0 | F122: 0 | G122: 0 | H122: 0 | I122: 0 | J122: 0 | K122: 0 | L122: 0
A123: L-Lys-HCL | B123: 0.909 | C123: $/lb | E123: 0.1075 | F123: 0.168 | G123: 1.588352634 | H123: 1.863852634 | I123: 0.1075 | J123: 1.756352634 | K123: 0.168 | L123: 1.588352634
A124: DL-Met | B124: 4.359 | C124: $/lb | E124: 0.01875 | F124: 0.034425 | G124: 0.1034758814 | H124: 0.1566508814 | I124: 0.01875 | J124: 0.1379008814 | K124: 0.034425 | L124: 0.1034758814
A125: L-Thr | B125: 3.5102 | C125: $/lb | E125: 0.01875 | F125: 0.04455 | G125: 0.3744400224 | H125: 0.4377400224 | I125: 0.01875 | J125: 0.4189900224 | K125: 0.04455 | L125: 0.3744400224
A126: L-Trp | C126: $/lb | E126: 0 | F126: 0 | G126: 0 | H126: 0 | I126: 0 | J126: 0 | K126: 0 | L126: 0
A127: L-Val | B127: 7 | C127: $/lb | E127: 0 | F127: 0 | G127: 0 | H127: 0 | I127: 0 | J127: 0 | K127: 0 | L127: 0
A128: L-Ileu | B128: 7 | C128: $/lb | E128: 0 | F128: 0 | G128: 0 | H128: 0 | I128: 0 | J128: 0 | K128: 0 | L128: 0
A129: Methionine hydroxy analog | B129: 1.2 | C129: $/lb | E129: 0 | F129: 0 | G129: 0 | H129: 0 | I129: 0 | J129: 0 | K129: 0 | L129: 0
A130: Glutamine | B130: 0 | C130: $/lb | E130: 0 | F130: 0 | G130: 0 | H130: 0 | I130: 0 | J130: 0 | K130: 0 | L130: 0
A131: Glutamic acid | B131: 0 | C131: $/lb | E131: 0 | F131: 0 | G131: 0 | H131: 0 | I131: 0 | J131: 0 | K131: 0 | L131: 0
A132: Biolys | B132: 0.7 | C132: $/lb | E132: 0 | F132: 0 | G132: 0 | H132: 0 | I132: 0 | J132: 0 | K132: 0 | L132: 0
A133: Liquid lysine 60% | B133: 0.6 | C133: $/lb | E133: 0 | F133: 0 | G133: 0 | H133: 0 | I133: 0 | J133: 0 | K133: 0 | L133: 0
A134: MHA dry | B134: 2.2 | C134: $/lb | E134: 0 | F134: 0 | G134: 0 | H134: =SUM(E134:G134) -> 0 | I134: =E134 -> 0 | J134: =F134+G134 -> 0 | K134: =F134 -> 0 | L134: =G134 -> 0
A135: Ractopamine 9 g/lb | B135: 37 | C135: $/lb | E135: 0 | F135: 0 | G135: 0.02178565512 | H135: 0.02178565512 | I135: 0 | J135: 0.02178565512 | K135: 0 | L135: 0.02178565512
A136: Phase 2 supplement (PEP2) | B136: 0.45 | C136: $/lb | E136: 0 | F136: 0 | G136: 0 | H136: 0 | I136: 0 | J136: 0 | K136: 0 | L136: 0
A137: 2007 Starter base mix | B137: 0.36 | C137: $/lb | E137: 0 | F137: 0 | G137: 0 | H137: 0 | I137: 0 | J137: 0 | K137: 0 | L137: 0
A138: 2007 Grow-finish base mix | B138: 0.22 | C138: $/lb | E138: 0 | F138: 0 | G138: 0 | H138: 0 | I138: 0 | J138: 0 | K138: 0 | L138: 0
A139: Developer base mix | B139: 0.2 | C139: $/lb | E139: 0 | F139: 0 | G139: 0 | H139: 0 | I139: 0 | J139: 0 | K139: 0 | L139: 0
A140: 2007 Sow base mix | B140: 0.22 | C140: $/lb | E140: 0 | F140: 0 | G140: 0 | H140: 0 | I140: 0 | J140: 0 | K140: 0 | L140: 0
A141: Vitamin premix with phytase | B141: 0.677 | C141: $/lb | E141: 0.3125 | F141: 0.10125 | G141: 0.6264763299 | H141: 1.04022633 | I141: 0.3125 | J141: 0.7277263299 | K141: 0.10125 | L141: 0.6264763299
A142: Trace mineral premix | B142: 0.41 | C142: $/lb | E142: 0.1875 | F142: 0.06075 | G142: 0.6264763299 | H142: 0.8747263299 | I142: 0.1875 | J142: 0.6872263299 | K142: 0.06075 | L142: 0.6264763299
A143: Sow add pack | B143: 1.7 | C143: $/lb | E143: 0.3125 | F143: 0 | G143: 0 | H143: 0.3125 | I143: 0.3125 | J143: 0 | K143: 0 | L143: 0
A144: Vitamin premix without phytase | B144: 0.9 | C144: $/lb | E144: 0 | F144: 0 | G144: 0 | H144: 0 | I144: 0 | J144: 0 | K144: 0 | L144: 0
A145: GF DDGS Base Mix | B145: 0.25 | C145: $/lb | E145: 0 | F145: 0 | G145: 0 | H145: 0 | I145: 0 | J145: 0 | K145: 0 | L145: 0
A146: GF synthetics Base Mix | B146: 0.3 | C146: $/lb | E146: 0 | F146: 0 | G146: 0 | H146: 0 | I146: 0 | J146: 0 | K146: 0 | L146: 0
A147: Choline chloride 60% | B147: 0.6 | C147: $/lb | E147: 0 | F147: 0 | G147: 0 | H147: 0 | I147: 0 | J147: 0 | K147: 0 | L147: 0
A148: Natuphos 600 | B148: 0 | C148: $/lb | E148: 0 | F148: 0 | G148: 0 | H148: 0 | I148: 0 | J148: 0 | K148: 0 | L148: 0
A149: Natuphos 1200 | B149: 0 | C149: $/lb | E149: 0 | F149: 0 | G149: 0 | H149: 0 | I149: 0 | J149: 0 | K149: 0 | L149: 0
A150: Optiphos 2000 | B150: 0 | C150: $/lb | E150: 0 | F150: 0 | G150: 0 | H150: 0 | I150: 0 | J150: 0 | K150: 0 | L150: 0
A151: Phyzyme 1200 | B151: 0 | C151: $/lb | E151: 0 | F151: 0 | G151: 0 | H151: 0 | I151: 0 | J151: 0 | K151: 0 | L151: 0
A152: Phyzyme 5000 | B152: 0 | C152: $/lb | E152: 0 | F152: 0 | G152: 0 | H152: 0 | I152: 0 | J152: 0 | K152: 0 | L152: 0
A153: Ronozyme CT (10,000) | B153: 0 | C153: $/lb | E153: 0 | F153: 0 | G153: 0 | H153: 0 | I153: 0 | J153: 0 | K153: 0 | L153: 0
A154: Ronozyme M (50,000) | B154: 0 | C154: $/lb | E154: 0 | F154: 0 | G154: 0 | H154: 0 | I154: 0 | J154: 0 | K154: 0 | L154: 0
A155: Ronozyme PMX PLT (4625 FYT/g) | B155: 0.8332 | C155: $/lb | E155: 0 | F155: 0 | G155: 0.07115495961 | H155: 0.07115495961 | I155: 0 | J155: 0.07115495961 | K155: 0 | L155: 0.07115495961
A156: Zinc oxide | B156: 1.1 | C156: $/lb | E156: 0 | F156: 0 | G156: 0 | H156: 0 | I156: 0 | J156: 0 | K156: 0 | L156: 0
A157: Copper sulfate | B157: 1.1 | C157: $/lb | E157: 0 | F157: 0 | G157: 0 | H157: 0 | I157: 0 | J157: 0 | K157: 0 | L157: 0
A158: Potassium chloride | B158: 0.175 | C158: $/lb | E158: 0 | F158: 0 | G158: 0 | H158: 0 | I158: 0 | J158: 0 | K158: 0 | L158: 0
A159: Calcium chloride | B159: 0.2 | C159: $/lb | E159: 0 | F159: 0 | G159: 0 | H159: 0 | I159: 0 | J159: 0 | K159: 0 | L159: 0
A160: Acidifier | B160: 1 | C160: $/lb | E160: 0 | F160: 0 | G160: 0 | H160: 0 | I160: 0 | J160: 0 | K160: 0 | L160: 0
A161: Vitamin E, 20,000 IU | B161: 0.4 | C161: $/lb | E161: 0 | F161: 0 | G161: 0 | H161: 0 | I161: 0 | J161: 0 | K161: 0 | L161: 0
A162: Phase 2 supplement D | B162: 0.4 | C162: $/lb | E162: 0 | F162: 0 | G162: 0 | H162: 0 | I162: 0 | J162: 0 | K162: 0 | L162: 0
A163: DPS 50 | B163: 0.5 | C163: $/lb | E163: 0 | F163: 0 | G163: 0 | H163: 0 | I163: 0 | J163: 0 | K163: 0 | L163: 0
A164: PEP2+ | B164: 0.6 | C164: $/lb | E164: 0 | F164: 0 | G164: 0 | H164: 0 | I164: 0 | J164: 0 | K164: 0 | L164: 0
A165: PEP NS | B165: 0.5 | C165: $/lb | E165: 0 | F165: 0 | G165: 0 | H165: 0 | I165: 0 | J165: 0 | K165: 0 | L165: 0
A166: Natural vitamin E 20,000 IU/lb | B166: 9.4375 | C166: $/lb | E166: 0 | F166: 0 | G166: 0 | H166: 0 | I166: 0 | J166: 0 | K166: 0 | L166: 0
A167: Other ingredient | C167: $/lb | E167: 0 | F167: 0 | G167: 0 | H167: 0 | I167: 0 | J167: 0 | K167: 0 | L167: 0
A168: Corn DDGS, 10.5% Oil | B168: 0.125 | C168: $/lb | E168: 0 | F168: 0 | G168: 0 | H168: 0 | I168: 0 | J168: 0 | K168: 0 | L168: 0
A169: Corn DDGS, 7.5% Oil | B169: 192 | C169: $/ton | E169: 0 | F169: 5.25 | G169: 0 | H169: 5.25 | I169: 0 | J169: 5.25 | K169: 5.25 | L169: =G169 -> 0
A170: Corn DDGS, 4.5% Oil | B170: 0.125 | C170: $/lb | E170: 0 | F170: 0 | G170: 0 | H170: 0 | I170: 0 | J170: 0 | K170: 0 | L170: 0
A171: Denegard | B171: 4.7286 | C171: $/lb | E171: 0 | F171: 0.091875 | G171: 0 | H171: 0.091875 | I171: 0 | J171: 0.091875 | K171: 0.091875 | L171: 0
A172: CTC 50 | B172: 1.44 | C172: $/lb | E172: 0 | F172: 0.21 | G172: 0 | H172: 0.21 | I172: 0 | J172: 0.21 | K172: 0.21 | L172: 0
A173: Bentonite | B173: 0.15 | C173: $/lb | E173: 0 | F173: 0 | G173: 0 | H173: 0 | I173: 0 | J173: 0 | K173: 0 | L173: 0
A174: Phase 2 supplement (Feb, 2014) | B174: 0.7362 | C174: $/lb | E174: 0 | F174: 2.1 | G174: 0 | H174: 2.1 | I174: 0 | J174: 2.1 | K174: 2.1 | L174: 0
A175: Other ingredient | E175: 0 | F175: 0 | G175: 0 | H175: 0 | I175: 0 | J175: 0 | K175: 0 | L175: 0
A176: Other ingredient | E176: 0 | F176: 0 | G176: 0 | H176: 0 | I176: 0 | J176: 0 | K176: 0 | L176: 0
A177: Other ingredient | E177: 0 | F177: 0 | G177: 0 | H177: 0 | I177: 0 | J177: 0 | K177: 0 | L177: 0
A178: Other ingredient | E178: 0 | F178: 0 | G178: 0 | H178: 0 | I178: 0 | J178: 0 | K178: 0 | L178: 0
A179: Other ingredient | E179: 0 | F179: 0 | G179: 0 | H179: 0 | I179: 0 | J179: 0 | K179: 0 | L179: 0
A180: Other ingredient | E180: 0 | F180: 0 | G180: 0 | H180: 0 | I180: 0 | J180: 0 | K180: 0 | L180: 0
A181: Other ingredient | E181: 0 | F181: 0 | G181: 0 | H181: 0 | I181: 0 | J181: 0 | K181: 0 | L181: 0
A182: Other ingredient | E182: 0 | F182: 0 | G182: 0 | H182: 0 | I182: 0 | J182: 0 | K182: 0 | L182: 0
A183: Other ingredient | E183: 0 | F183: 0 | G183: 0 | H183: 0 | I183: 0 | J183: 0 | K183: 0 | L183: 0
A184: Other ingredient | E184: 0 | F184: 0 | G184: 0 | H184: 0 | I184: 0 | J184: 0 | K184: 0 | L184: 0
A185: Other ingredient | E185: 0 | F185: 0 | G185: 0 | H185: 0 | I185: 0 | J185: 0 | K185: 0 | L185: 0
A186: Other ingredient | B186: 0 | E186: 0 | F186: 0 | G186: 0 | H186: =SUM(E186:G186) -> 0 | I186: 0 | J186: 0 | K186: 0 | L186: 0
H187: =SUM(E187:G187) -> 0 | I187: =E187 -> 0 | J187: =F187+G187 -> 0 | K187: =F187 -> 0 | L187: =G187 -> 0
A188: Complete nursery pellet | B188: 700 | C188: $/ton | E188: 0 | F188: 3 | G188: 0 | H188: =SUM(E188:G188) -> 3 | I188: =E188 -> 0 | J188: =F188+G188 -> 3 | K188: =F188 -> 3 | L188: =G188 -> 0
E189: =SUM(E23:E188) -> 125 | F189: =SUM(F23:F188) -> 55.5 | G189: 588.392 | H189: =SUM(H23:H188) -> 768.892 | I189: =SUM(I23:I188) -> 125 | J189: 643.892 | K189: 55.5 | L189: 588.392

Sheet Farrow-Finish
A1: KSU Farrow-to-Finish Swine Budget | C1: Current Prices | G1: =IF(C1=Prices!B4,TEXT(Prices!B5,"MMM-YYYY"),IF(C1=Prices!D4,TEXT(Prices!D5,"MMM-YYYY"),TEXT(Prices!G5,"MMM-YYYY"))) -> (as of December 1, 2015)
L2: INTERNAL NOTES | M2: Click on "Current Prices" to change to "One Year Out Prices " or "Five Years Out Prices"
A3: Production Efficiency Information | L3: production data from NPB/Stadler "2014 U.S. Pork Industry Productivity Analysis"
A4: Weaned Pigs/Mated Sow/Year | B4: 23.7 | L4: production data from NPB/Stadler "2014 U.S. Pork Industry Productivity Analysis"
A5: Litters/Mated Sow/Year | B5: 2.3 | L5: production data from NPB/Stadler "2014 U.S. Pork Industry Productivity Analysis"
A6: Wean-Finish Mortality (%) | B6: 6.88 | D6: Nursery Feed to Gain | J6: 1.48 | L6: production data from NPB/Stadler "2014 U.S. Pork Industry Productivity Analysis"
A7: Market Hogs Sold/Mated Sow/Year | B7: =B4*((100-B6)/100) -> 22.06944 | D7: Grow/Finish Feed to Gain | J7: 2.66 | L7: production data from NPB/Stadler "2014 U.S. Pork Industry Productivity Analysis"
A8: Sow Replacement Rate | B8: 0.5 | D8: Weaned Pig Weight | J8: 13.4 | L8: Per April KSU team meeting
A9: Sow Mortality (%) | B9: 0.08 | D9: Nursery Exit Weight | J9: 50.9 | L9: Per April KSU team meeting
A11: Revenue | B11: Price | C11: Unit | E11: Qty | F11: Unit | J11: Total per Year per Sow | K11: Total per Year per Pig Sold
A12: Market Hogs | B12: =IF($C$1=Prices!$A$1, Prices!B14, IF($C$1=Prices!$A$2, Prices!D14, IF($C$1=Prices!$A$3, Prices!G14, ""))) -> 40.36 | C12: per cwt | D12: x | E12: 273 | F12: lbs | G12: x | H12: =B7 -> 22.06944 | I12: = | J12: =(B12/100)*E12*H12 -> 2431.672694 | K12: =J12/B7 -> 110.1828 | L12: 272 lbs is from NPB/Stadler 2014 report table 2
A13: Cull Sows | B13: =IF($C$1=Prices!$A$1, Prices!B17, IF($C$1=Prices!$A$2, Prices!D17, IF($C$1=Prices!$A$3, Prices!G17, ""))) -> 41.83 | C13: per cwt | D13: x | E13: 400 | F13: lbs | G13: x | H13: =B8-B9 -> 0.42 | I13: = | J13: =B13*(E13/100)*H13 -> 70.2744 | K13: =J13/B7 -> 3.184240289 | L13: Per April KSU team meeting
A14: Manure Credit | J14: =K14*$B$7 -> 110.3472 | K14: 5 | L14: Per April KSU team meeting; also note ERS COP places $4.25/cwt gain here so our $5/hd is conservative
A15: Other revenue | J15: =K15*$B$7 -> 0 | K15: 0
A16: Gross Income | J16: =SUM(J12:J15) -> 2612.294294 | K16: =SUM(K12:K15) -> 118.3670403
A18: Variable Costs
A19: Sow Feed | B19: =IF($C$1=Prices!$A$1, SUMPRODUCT(Feed!$I$23:$I$174,Prices!$B$41:$B$192), IF($C$1=Prices!$A$2, SUMPRODUCT(Feed!$I$23:$I$174,Prices!$D$41:$D$192), IF($C$1=Prices!$A$3,SUMPRODUCT(Feed!$I$23:$I$174,Prices!$G$41:$G$192), "")))/Feed!I189 -> 0.09108479934 | C19: per lb | D19: x | E19: =Feed!I189 -> 125 | F19: lbs | I19: = | J19: =K19*B5 -> 26.18687981 | K19: =(B19*E19) -> 11.38559992 | L19: Worked from April 2015 KSU XL Ration, collapsing down to #s by phase here w/ details in Feed tab and notes below; Also scaling feed lbs given changes to # pigs and finished weight; Can cross-check w/ ERS COP data also
A20: Nursery Feed | B20: =IF($C$1=Prices!$A$1, SUMPRODUCT(Feed!$K$23:$K$174,Prices!$B$41:$B$192), IF($C$1=Prices!$A$2, SUMPRODUCT(Feed!$K$23:$K$174,Prices!$D$41:$D$192), IF($C$1=Prices!$A$3,SUMPRODUCT(Feed!$K$23:$K$174,Prices!$G$41:$G$192), "")))/Feed!K189 -> 0.1363857163 | C20: per lb | D20: x | E20: =IF(J6=1.48,(((J9-50.9)*0.011+J6)*(J9-J8)),(J6*(J9-J8))) -> 55.5 | F20: lbs | I20: = | J20: =K20*B4 -> 179.394952 | K20: =(B20*E20) -> 7.569407256
A21: Grow-Finish Feed | B21: =IF($C$1=Prices!$A$1, SUMPRODUCT(Feed!$L$23:$L$174,Prices!$B$41:$B$192), IF($C$1=Prices!$A$2, SUMPRODUCT(Feed!$L$23:$L$174,Prices!$D$41:$D$192), IF($C$1=Prices!$A$3,SUMPRODUCT(Feed!$L$23:$L$174,Prices!$G$41:$G$192), "")))/Feed!L189 -> 0.08931899297 | C21: per lb | D21: x | E21: =IF(J7=2.66,(((E12-272.1)*0.005+J7)*(E12-J9)),(J7*(E12-J9))) -> 591.78545 | F21: lbs | I21: = | J21: =K21*B7 -> 1166.539407 | K21: =(B21*E21) -> 52.85768045
A22: Feed Processing | B22: =IF($C$1=Prices!$A$1, Prices!B30, IF($C$1=Prices!$A$2, Prices!D30, IF($C$1=Prices!$A$3,Prices!G30, ""))) -> 17 | C22: per ton | D22: x | E22: =SUM(E19:E21)/2000 -> 0.386142725 | F22: ton | I22: = | J22: =K22*$B$7 -> 144.8732129 | K22: =B22*E22 -> 6.564426325
A23: Labor | B23: 15 | C23: per hour | D23: x | E23: 6 | F23: hours | I23: = | J23: =B23*E23*B5 -> 207 | K23: =J23/B7 -> 9.379485841 | L23: Note: Using Schulz's 3/31/15 Iowa St. values (http://www.extension.iastate.edu/agdm/livestock/pdf/b1-21.pdf)
A24: Vet Medicine/Drugs | J24: =K24*B7 -> 116.8841681 | K24: =1.94*E12/100 -> 5.2962 | L24: Note: Using ERS $1.94/cwt produced value
A25: Replacement Females | B25: =(IF(C1=Prices!A1, Prices!B18, IF(C1=Prices!A2, Prices!D18, IF(C1=Prices!A3,Prices!G18, "")))) -> 185.99 | C25: per head | D25: x | E25: =B8 -> 0.5 | F25: hd | I25: = | J25: =B25*E25 -> 92.995 | K25: =J25/B7 -> 4.213745342
A26: Semen Cost & Genetic Fee | J26: =13*B5 -> 29.9 | K26: =J26/B7 -> 1.354814621 | L26: Note: Schulz's 3/31/15 Iowa St. values are $13/litter
A27: Marketing, Bedding, and Misc | J27: =K27*B7 -> 55.4296055 | K27: =(0.04+0.32+0.56)*E12/100 -> 2.5116 | L27: Note: Using ERS $0.92/cwt produced value (Bed&Litter, Mkt,Custom Srv). Compares w/ Schulz's 3/31/15 $30/litter)
A28: Utilities, Gas, Fuel, Oil | J28: =K28*B7 -> 133.7540481 | K28: =2.22*E12/100 -> 6.0606 | L28: Note: Using ERS $2.22/cwt produced values (compares w/ Schulz's 3/31/15 $50/litter)
A29: Machinery, Facility/Equip. Repairs | J29: =K29*B7 -> 53.01962266 | K29: =0.88*E12/100 -> 2.4024 | L29: Note: Using ERS $0.88/cwt produced value (low compared to Schulz's 3/31/15 $130/litter)
A30: Other variable costs | J30: 0 | K30: =J30/B7 -> 0
A31: Total Variable Costs | J31: =SUM(J19:J30) -> 2205.976896 | K31: =SUM(K19:K30) -> 109.5959598
A33: Fixed Costs
A34: Machinery, Facilities, General Overhead | J34: =K34*B7 -> 621.1730791 | K34: =(9.38+0.93)*E12/100 -> 28.1463 | L34: Note: Using ERS $9.38/cwt produced value for capital recovery of mach. & equipment + $0.93 for general farm overhead
A35: Taxes and Insurance | J35: =K35*B7 -> 29.52228989 | K35: =0.49*E12/100 -> 1.3377 | L35: Note: Using ERS $0.49/cwt produced value
A36: Legal, Accounting, etc. | J36: =K36*B7 -> 33.10416 | K36: 1.5 | L36: no source
A37: Other fixed costs | J37: 0 | K37: =J37/B7 -> 0
A38: Total Fixed Costs | J38: =SUM(J34:J37) -> 683.799529 | K38: =SUM(K34:K37) -> 30.984 | L38: Schulz's 3/31/15 value is $195.42/litter
A40: Total Costs | J40: =J31+J38 -> 2889.776425 | K40: =K31+K38 -> 140.5799598 | L40: ERS COP is $58.66/cwt produced
A41: Income Over Variable Costs | J41: =J16-J31 -> 406.3173974 | K41: =K16-K31 -> 8.771080538 | L41: =58.66*(E12/100) -> 160.1418
A42: Income Over Total Costs | J42: =J16-J40 -> -277.4821315 | K42: =K16-K40 -> -22.21291946
A44: Kansas State University, Department of Agricultural Economics - www.agmanager.info
A45: Publication: AM-FMG-FarFin | K45: =TEXT(Notes!D2,"MMM. DD, YYYY") -> Dec. 01, 2015
A47: =A1 -> KSU Farrow-to-Finish Swine Budget
A88: Kansas State University, Department of Agricultural Economics - www.agmanager.info
A89: =A45 -> Publication: AM-FMG-FarFin | K89: =K45 -> Dec. 01, 2015
A91: =A47 -> KSU Farrow-to-Finish Swine Budget
A92: Budget Assumptions
A94: Feed Ration
A95: Ingredient | B95: Qty | C95: Unit
A96: =Feed!A23 -> Corn, Yellow Dent | B96: =Feed!H23 -> 590.8130054 | C96: lbs
A97: =Feed!A24 -> Corn, Nutridense | B97: =Feed!H24 -> 0 | C97: lbs
A98: =Feed!A25 -> Corn Bran | B98: =Feed!H25 -> 0 | C98: lbs
A99: =Feed!A26 -> Corn DDG | B99: =Feed!H26 -> 0 | C99: lbs
A100: =Feed!A27 -> Corn DDGS, >10% Oil | B100: =Feed!H27 -> 0 | C100: lbs
A101: =Feed!A28 -> Corn DDGS, >6 and <9% Oil | B101: =Feed!H28 -> 0 | C101: lbs
A102: =Feed!A29 -> Corn DDGS, <4% Oil | B102: =Feed!H29 -> 0 | C102: lbs
A103: =Feed!A30 -> Corn HP DDG | B103: =Feed!H30 -> 0 | C103: lbs
A104: =Feed!A31 -> Soybean Meal, Dehull, Sol Extr | B104: =Feed!H31 -> 0 | C104: lbs
A105: =Feed!A32 -> Soybean Meal, Dehulled, Expelled | B105: =Feed!H32 -> 0 | C105: lbs
A106: =Feed!A33 -> Soybean Meal, Solvent Extracted | B106: =Feed!H33 -> 0 | C106: lbs
A107: =Feed!A34 -> Corn Gluten Meal | B107: =Feed!H34 -> 0 | C107: lbs
A108: =Feed!A35 -> Corn Grits, Hominy Feed | B108: =Feed!H35 -> 0 | C108: lbs
A109: =Feed!A36 -> Cotton Seeds, Fullfat | B109: =Feed!H36 -> 0 | C109: lbs
A110: =Feed!A37 -> Cotton Seed Meal | B110: =Feed!H37 -> 0 | C110: lbs
A111: =Feed!A38 -> Feather Meal | B111: =Feed!H38 -> 0 | C111: lbs
A112: =Feed!A39 -> Fish Meal Combined | B112: =Feed!H39 -> 0 | C112: lbs
A113: =Feed!A40 -> Flaxseed | B113: =Feed!H40 -> 0 | C113: lbs
A114: =Feed!A41 -> Flaxseed Meal | B114: =Feed!H41 -> 0 | C114: lbs
A115: =Feed!A42 -> Lupins | B115: =Feed!H42 -> 0 | C115: lbs
A116: =Feed!A43 -> Meat Meal | B116: =Feed!H43 -> 0 | C116: lbs
A117: =Feed!A44 -> Meat and Bone Meal, P >4% | B117: =Feed!H44 -> 0 | C117: lbs
A118: =Feed!A45 -> Milk, Casein | B118: =Feed!H45 -> 0 | C118: lbs
A119: =Feed!A46 -> Milk, Lactose | B119: =Feed!H46 -> 0 | C119: lbs
A120: =Feed!A47 -> Milk, Skim Milk Powder | B120: =Feed!H47 -> 0 | C120: lbs
A121: =Feed!A48 -> Milk, Whey Powder | B121: =Feed!H48 -> 0 | C121: lbs
A122: =Feed!A49 -> Milk, Whey Permeate, 85% lactose | B122: =Feed!H49 -> 0 | C122: lbs
A123: =Feed!A50 -> Milk, Whey Protein Concentrate | B123: =Feed!H50 -> 0 | C123: lbs
A124: =Feed!A51 -> Millet | B124: =Feed!H51 -> 0 | C124: lbs
A125: =Feed!A52 -> Molasses, Sugarbeet | B125: =Feed!H52 -> 0 | C125: lbs
A126: =Feed!A53 -> Molasses, Sugarcane | B126: =Feed!H53 -> 0 | C126: lbs
A127: =Feed!A54 -> Oats | B127: =Feed!H54 -> 0 | C127: lbs
A128: =Feed!A55 -> Oats, Naked | B128: =Feed!H55 -> 0 | C128: lbs
A129: =Feed!A56 -> Oat Groats | B129: =Feed!H56 -> 0 | C129: lbs
A130: =Feed!A57 -> Peanut Meal, Expelled | B130: =Feed!H57 -> 0 | C130: lbs
A131: =Feed!A58 -> Peanut Meal, Extracted | B131: =Feed!H58 -> 0 | C131: lbs
A132: =Feed!A59 -> Peas, Field Peas | B132: =Feed!H59 -> 0 | C132: lbs
A133: =Feed!A60 -> Pea Protein Concentrate | B133: =Feed!H60 -> 0 | C133: lbs
A134: =Feed!A61 -> Potato Protein Concentrate | B134: =Feed!H61 -> 0 | C134: lbs
A135: =Feed!A62 -> Poultry Byproduct | B135: =Feed!H62 -> 0 | C135: lbs
A136: =Feed!A63 -> Rice | B136: =Feed!H63 -> 0 | C136: lbs
A137: =Feed!A64 -> Rice Bran | B137: =Feed!H64 -> 0 | C137: lbs
A138: =Feed!A65 -> Rice Bran, Defatted | B138: =Feed!H65 -> 0 | C138: lbs
A139: =Feed!A66 -> Rice, Broken | B139: =Feed!H66 -> 0 | C139: lbs
A140: =Feed!A67 -> Rye | B140: =Feed!H67 -> 0 | C140: lbs
A141: =Feed!A68 -> Sesame Meal | B141: =Feed!H68 -> 0 | C141: lbs
A142: =Feed!A69 -> Sorghum | B142: =Feed!H69 -> 0 | C142: lbs
A143: =Feed!A70 -> Soybeans, Full Fat | B143: =Feed!H70 -> 0 | C143: lbs
A144: =Feed!A71 -> Soybeans, High Protein, Full Fat | B144: =Feed!H71 -> 0 | C144: lbs
A145: =Feed!A72 -> Soybeans, Low Oligosaccharide, Full Fat | B145: =Feed!H72 -> 0 | C145: lbs
A146: =Feed!A73 -> Soybean Meal, High Protein, Expelled | B146: =Feed!H73 -> 0 | C146: lbs
A147: =Feed!A74 -> Soybean Meal, Low Oligosacch, Expell | B147: =Feed!H74 -> 0 | C147: lbs
A148: =Feed!A75 -> Soybean Meal, Expelled | B148: =Feed!H75 -> 0 | C148: lbs
A149: =Feed!A76 -> Soybean Meal, Dehulled, Expelled | B149: =Feed!H76 -> 0 | C149: lbs
A150: =Feed!A77 -> Soybean Meal, Solvent Extracted | B150: =Feed!H77 -> 0 | C150: lbs
A151: =Feed!A78 -> Soybean Meal, Dehull, Sol Extr | B151: =Feed!H78 -> 147.404527 | C151: lbs
A152: =Feed!A79 -> Soybean Meal, High Prot, Dehull, Solv Extr | B152: =Feed!H79 -> 0 | C152: lbs
A153: =Feed!A80 -> Soybean Meal, Enzyme Treated | B153: =Feed!H80 -> 0 | C153: lbs
A154: =Feed!A81 -> Soybean Meal, Fermented | B154: =Feed!H81 -> 0 | C154: lbs
A155: =Feed!A82 -> Soybean Hulls | B155: =Feed!H82 -> 0 | C155: lbs
A156: =Feed!A83 -> Soy Protein Concentrate | B156: =Feed!H83 -> 0 | C156: lbs
A157: =Feed!A84 -> Soy Protein Isolate | B157: =Feed!H84 -> 0 | C157: lbs
A158: =Feed!A85 -> Sugar Beet Pulp | B158: =Feed!H85 -> 0 | C158: lbs
A159: =Feed!A86 -> Sunflower, Full Fat | B159: =Feed!H86 -> 0 | C159: lbs
A160: =Feed!A87 -> Sunflower Meal, Solvent Extracted | B160: =Feed!H87 -> 0 | C160: lbs
A161: =Feed!A88 -> Sunflower Meal, Dehulled, Solvent Extr | B161: =Feed!H88 -> 0 | C161: lbs
A162: =Feed!A89 -> Triticale | B162: =Feed!H89 -> 0 | C162: lbs
A163: =Feed!A90 -> Wheat, Hard Red | B163: =Feed!H90 -> 0 | C163: lbs
A164: =Feed!A91 -> Wheat, Soft Red | B164: =Feed!H91 -> 0 | C164: lbs
A165: =Feed!A92 -> Wheat Bran | B165: =Feed!H92 -> 0 | C165: lbs
A166: =Feed!A93 -> Wheat Middlings | B166: =Feed!H93 -> 0 | C166: lbs
A167: =Feed!A94 -> Wheat Shorts | B167: =Feed!H94 -> 0 | C167: lbs
A168: =Feed!A95 -> Wheat DDGS | B168: =Feed!H95 -> 0 | C168: lbs
A169: =Feed!A96 -> Yeast, Brewers' Yeast | B169: =Feed!H96 -> 0 | C169: lbs
A170: =Feed!A97 -> Yeast, Single Cell Protein | B170: =Feed!H97 -> 0 | C170: lbs
A171: =Feed!A98 -> Beef Tallow | B171: =Feed!H98 -> 0 | C171: lbs
A172: =Feed!A99 -> Choice White Grease | B172: =Feed!H99 -> 0 | C172: lbs
A173: =Feed!A100 -> Poultry Fat | B173: =Feed!H100 -> 0 | C173: lbs
A174: =Feed!A101 -> Lard | B174: =Feed!H101 -> 0 | C174: lbs
A175: =Feed!A102 -> Restaurant Grease | B175: =Feed!H102 -> 0 | C175: lbs
A176: =Feed!A103 -> Canola oil | B176: =Feed!H103 -> 0 | C176: lbs
A177: =Feed!A104 -> Coconut oil | B177: =Feed!H104 -> 0 | C177: lbs
A178: =Feed!A105 -> Corn oil | B178: =Feed!H105 -> 0 | C178: lbs
A179: =Feed!A106 -> Palm Kernel oil | B179: =Feed!H106 -> 0 | C179: lbs
A180: =Feed!A107 -> Soybean oil | B180: =Feed!H107 -> 0 | C180: lbs
A181: =Feed!A108 -> Soybean Lecithin | B181: =Feed!H108 -> 0 | C181: lbs
A182: =Feed!A109 -> Sunflower oil | B182: =Feed!H109 -> 0 | C182: lbs
A183: =Feed!A110 -> Fat, A/V blend | B183: =Feed!H110 -> 0 | C183: lbs
A184: =Feed!A111 -> Calcium carbonate | B184: =Feed!H111 -> 0 | C184: lbs
A185: =Feed!A112 -> Calcium phosphate (tricalcium) | B185: =Feed!H112 -> 0 | C185: lbs
A186: =Feed!A113 -> Calcium phosphate (dicalcium) | B186: =Feed!H113 -> 0 | C186: lbs
A187: =Feed!A114 -> Calcium phosphate (monocalcium) | B187: =Feed!H114 -> 4.15571783 | C187: lbs
A188: =Feed!A115 -> Calcium sulfate, dihydrate | B188: =Feed!H115 -> 0 | C188: lbs
A189: =Feed!A116 -> Limestone, ground | B189: =Feed!H116 -> 7.363778 | C189: lbs
A190: =Feed!A117 -> Magnesium phosphate | B190: =Feed!H117 -> 0 | C190: lbs
A191: =Feed!A118 -> Sodium carbonate | B191: =Feed!H118 -> 0 | C191: lbs
A192: =Feed!A119 -> Sodium bicarbonate | B192: =Feed!H119 -> 0 | C192: lbs
A193: =Feed!A120 -> Sodium chloride | B193: =Feed!H120 -> 3.72446 | C193: lbs
A194: =Feed!A121 -> Sodium phosphate, monobasic | B194: =Feed!H121 -> 0 | C194: lbs
A195: =Feed!A122 -> Sodium sulfate, decahydrate | B195: =Feed!H122 -> 0 | C195: lbs
A196: =Feed!A123 -> L-Lys-HCL | B196: =Feed!H123 -> 1.863852634 | C196: lbs
A197: =Feed!A124 -> DL-Met | B197: =Feed!H124 -> 0.1566508814 | C197: lbs
A198: =Feed!A125 -> L-Thr | B198: =Feed!H125 -> 0.4377400224 | C198: lbs
A199: =Feed!A126 -> L-Trp | B199: =Feed!H126 -> 0 | C199: lbs
A200: =Feed!A127 -> L-Val | B200: =Feed!H127 -> 0 | C200: lbs
A201: =Feed!A128 -> L-Ileu | B201: =Feed!H128 -> 0 | C201: lbs
A202: =Feed!A129 -> Methionine hydroxy analog | B202: =Feed!H129 -> 0 | C202: lbs
A203: =Feed!A130 -> Glutamine | B203: =Feed!H130 -> 0 | C203: lbs
A204: =Feed!A131 -> Glutamic acid | B204: =Feed!H131 -> 0 | C204: lbs
A205: =Feed!A132 -> Biolys | B205: =Feed!H132 -> 0 | C205: lbs
A206: =Feed!A133 -> Liquid lysine 60% | B206: =Feed!H133 -> 0 | C206: lbs
A207: =Feed!A134 -> MHA dry | B207: =Feed!H134 -> 0 | C207: lbs
A208: =Feed!A135 -> Ractopamine 9 g/lb | B208: =Feed!H135 -> 0.02178565512 | C208: lbs
A209: =Feed!A136 -> Phase 2 supplement (PEP2) | B209: =Feed!H136 -> 0 | C209: lbs
A210: =Feed!A137 -> 2007 Starter base mix | B210: =Feed!H137 -> 0 | C210: lbs
A211: =Feed!A138 -> 2007 Grow-finish base mix | B211: =Feed!H138 -> 0 | C211: lbs
A212: =Feed!A139 -> Developer base mix | B212: =Feed!H139 -> 0 | C212: lbs
A213: =Feed!A140 -> 2007 Sow base mix | B213: =Feed!H140 -> 0 | C213: lbs
A214: =Feed!A141 -> Vitamin premix with phytase | B214: =Feed!H141 -> 1.04022633 | C214: lbs
A215: =Feed!A142 -> Trace mineral premix | B215: =Feed!H142 -> 0.8747263299 | C215: lbs
A216: =Feed!A143 -> Sow add pack | B216: =Feed!H143 -> 0.3125 | C216: lbs
A217: =Feed!A144 -> Vitamin premix without phytase | B217: =Feed!H144 -> 0 | C217: lbs
A218: =Feed!A145 -> GF DDGS Base Mix | B218: =Feed!H145 -> 0 | C218: lbs
A219: =Feed!A146 -> GF synthetics Base Mix | B219: =Feed!H146 -> 0 | C219: lbs
A220: =Feed!A147 -> Choline chloride 60% | B220: =Feed!H147 -> 0 | C220: lbs
A221: =Feed!A148 -> Natuphos 600 | B221: =Feed!H148 -> 0 | C221: lbs
A222: =Feed!A149 -> Natuphos 1200 | B222: =Feed!H149 -> 0 | C222: lbs
A223: =Feed!A150 -> Optiphos 2000 | B223: =Feed!H150 -> 0 | C223: lbs
A224: =Feed!A151 -> Phyzyme 1200 | B224: =Feed!H151 -> 0 | C224: lbs
A225: =Feed!A152 -> Phyzyme 5000 | B225: =Feed!H152 -> 0 | C225: lbs
A226: =Feed!A153 -> Ronozyme CT (10,000) | B226: =Feed!H153 -> 0 | C226: lbs
A227: =Feed!A154 -> Ronozyme M (50,000) | B227: =Feed!H154 -> 0 | C227: lbs
A228: =Feed!A155 -> Ronozyme PMX PLT (4625 FYT/g) | B228: =Feed!H155 -> 0.07115495961 | C228: lbs
A229: =Feed!A156 -> Zinc oxide | B229: =Feed!H156 -> 0 | C229: lbs
A230: =Feed!A157 -> Copper sulfate | B230: =Feed!H157 -> 0 | C230: lbs
A231: =Feed!A158 -> Potassium chloride | B231: =Feed!H158 -> 0 | C231: lbs
A232: =Feed!A159 -> Calcium chloride | B232: =Feed!H159 -> 0 | C232: lbs
A233: =Feed!A160 -> Acidifier | B233: =Feed!H160 -> 0 | C233: lbs
A234: =Feed!A161 -> Vitamin E, 20,000 IU | B234: =Feed!H161 -> 0 | C234: lbs
A235: =Feed!A162 -> Phase 2 supplement D | B235: =Feed!H162 -> 0 | C235: lbs
A236: =Feed!A163 -> DPS 50 | B236: =Feed!H163 -> 0 | C236: lbs
A237: =Feed!A164 -> PEP2+ | B237: =Feed!H164 -> 0 | C237: lbs
A238: =Feed!A165 -> PEP NS | B238: =Feed!H165 -> 0 | C238: lbs
A239: =Feed!A166 -> Natural vitamin E 20,000 IU/lb | B239: =Feed!H166 -> 0 | C239: lbs
A240: =Feed!A167 -> Other ingredient | B240: =Feed!H167 -> 0 | C240: lbs
A241: =Feed!A168 -> Corn DDGS, 10.5% Oil | B241: =Feed!H168 -> 0 | C241: lbs
A242: =Feed!A169 -> Corn DDGS, 7.5% Oil | B242: =Feed!H169 -> 5.25 | C242: lbs
A243: =Feed!A170 -> Corn DDGS, 4.5% Oil | B243: =Feed!H170 -> 0 | C243: lbs
A244: =Feed!A171 -> Denegard | B244: =Feed!H171 -> 0.091875 | C244: lbs
A245: =Feed!A172 -> CTC 50 | B245: =Feed!H172 -> 0.21 | C245: lbs
A246: =Feed!A173 -> Bentonite | B246: =Feed!H173 -> 0 | C246: lbs
A247: =Feed!A174 -> Phase 2 supplement (Feb, 2014) | B247: =Feed!H174 -> 2.1 | C247: lbs
A248: =Feed!A175 -> Other ingredient | B248: =Feed!H175 -> 0
... 26 more rows

Sheet Farrow-Wean
A1: KSU Farrow-to-Wean Swine Budget | C1: Current Prices | G1: =IF(C1=Prices!B4,TEXT(Prices!B5,"MMM-YYYY"),IF(C1=Prices!D4,TEXT(Prices!D5,"MMM-YYYY"),TEXT(Prices!G5,"MMM-YYYY"))) -> (as of December 1, 2015)
L2: INTERNAL NOTES | M2: Click on "Current Prices" to change to "One Year Out Prices " or "Five Years Out Prices"
A3: Production Efficiency Information
A4: Weaned Pigs/Mated Sow/Year | B4: 23.7 | L4: production data from NPB/Stadler "2014 U.S. Pork Industry Productivity Analysis"
A5: Litters/Mated Sow/Year | B5: 2.3 | L5: production data from NPB/Stadler "2014 U.S. Pork Industry Productivity Analysis"
A6: Weaning Weight (lbs) | B6: 13.4 | L6: production data from NPB/Stadler "2014 U.S. Pork Industry Productivity Analysis"
A7: Sow Replacement Rate | B7: 0.5 | L7: Per April KSU team meeting
A8: Sow Mortality (%) | B8: 0.08 | L8: Per April KSU team meeting
A10: Revenue | B10: Price | C10: Unit | E10: Qty | F10: Unit | J10: Total per Year per Sow | K10: Total per Year per Pig Sold
A11: Weaned Pig | B11: =IF($C$1=Prices!$A$1, Prices!B15, IF($C$1=Prices!$A$2, Prices!D15, IF($C$1=Prices!$A$3, Prices!G15, ""))) -> 37.15 | C11: per hd | D11: x | E11: 1 | F11: hd | I11: = | J11: =K11*B4 -> 880.455 | K11: =(B11)*E11 -> 37.15
A12: Cull Sows | B12: =IF($C$1=Prices!$A$1, Prices!B17, IF($C$1=Prices!$A$2, Prices!D17, IF($C$1=Prices!$A$3, Prices!G17, ""))) -> 41.83 | C12: per cwt | D12: x | E12: 400 | F12: lbs | G12: x | H12: =B7-B8 -> 0.42 | I12: = | J12: =B12*(E12/100)*H12 -> 70.2744 | K12: =J12/B4 -> 2.965164557 | L12: Per April KSU team meeting
A13: Manure Credit | J13: =K13*B4 -> 11.85 | K13: 0.5 | L13: Per April KSU team meeting; also note ERS COP places $6.95/cwt gain ($0.90/hd for 13 lb pigs) so our $0.50/hd is reasonable
A14: Other revenue | J14: =K14*B4 -> 0 | K14: 0
A15: Gross Income | J15: =SUM(J11:J14) -> 962.5794 | K15: =SUM(K11:K14) -> 40.61516456
A17: Variable Costs
A18: Sow Feed | B18: =IF($C$1=Prices!$A$1, SUMPRODUCT(Feed!$I$23:$I$174,Prices!$B$41:$B$192), IF($C$1=Prices!$A$2, SUMPRODUCT(Feed!$I$23:$I$174,Prices!$D$41:$D$192), IF($C$1=Prices!$A$3,SUMPRODUCT(Feed!$I$23:$I$174,Prices!$G$41:$G$192), "")))/Feed!I189 -> 0.09108479934 | C18: per lb | D18: x | E18: =Feed!I189 -> 125 | F18: lbs | I18: = | J18: =K18*B4 -> 269.8387181 | K18: =(B18*E18) -> 11.38559992 | L18: Worked from April 2015 KSU XL Ration, collapsing down to #s by phase here w/ details in Feed tab and notes below
A19: Feed Processing | B19: =IF($C$1=Prices!$A$1, Prices!B30, IF($C$1=Prices!$A$2, Prices!D30, IF($C$1=Prices!$A$3,Prices!G30, ""))) -> 17 | C19: per ton | D19: x | E19: =SUM(E18:E18)/2000 -> 0.0625 | F19: ton | I19: = | J19: =K19*B4 -> 25.18125 | K19: =B19*E19 -> 1.0625
A20: Labor | B20: 15 | C20: per hour | D20: x | E20: =3*B5 -> 6.9 | F20: hours | I20: = | J20: =B20*E20 -> 103.5 | K20: =J20/B4 -> 4.367088608 | L20: Note: Using Schulz's 3/31/15 Iowa St. values (http://www.extension.iastate.edu/agdm/livestock/pdf/b1-21.pdf) of 3 hrs/litter & 2.30 litters/year in NPB/Stadler. Compares to $4.32/pig from ERS COP.
A21: Vet Medicine/Drugs | J21: =K21*B4 -> 31.24134 | K21: =10.14*(13/100) -> 1.3182 | L21: Note: Using ERS $10.14/cwt produced value
A22: Replacement Females | B22: =(IF(C1=Prices!A1, Prices!B18, IF(C1=Prices!A2, Prices!D18, IF(C1=Prices!A3,Prices!G18, "")))) -> 185.99 | C22: per head | D22: x | E22: =B7 -> 0.5 | F22: hd | I22: = | J22: =B22*E22 -> 92.995 | K22: =J22/B4 -> 3.923839662
A23: Semen Cost & Genetic Fee | J23: =13*B5 -> 29.9 | K23: =J23/B4 -> 1.261603376 | L23: Note: Schulz's 3/31/15 Iowa St. values are $13/litter
A24: Marketing, Bedding, and Misc | J24: =K24*B4 -> 2.413608 | K24: =(0.37+0.05+0.34)*(B6/100) -> 0.10184 | L24: Note: Using ERS $0.76/cwt produced value (Bed&Litter, Mkt,Custom Srv)
A25: Utilities, Gas, Fuel, Oil | J25: =K25*B4 -> 33.885786 | K25: =(10.67)*(B6/100) -> 1.42978 | L25: Note: Using ERS $10.67/cwt produced values (compares w/ Schulz's 3/31/15 $7.5/litter)
A26: Machinery, Facility/Equip. Repairs | J26: =K26*B4 -> 10.416624 | K26: =(3.28)*(B6/100) -> 0.43952 | L26: Note: Using ERS $3.28/cwt produced value (low compared to Schulz's 3/31/15 $130/litter)
A27: Other variable costs | J27: 0 | K27: =J27/B4 -> 0
A28: Total Variable Costs | J28: =SUM(J18:J27) -> 599.3723261 | K28: =SUM(K18:K27) -> 25.28997156
A30: Fixed Costs
A31: Machinery, Facilities, General Overhead | J31: =K31*B4 -> 131.7957 | K31: =(37.08+4.42)*B6/100 -> 5.561 | L31: Note: Using ERS $37.08/cwt produced value for capital recovery of mach. & equipment + $4.42/cwt prod value for General Overhead
A32: Taxes and Insurance | J32: =K32*B4 -> 6.923244 | K32: =2.18*B6/100 -> 0.29212 | L32: Note: Using ERS $2.18/cwt produced value
A33: Legal, Accounting, etc. | J33: =K33*B4 -> 11.85 | K33: 0.5 | L33: no source
A34: Other fixed costs | J34: 0 | K34: =J34/B4 -> 0
A35: Total Fixed Costs | J35: =SUM(J31:J34) -> 150.568944 | K35: =SUM(K31:K34) -> 6.35312
A37: Total Costs | J37: =J28+J35 -> 749.9412701 | K37: =K28+K35 -> 31.64309156 | L37: Compares to ERS COP of $32.73/pig ($251.76/cwt produced)
A38: Income Over Variable Costs | J38: =J15-J28 -> 363.2070739 | K38: =K15-K28 -> 15.32519299
A39: Income Over Total Costs | J39: =J15-J37 -> 212.6381299 | K39: =K15-K37 -> 8.972072994
A41: Kansas State University, Department of Agricultural Economics - www.agmanager.info
A42: Publication: AM-FMG-FarWean | K42: =TEXT(Notes!D2,"MMM. DD, YYYY") -> Dec. 01, 2015
A44: =A1 -> KSU Farrow-to-Wean Swine Budget
A85: Kansas State University, Department of Agricultural Economics - www.agmanager.info
A86: =A42 -> Publication: AM-FMG-FarWean | K86: =K42 -> Dec. 01, 2015
A88: =A44 -> KSU Farrow-to-Wean Swine Budget
A89: Budget Assumptions
A91: Feed Ration
A92: Ingredient | B92: Qty | C92: Unit
A93: =Feed!A23 -> Corn, Yellow Dent | B93: =Feed!I23 -> 97.9293231 | C93: lbs
A94: =Feed!A24 -> Corn, Nutridense | B94: =Feed!I24 -> 0 | C94: lbs
A95: =Feed!A25 -> Corn Bran | B95: =Feed!I25 -> 0 | C95: lbs
A96: =Feed!A26 -> Corn DDG | B96: =Feed!I26 -> 0 | C96: lbs
A97: =Feed!A27 -> Corn DDGS, >10% Oil | B97: =Feed!I27 -> 0 | C97: lbs
A98: =Feed!A28 -> Corn DDGS, >6 and <9% Oil | B98: =Feed!I28 -> 0 | C98: lbs
A99: =Feed!A29 -> Corn DDGS, <4% Oil | B99: =Feed!I29 -> 0 | C99: lbs
A100: =Feed!A30 -> Corn HP DDG | B100: =Feed!I30 -> 0 | C100: lbs
A101: =Feed!A31 -> Soybean Meal, Dehull, Sol Extr | B101: =Feed!I31 -> 0 | C101: lbs
A102: =Feed!A32 -> Soybean Meal, Dehulled, Expelled | B102: =Feed!I32 -> 0 | C102: lbs
A103: =Feed!A33 -> Soybean Meal, Solvent Extracted | B103: =Feed!I33 -> 0 | C103: lbs
A104: =Feed!A34 -> Corn Gluten Meal | B104: =Feed!I34 -> 0 | C104: lbs
A105: =Feed!A35 -> Corn Grits, Hominy Feed | B105: =Feed!I35 -> 0 | C105: lbs
A106: =Feed!A36 -> Cotton Seeds, Fullfat | B106: =Feed!I36 -> 0 | C106: lbs
A107: =Feed!A37 -> Cotton Seed Meal | B107: =Feed!I37 -> 0 | C107: lbs
A108: =Feed!A38 -> Feather Meal | B108: =Feed!I38 -> 0 | C108: lbs
A109: =Feed!A39 -> Fish Meal Combined | B109: =Feed!I39 -> 0 | C109: lbs
A110: =Feed!A40 -> Flaxseed | B110: =Feed!I40 -> 0 | C110: lbs
A111: =Feed!A41 -> Flaxseed Meal | B111: =Feed!I41 -> 0 | C111: lbs
A112: =Feed!A42 -> Lupins | B112: =Feed!I42 -> 0 | C112: lbs
A113: =Feed!A43 -> Meat Meal | B113: =Feed!I43 -> 0 | C113: lbs
A114: =Feed!A44 -> Meat and Bone Meal, P >4% | B114: =Feed!I44 -> 0 | C114: lbs
A115: =Feed!A45 -> Milk, Casein | B115: =Feed!I45 -> 0 | C115: lbs
A116: =Feed!A46 -> Milk, Lactose | B116: =Feed!I46 -> 0 | C116: lbs
A117: =Feed!A47 -> Milk, Skim Milk Powder | B117: =Feed!I47 -> 0 | C117: lbs
A118: =Feed!A48 -> Milk, Whey Powder | B118: =Feed!I48 -> 0 | C118: lbs
A119: =Feed!A49 -> Milk, Whey Permeate, 85% lactose | B119: =Feed!I49 -> 0 | C119: lbs
A120: =Feed!A50 -> Milk, Whey Protein Concentrate | B120: =Feed!I50 -> 0 | C120: lbs
A121: =Feed!A51 -> Millet | B121: =Feed!I51 -> 0 | C121: lbs
A122: =Feed!A52 -> Molasses, Sugarbeet | B122: =Feed!I52 -> 0 | C122: lbs
A123: =Feed!A53 -> Molasses, Sugarcane | B123: =Feed!I53 -> 0 | C123: lbs
A124: =Feed!A54 -> Oats | B124: =Feed!I54 -> 0 | C124: lbs
A125: =Feed!A55 -> Oats, Naked | B125: =Feed!I55 -> 0 | C125: lbs
A126: =Feed!A56 -> Oat Groats | B126: =Feed!I56 -> 0 | C126: lbs
A127: =Feed!A57 -> Peanut Meal, Expelled | B127: =Feed!I57 -> 0 | C127: lbs
A128: =Feed!A58 -> Peanut Meal, Extracted | B128: =Feed!I58 -> 0 | C128: lbs
A129: =Feed!A59 -> Peas, Field Peas | B129: =Feed!I59 -> 0 | C129: lbs
A130: =Feed!A60 -> Pea Protein Concentrate | B130: =Feed!I60 -> 0 | C130: lbs
A131: =Feed!A61 -> Potato Protein Concentrate | B131: =Feed!I61 -> 0 | C131: lbs
A132: =Feed!A62 -> Poultry Byproduct | B132: =Feed!I62 -> 0 | C132: lbs
A133: =Feed!A63 -> Rice | B133: =Feed!I63 -> 0 | C133: lbs
A134: =Feed!A64 -> Rice Bran | B134: =Feed!I64 -> 0 | C134: lbs
A135: =Feed!A65 -> Rice Bran, Defatted | B135: =Feed!I65 -> 0 | C135: lbs
A136: =Feed!A66 -> Rice, Broken | B136: =Feed!I66 -> 0 | C136: lbs
A137: =Feed!A67 -> Rye | B137: =Feed!I67 -> 0 | C137: lbs
A138: =Feed!A68 -> Sesame Meal | B138: =Feed!I68 -> 0 | C138: lbs
A139: =Feed!A69 -> Sorghum | B139: =Feed!I69 -> 0 | C139: lbs
A140: =Feed!A70 -> Soybeans, Full Fat | B140: =Feed!I70 -> 0 | C140: lbs
A141: =Feed!A71 -> Soybeans, High Protein, Full Fat | B141: =Feed!I71 -> 0 | C141: lbs
A142: =Feed!A72 -> Soybeans, Low Oligosaccharide, Full Fat | B142: =Feed!I72 -> 0 | C142: lbs
A143: =Feed!A73 -> Soybean Meal, High Protein, Expelled | B143: =Feed!I73 -> 0 | C143: lbs
A144: =Feed!A74 -> Soybean Meal, Low Oligosacch, Expell | B144: =Feed!I74 -> 0 | C144: lbs
A145: =Feed!A75 -> Soybean Meal, Expelled | B145: =Feed!I75 -> 0 | C145: lbs
A146: =Feed!A76 -> Soybean Meal, Dehulled, Expelled | B146: =Feed!I76 -> 0 | C146: lbs
A147: =Feed!A77 -> Soybean Meal, Solvent Extracted | B147: =Feed!I77 -> 0 | C147: lbs
A148: =Feed!A78 -> Soybean Meal, Dehull, Sol Extr | B148: =Feed!I78 -> 22.3056769 | C148: lbs
A149: =Feed!A79 -> Soybean Meal, High Prot, Dehull, Solv Extr | B149: =Feed!I79 -> 0 | C149: lbs
A150: =Feed!A80 -> Soybean Meal, Enzyme Treated | B150: =Feed!I80 -> 0 | C150: lbs
A151: =Feed!A81 -> Soybean Meal, Fermented | B151: =Feed!I81 -> 0 | C151: lbs
A152: =Feed!A82 -> Soybean Hulls | B152: =Feed!I82 -> 0 | C152: lbs
A153: =Feed!A83 -> Soy Protein Concentrate | B153: =Feed!I83 -> 0 | C153: lbs
A154: =Feed!A84 -> Soy Protein Isolate | B154: =Feed!I84 -> 0 | C154: lbs
A155: =Feed!A85 -> Sugar Beet Pulp | B155: =Feed!I85 -> 0 | C155: lbs
A156: =Feed!A86 -> Sunflower, Full Fat | B156: =Feed!I86 -> 0 | C156: lbs
A157: =Feed!A87 -> Sunflower Meal, Solvent Extracted | B157: =Feed!I87 -> 0 | C157: lbs
A158: =Feed!A88 -> Sunflower Meal, Dehulled, Solvent Extr | B158: =Feed!I88 -> 0 | C158: lbs
A159: =Feed!A89 -> Triticale | B159: =Feed!I89 -> 0 | C159: lbs
A160: =Feed!A90 -> Wheat, Hard Red | B160: =Feed!I90 -> 0 | C160: lbs
A161: =Feed!A91 -> Wheat, Soft Red | B161: =Feed!I91 -> 0 | C161: lbs
A162: =Feed!A92 -> Wheat Bran | B162: =Feed!I92 -> 0 | C162: lbs
A163: =Feed!A93 -> Wheat Middlings | B163: =Feed!I93 -> 0 | C163: lbs
A164: =Feed!A94 -> Wheat Shorts | B164: =Feed!I94 -> 0 | C164: lbs
A165: =Feed!A95 -> Wheat DDGS | B165: =Feed!I95 -> 0 | C165: lbs
A166: =Feed!A96 -> Yeast, Brewers' Yeast | B166: =Feed!I96 -> 0 | C166: lbs
A167: =Feed!A97 -> Yeast, Single Cell Protein | B167: =Feed!I97 -> 0 | C167: lbs
A168: =Feed!A98 -> Beef Tallow | B168: =Feed!I98 -> 0 | C168: lbs
A169: =Feed!A99 -> Choice White Grease | B169: =Feed!I99 -> 0 | C169: lbs
A170: =Feed!A100 -> Poultry Fat | B170: =Feed!I100 -> 0 | C170: lbs
A171: =Feed!A101 -> Lard | B171: =Feed!I101 -> 0 | C171: lbs
A172: =Feed!A102 -> Restaurant Grease | B172: =Feed!I102 -> 0 | C172: lbs
A173: =Feed!A103 -> Canola oil | B173: =Feed!I103 -> 0 | C173: lbs
A174: =Feed!A104 -> Coconut oil | B174: =Feed!I104 -> 0 | C174: lbs
A175: =Feed!A105 -> Corn oil | B175: =Feed!I105 -> 0 | C175: lbs
A176: =Feed!A106 -> Palm Kernel oil | B176: =Feed!I106 -> 0 | C176: lbs
A177: =Feed!A107 -> Soybean oil | B177: =Feed!I107 -> 0 | C177: lbs
A178: =Feed!A108 -> Soybean Lecithin | B178: =Feed!I108 -> 0 | C178: lbs
A179: =Feed!A109 -> Sunflower oil | B179: =Feed!I109 -> 0 | C179: lbs
A180: =Feed!A110 -> Fat, A/V blend | B180: =Feed!I110 -> 0 | C180: lbs
A181: =Feed!A111 -> Calcium carbonate | B181: =Feed!I111 -> 0 | C181: lbs
A182: =Feed!A112 -> Calcium phosphate (tricalcium) | B182: =Feed!I112 -> 0 | C182: lbs
A183: =Feed!A113 -> Calcium phosphate (dicalcium) | B183: =Feed!I113 -> 0 | C183: lbs
A184: =Feed!A114 -> Calcium phosphate (monocalcium) | B184: =Feed!I114 -> 1.625 | C184: lbs
A185: =Feed!A115 -> Calcium sulfate, dihydrate | B185: =Feed!I115 -> 0 | C185: lbs
A186: =Feed!A116 -> Limestone, ground | B186: =Feed!I116 -> 1.6025 | C186: lbs
A187: =Feed!A117 -> Magnesium phosphate | B187: =Feed!I117 -> 0 | C187: lbs
A188: =Feed!A118 -> Sodium carbonate | B188: =Feed!I118 -> 0 | C188: lbs
A189: =Feed!A119 -> Sodium bicarbonate | B189: =Feed!I119 -> 0 | C189: lbs
A190: =Feed!A120 -> Sodium chloride | B190: =Feed!I120 -> 0.58 | C190: lbs
A191: =Feed!A121 -> Sodium phosphate, monobasic | B191: =Feed!I121 -> 0 | C191: lbs
A192: =Feed!A122 -> Sodium sulfate, decahydrate | B192: =Feed!I122 -> 0 | C192: lbs
A193: =Feed!A123 -> L-Lys-HCL | B193: =Feed!I123 -> 0.1075 | C193: lbs
A194: =Feed!A124 -> DL-Met | B194: =Feed!I124 -> 0.01875 | C194: lbs
A195: =Feed!A125 -> L-Thr | B195: =Feed!I125 -> 0.01875 | C195: lbs
A196: =Feed!A126 -> L-Trp | B196: =Feed!I126 -> 0 | C196: lbs
A197: =Feed!A127 -> L-Val | B197: =Feed!I127 -> 0 | C197: lbs
A198: =Feed!A128 -> L-Ileu | B198: =Feed!I128 -> 0 | C198: lbs
A199: =Feed!A129 -> Methionine hydroxy analog | B199: =Feed!I129 -> 0 | C199: lbs
A200: =Feed!A130 -> Glutamine | B200: =Feed!I130 -> 0 | C200: lbs
A201: =Feed!A131 -> Glutamic acid | B201: =Feed!I131 -> 0 | C201: lbs
A202: =Feed!A132 -> Biolys | B202: =Feed!I132 -> 0 | C202: lbs
A203: =Feed!A133 -> Liquid lysine 60% | B203: =Feed!I133 -> 0 | C203: lbs
A204: =Feed!A134 -> MHA dry | B204: =Feed!I134 -> 0 | C204: lbs
A205: =Feed!A135 -> Ractopamine 9 g/lb | B205: =Feed!I135 -> 0 | C205: lbs
A206: =Feed!A136 -> Phase 2 supplement (PEP2) | B206: =Feed!I136 -> 0 | C206: lbs
A207: =Feed!A137 -> 2007 Starter base mix | B207: =Feed!I137 -> 0 | C207: lbs
A208: =Feed!A138 -> 2007 Grow-finish base mix | B208: =Feed!I138 -> 0 | C208: lbs
A209: =Feed!A139 -> Developer base mix | B209: =Feed!I139 -> 0 | C209: lbs
A210: =Feed!A140 -> 2007 Sow base mix | B210: =Feed!I140 -> 0 | C210: lbs
A211: =Feed!A141 -> Vitamin premix with phytase | B211: =Feed!I141 -> 0.3125 | C211: lbs
A212: =Feed!A142 -> Trace mineral premix | B212: =Feed!I142 -> 0.1875 | C212: lbs
A213: =Feed!A143 -> Sow add pack | B213: =Feed!I143 -> 0.3125 | C213: lbs
A214: =Feed!A144 -> Vitamin premix without phytase | B214: =Feed!I144 -> 0 | C214: lbs
A215: =Feed!A145 -> GF DDGS Base Mix | B215: =Feed!I145 -> 0 | C215: lbs
A216: =Feed!A146 -> GF synthetics Base Mix | B216: =Feed!I146 -> 0 | C216: lbs
A217: =Feed!A147 -> Choline chloride 60% | B217: =Feed!I147 -> 0 | C217: lbs
A218: =Feed!A148 -> Natuphos 600 | B218: =Feed!I148 -> 0 | C218: lbs
A219: =Feed!A149 -> Natuphos 1200 | B219: =Feed!I149 -> 0 | C219: lbs
A220: =Feed!A150 -> Optiphos 2000 | B220: =Feed!I150 -> 0 | C220: lbs
A221: =Feed!A151 -> Phyzyme 1200 | B221: =Feed!I151 -> 0 | C221: lbs
A222: =Feed!A152 -> Phyzyme 5000 | B222: =Feed!I152 -> 0 | C222: lbs
A223: =Feed!A153 -> Ronozyme CT (10,000) | B223: =Feed!I153 -> 0 | C223: lbs
A224: =Feed!A154 -> Ronozyme M (50,000) | B224: =Feed!I154 -> 0 | C224: lbs
A225: =Feed!A155 -> Ronozyme PMX PLT (4625 FYT/g) | B225: =Feed!I155 -> 0 | C225: lbs
A226: =Feed!A156 -> Zinc oxide | B226: =Feed!I156 -> 0 | C226: lbs
A227: =Feed!A157 -> Copper sulfate | B227: =Feed!I157 -> 0 | C227: lbs
A228: =Feed!A158 -> Potassium chloride | B228: =Feed!I158 -> 0 | C228: lbs
A229: =Feed!A159 -> Calcium chloride | B229: =Feed!I159 -> 0 | C229: lbs
A230: =Feed!A160 -> Acidifier | B230: =Feed!I160 -> 0 | C230: lbs
A231: =Feed!A161 -> Vitamin E, 20,000 IU | B231: =Feed!I161 -> 0 | C231: lbs
A232: =Feed!A162 -> Phase 2 supplement D | B232: =Feed!I162 -> 0 | C232: lbs
A233: =Feed!A163 -> DPS 50 | B233: =Feed!I163 -> 0 | C233: lbs
A234: =Feed!A164 -> PEP2+ | B234: =Feed!I164 -> 0 | C234: lbs
A235: =Feed!A165 -> PEP NS | B235: =Feed!I165 -> 0 | C235: lbs
A236: =Feed!A166 -> Natural vitamin E 20,000 IU/lb | B236: =Feed!I166 -> 0 | C236: lbs
A237: =Feed!A167 -> Other ingredient | B237: =Feed!I167 -> 0 | C237: lbs
A238: =Feed!A168 -> Corn DDGS, 10.5% Oil | B238: =Feed!I168 -> 0 | C238: lbs
A239: =Feed!A169 -> Corn DDGS, 7.5% Oil | B239: =Feed!I169 -> 0 | C239: lbs
A240: =Feed!A170 -> Corn DDGS, 4.5% Oil | B240: =Feed!I170 -> 0 | C240: lbs
A241: =Feed!A171 -> Denegard | B241: =Feed!I171 -> 0 | C241: lbs
A242: =Feed!A172 -> CTC 50 | B242: =Feed!I172 -> 0 | C242: lbs
A243: =Feed!A173 -> Bentonite | B243: =Feed!I173 -> 0 | C243: lbs
A244: =Feed!A174 -> Phase 2 supplement (Feb, 2014) | B244: =Feed!I174 -> 0 | C244: lbs
A245: =Feed!A175 -> Other ingredient | B245: =Feed!I175 -> 0
A246: =Feed!A176 -> Other ingredient | B246: =Feed!I176 -> 0
A247: =Feed!A177 -> Other ingredient | B247: =Feed!I177 -> 0
A248: =Feed!A178 -> Other ingredient | B248: =Feed!I178 -> 0
... 21 more rows

Sheet Wean-Finish
A1: KSU Wean-to-Finish Swine Budget | C1: Current Prices | G1: =IF(C1=Prices!B4,TEXT(Prices!B5,"MMM-YYYY"),IF(C1=Prices!D4,TEXT(Prices!D5,"MMM-YYYY"),TEXT(Prices!G5,"MMM-YYYY"))) -> (as of December 1, 2015)
K2: INTERNAL NOTES | L2: Click on "Current Prices" to change to "One Year Out Prices " or "Five Years Out Prices"
A3: Production Efficiency Information | K3: - note ERS COP are not posted for wean-fin (working from BOTH wean-feeder & feeder-fin info to get $/pig values)
A4: Wean-Finish Mortality (%) | B4: 6.88 | K4: production data from NPB/Stadler "2014 U.S. Pork Industry Productivity Analysis"
A5: Wean-Finish Feed to Gain | B5: 2.6 | K5: production data from NPB/Stadler "2014 U.S. Pork Industry Productivity Analysis"
A6: Placement Weight (lbs) | B6: 13.4 | K6: production data from NPB/Stadler "2014 U.S. Pork Industry Productivity Analysis"
A8: Revenue | B8: Price | C8: Unit | E8: Qty | F8: Unit | J8: Total per Year per Pig Sold
A9: Market Hogs | B9: =IF($C$1=Prices!$A$1, Prices!B14, IF($C$1=Prices!$A$2, Prices!D14, IF($C$1=Prices!$A$3, Prices!G14, ""))) -> 40.36 | C9: per cwt | D9: x | E9: 273 | F9: lbs | G9: x | H9: =1-B4/100 -> 0.9312 | I9: = | J9: =B9*(E9/100)*H9 -> 102.6022234 | K9: 274 lbs is from NPB/Stadler 2014 report table 3
A10: Less cost of Weaned Pigs | B10: =IF($C$1=Prices!$A$1, Prices!B15, IF($C$1=Prices!$A$2, Prices!D15, IF($C$1=Prices!$A$3, Prices!G15, ""))) -> 37.15 | C10: per hd | D10: x | E10: 1 | F10: hd | I10: = | J10: =-1*(B10)*E10 -> -37.15
A11: Manure Credit | J11: 4.5 | K11: Per April KSU team meeting; also note ERS COP implies $15.63/pig gain here so our $4.50/hd is conservative
A12: Other revenue | J12: 0
A13: Gross Income | J13: =SUM(J9:J12) -> 69.95222336
A15: Variable Costs
A16: Nursery Feed | B16: =IF($C$1=Prices!$A$1, SUMPRODUCT(Feed!$K$23:$K$174,Prices!$B$41:$B$192), IF($C$1=Prices!$A$2, SUMPRODUCT(Feed!$K$23:$K$174,Prices!$D$41:$D$192), IF($C$1=Prices!$A$3,SUMPRODUCT(Feed!$K$23:$K$174,Prices!$G$41:$G$192), "")))/Feed!K189 -> 0.1363857163 | C16: per lb | D16: x | E16: =1.48*(50.9-B6) -> 55.5 | F16: lbs | I16: = | J16: =(B16*E16) -> 7.569407256 | K16: Worked from April 2015 KSU XL Ration, collapsing down to #s by phase here w/ details in Feed tab and notes below; Also scaling feed lbs given changes to Feed Conversion; Deriving adjusted F/G per Mike on May 6, 2015 to get updated lbs consumed. Schulz' 3/31/15 values are $80.51/pig.
A17: Grow-Finish Feed | B17: =IF($C$1=Prices!$A$1, SUMPRODUCT(Feed!$L$23:$L$174,Prices!$B$41:$B$192), IF($C$1=Prices!$A$2, SUMPRODUCT(Feed!$L$23:$L$174,Prices!$D$41:$D$192), IF($C$1=Prices!$A$3,SUMPRODUCT(Feed!$L$23:$L$174,Prices!$G$41:$G$192), "")))/Feed!L189 -> 0.08931899297 | C17: per lb | D17: x | E17: =IF(B5=2.5,((((E9-274)*0.005+B5)*(E9-B6))-E16),((B5*(E9-B6))-E16)) -> 619.46 | F17: lbs | I17: = | J17: =(B17*E17) -> 55.32954338
A18: Feed Processing | B18: =IF($C$1=Prices!$A$1, Prices!B30, IF($C$1=Prices!$A$2, Prices!D30, IF($C$1=Prices!$A$3,Prices!G30, ""))) -> 17 | C18: per ton | D18: x | E18: =SUM(E16:E17)/2000 -> 0.33748 | F18: ton | I18: = | J18: =B18*E18 -> 5.73716
A19: Labor | B19: 15 | C19: per hour | D19: x | E19: 0.7 | F19: hours | I19: = | J19: =B19*E19 -> 10.5 | K19: Note: Using Schulz's 3/31/15 Iowa St. values (http://www.extension.iastate.edu/agdm/livestock/pdf/b1-21.pdf) of 0.7 hrs/pig
A20: Vet Medicine/Drugs | J20: =3.64*(E9/274)*(B5/2.5) -> 3.771783942 | K20: Note: Using ERS Wean-Feeder & Feeder-Fin values
A21: Marketing, Bedding, and Misc | J21: =1.11*(E9/274)*(B5/2.5) -> 1.150186861 | K21: Note: Using ERS Wean-Feeder & Feeder-Fin values
A22: Utilities, Gas, Fuel, Oil | J22: =4.06*(E9/274)*(B5/2.5) -> 4.206989781 | K22: Note: Using ERS Wean-Feeder & Feeder-Fin values
A23: Machinery, Facility/Equip. Repairs | J23: =1.75*(E9/274)*(B5/2.5) -> 1.813357664 | K23: Note: Using ERS Wean-Feeder & Feeder-Fin values
A24: Other variable costs | J24: 0
A25: Total Variable Costs | J25: =SUM(J16:J24) -> 90.07842889
A27: Fixed Costs
A28: Machinery, Facilities, General Overhead | J28: =16.86+2.62 -> 19.48 | K28: Note: Using ERS Wean-Feeder & Feeder-Fin values
A29: Taxes and Insurance | J29: 1.31 | K29: Note: Using ERS Wean-Feeder & Feeder-Fin values
A30: Legal, Accounting, etc. | J30: 1 | K30: no source
A31: Other fixed costs | J31: 0
A32: Total Fixed Costs | J32: =SUM(J28:J31) -> 21.79 | K32: Schulz's 3/31/15 value is $195.42/litter
A34: Total Costs | J34: =J25+J32 -> 111.8684289 | K34: Cross-check total costs across Far-Fin vs. Far-Wean+Wean-Fin
A35: Income Over Variable Costs | J35: =J13-J25 -> -20.12620553 | K35: =J34+'Farrow-Wean'!K37-'Farrow-Finish'!K40 -> 2.931560701
A36: Income Over Total Costs | J36: =J13-J34 -> -41.91620553
A38: Kansas State University, Department of Agricultural Economics - www.agmanager.info
A39: Publication: AM-FMG-WeanFin | J39: =TEXT(Notes!D2,"MMM. DD, YYYY") -> Dec. 01, 2015
A41: =A1 -> KSU Wean-to-Finish Swine Budget
A82: Kansas State University, Department of Agricultural Economics - www.agmanager.info
A83: =A39 -> Publication: AM-FMG-WeanFin | J83: =J39 -> Dec. 01, 2015
A85: =A41 -> KSU Wean-to-Finish Swine Budget
A86: Budget Assumptions
A88: Feed Ration
A89: Ingredient | B89: Qty | C89: Unit
A90: =Feed!A23 -> Corn, Yellow Dent | B90: =Feed!J23 -> 492.8836823 | C90: lbs
A91: =Feed!A24 -> Corn, Nutridense | B91: =Feed!J24 -> 0 | C91: lbs
A92: =Feed!A25 -> Corn Bran | B92: =Feed!J25 -> 0 | C92: lbs
A93: =Feed!A26 -> Corn DDG | B93: =Feed!J26 -> 0 | C93: lbs
A94: =Feed!A27 -> Corn DDGS, >10% Oil | B94: =Feed!J27 -> 0 | C94: lbs
A95: =Feed!A28 -> Corn DDGS, >6 and <9% Oil | B95: =Feed!J28 -> 0 | C95: lbs
A96: =Feed!A29 -> Corn DDGS, <4% Oil | B96: =Feed!J29 -> 0 | C96: lbs
A97: =Feed!A30 -> Corn HP DDG | B97: =Feed!J30 -> 0 | C97: lbs
A98: =Feed!A31 -> Soybean Meal, Dehull, Sol Extr | B98: =Feed!J31 -> 0 | C98: lbs
A99: =Feed!A32 -> Soybean Meal, Dehulled, Expelled | B99: =Feed!J32 -> 0 | C99: lbs
A100: =Feed!A33 -> Soybean Meal, Solvent Extracted | B100: =Feed!J33 -> 0 | C100: lbs
A101: =Feed!A34 -> Corn Gluten Meal | B101: =Feed!J34 -> 0 | C101: lbs
A102: =Feed!A35 -> Corn Grits, Hominy Feed | B102: =Feed!J35 -> 0 | C102: lbs
A103: =Feed!A36 -> Cotton Seeds, Fullfat | B103: =Feed!J36 -> 0 | C103: lbs
A104: =Feed!A37 -> Cotton Seed Meal | B104: =Feed!J37 -> 0 | C104: lbs
A105: =Feed!A38 -> Feather Meal | B105: =Feed!J38 -> 0 | C105: lbs
A106: =Feed!A39 -> Fish Meal Combined | B106: =Feed!J39 -> 0 | C106: lbs
A107: =Feed!A40 -> Flaxseed | B107: =Feed!J40 -> 0 | C107: lbs
A108: =Feed!A41 -> Flaxseed Meal | B108: =Feed!J41 -> 0 | C108: lbs
A109: =Feed!A42 -> Lupins | B109: =Feed!J42 -> 0 | C109: lbs
A110: =Feed!A43 -> Meat Meal | B110: =Feed!J43 -> 0 | C110: lbs
A111: =Feed!A44 -> Meat and Bone Meal, P >4% | B111: =Feed!J44 -> 0 | C111: lbs
A112: =Feed!A45 -> Milk, Casein | B112: =Feed!J45 -> 0 | C112: lbs
A113: =Feed!A46 -> Milk, Lactose | B113: =Feed!J46 -> 0 | C113: lbs
A114: =Feed!A47 -> Milk, Skim Milk Powder | B114: =Feed!J47 -> 0 | C114: lbs
A115: =Feed!A48 -> Milk, Whey Powder | B115: =Feed!J48 -> 0 | C115: lbs
A116: =Feed!A49 -> Milk, Whey Permeate, 85% lactose | B116: =Feed!J49 -> 0 | C116: lbs
A117: =Feed!A50 -> Milk, Whey Protein Concentrate | B117: =Feed!J50 -> 0 | C117: lbs
A118: =Feed!A51 -> Millet | B118: =Feed!J51 -> 0 | C118: lbs
A119: =Feed!A52 -> Molasses, Sugarbeet | B119: =Feed!J52 -> 0 | C119: lbs
A120: =Feed!A53 -> Molasses, Sugarcane | B120: =Feed!J53 -> 0 | C120: lbs
A121: =Feed!A54 -> Oats | B121: =Feed!J54 -> 0 | C121: lbs
A122: =Feed!A55 -> Oats, Naked | B122: =Feed!J55 -> 0 | C122: lbs
A123: =Feed!A56 -> Oat Groats | B123: =Feed!J56 -> 0 | C123: lbs
A124: =Feed!A57 -> Peanut Meal, Expelled | B124: =Feed!J57 -> 0 | C124: lbs
A125: =Feed!A58 -> Peanut Meal, Extracted | B125: =Feed!J58 -> 0 | C125: lbs
A126: =Feed!A59 -> Peas, Field Peas | B126: =Feed!J59 -> 0 | C126: lbs
A127: =Feed!A60 -> Pea Protein Concentrate | B127: =Feed!J60 -> 0 | C127: lbs
A128: =Feed!A61 -> Potato Protein Concentrate | B128: =Feed!J61 -> 0 | C128: lbs
A129: =Feed!A62 -> Poultry Byproduct | B129: =Feed!J62 -> 0 | C129: lbs
A130: =Feed!A63 -> Rice | B130: =Feed!J63 -> 0 | C130: lbs
A131: =Feed!A64 -> Rice Bran | B131: =Feed!J64 -> 0 | C131: lbs
A132: =Feed!A65 -> Rice Bran, Defatted | B132: =Feed!J65 -> 0 | C132: lbs
A133: =Feed!A66 -> Rice, Broken | B133: =Feed!J66 -> 0 | C133: lbs
A134: =Feed!A67 -> Rye | B134: =Feed!J67 -> 0 | C134: lbs
A135: =Feed!A68 -> Sesame Meal | B135: =Feed!J68 -> 0 | C135: lbs
A136: =Feed!A69 -> Sorghum | B136: =Feed!J69 -> 0 | C136: lbs
A137: =Feed!A70 -> Soybeans, Full Fat | B137: =Feed!J70 -> 0 | C137: lbs
A138: =Feed!A71 -> Soybeans, High Protein, Full Fat | B138: =Feed!J71 -> 0 | C138: lbs
A139: =Feed!A72 -> Soybeans, Low Oligosaccharide, Full Fat | B139: =Feed!J72 -> 0 | C139: lbs
A140: =Feed!A73 -> Soybean Meal, High Protein, Expelled | B140: =Feed!J73 -> 0 | C140: lbs
A141: =Feed!A74 -> Soybean Meal, Low Oligosacch, Expell | B141: =Feed!J74 -> 0 | C141: lbs
A142: =Feed!A75 -> Soybean Meal, Expelled | B142: =Feed!J75 -> 0 | C142: lbs
A143: =Feed!A76 -> Soybean Meal, Dehulled, Expelled | B143: =Feed!J76 -> 0 | C143: lbs
A144: =Feed!A77 -> Soybean Meal, Solvent Extracted | B144: =Feed!J77 -> 0 | C144: lbs
A145: =Feed!A78 -> Soybean Meal, Dehull, Sol Extr | B145: =Feed!J78 -> 125.0988501 | C145: lbs
A146: =Feed!A79 -> Soybean Meal, High Prot, Dehull, Solv Extr | B146: =Feed!J79 -> 0 | C146: lbs
A147: =Feed!A80 -> Soybean Meal, Enzyme Treated | B147: =Feed!J80 -> 0 | C147: lbs
A148: =Feed!A81 -> Soybean Meal, Fermented | B148: =Feed!J81 -> 0 | C148: lbs
A149: =Feed!A82 -> Soybean Hulls | B149: =Feed!J82 -> 0 | C149: lbs
A150: =Feed!A83 -> Soy Protein Concentrate | B150: =Feed!J83 -> 0 | C150: lbs
A151: =Feed!A84 -> Soy Protein Isolate | B151: =Feed!J84 -> 0 | C151: lbs
A152: =Feed!A85 -> Sugar Beet Pulp | B152: =Feed!J85 -> 0 | C152: lbs
A153: =Feed!A86 -> Sunflower, Full Fat | B153: =Feed!J86 -> 0 | C153: lbs
A154: =Feed!A87 -> Sunflower Meal, Solvent Extracted | B154: =Feed!J87 -> 0 | C154: lbs
A155: =Feed!A88 -> Sunflower Meal, Dehulled, Solvent Extr | B155: =Feed!J88 -> 0 | C155: lbs
A156: =Feed!A89 -> Triticale | B156: =Feed!J89 -> 0 | C156: lbs
A157: =Feed!A90 -> Wheat, Hard Red | B157: =Feed!J90 -> 0 | C157: lbs
A158: =Feed!A91 -> Wheat, Soft Red | B158: =Feed!J91 -> 0 | C158: lbs
A159: =Feed!A92 -> Wheat Bran | B159: =Feed!J92 -> 0 | C159: lbs
A160: =Feed!A93 -> Wheat Middlings | B160: =Feed!J93 -> 0 | C160: lbs
A161: =Feed!A94 -> Wheat Shorts | B161: =Feed!J94 -> 0 | C161: lbs
A162: =Feed!A95 -> Wheat DDGS | B162: =Feed!J95 -> 0 | C162: lbs
A163: =Feed!A96 -> Yeast, Brewers' Yeast | B163: =Feed!J96 -> 0 | C163: lbs
A164: =Feed!A97 -> Yeast, Single Cell Protein | B164: =Feed!J97 -> 0 | C164: lbs
A165: =Feed!A98 -> Beef Tallow | B165: =Feed!J98 -> 0 | C165: lbs
A166: =Feed!A99 -> Choice White Grease | B166: =Feed!J99 -> 0 | C166: lbs
A167: =Feed!A100 -> Poultry Fat | B167: =Feed!J100 -> 0 | C167: lbs
A168: =Feed!A101 -> Lard | B168: =Feed!J101 -> 0 | C168: lbs
A169: =Feed!A102 -> Restaurant Grease | B169: =Feed!J102 -> 0 | C169: lbs
A170: =Feed!A103 -> Canola oil | B170: =Feed!J103 -> 0 | C170: lbs
A171: =Feed!A104 -> Coconut oil | B171: =Feed!J104 -> 0 | C171: lbs
A172: =Feed!A105 -> Corn oil | B172: =Feed!J105 -> 0 | C172: lbs
A173: =Feed!A106 -> Palm Kernel oil | B173: =Feed!J106 -> 0 | C173: lbs
A174: =Feed!A107 -> Soybean oil | B174: =Feed!J107 -> 0 | C174: lbs
A175: =Feed!A108 -> Soybean Lecithin | B175: =Feed!J108 -> 0 | C175: lbs
A176: =Feed!A109 -> Sunflower oil | B176: =Feed!J109 -> 0 | C176: lbs
A177: =Feed!A110 -> Fat, A/V blend | B177: =Feed!J110 -> 0 | C177: lbs
A178: =Feed!A111 -> Calcium carbonate | B178: =Feed!J111 -> 0 | C178: lbs
A179: =Feed!A112 -> Calcium phosphate (tricalcium) | B179: =Feed!J112 -> 0 | C179: lbs
A180: =Feed!A113 -> Calcium phosphate (dicalcium) | B180: =Feed!J113 -> 0 | C180: lbs
A181: =Feed!A114 -> Calcium phosphate (monocalcium) | B181: =Feed!J114 -> 2.53071783 | C181: lbs
A182: =Feed!A115 -> Calcium sulfate, dihydrate | B182: =Feed!J115 -> 0 | C182: lbs
A183: =Feed!A116 -> Limestone, ground | B183: =Feed!J116 -> 5.761278 | C183: lbs
A184: =Feed!A117 -> Magnesium phosphate | B184: =Feed!J117 -> 0 | C184: lbs
A185: =Feed!A118 -> Sodium carbonate | B185: =Feed!J118 -> 0 | C185: lbs
A186: =Feed!A119 -> Sodium bicarbonate | B186: =Feed!J119 -> 0 | C186: lbs
A187: =Feed!A120 -> Sodium chloride | B187: =Feed!J120 -> 3.14446 | C187: lbs
A188: =Feed!A121 -> Sodium phosphate, monobasic | B188: =Feed!J121 -> 0 | C188: lbs
A189: =Feed!A122 -> Sodium sulfate, decahydrate | B189: =Feed!J122 -> 0 | C189: lbs
A190: =Feed!A123 -> L-Lys-HCL | B190: =Feed!J123 -> 1.756352634 | C190: lbs
A191: =Feed!A124 -> DL-Met | B191: =Feed!J124 -> 0.1379008814 | C191: lbs
A192: =Feed!A125 -> L-Thr | B192: =Feed!J125 -> 0.4189900224 | C192: lbs
A193: =Feed!A126 -> L-Trp | B193: =Feed!J126 -> 0 | C193: lbs
A194: =Feed!A127 -> L-Val | B194: =Feed!J127 -> 0 | C194: lbs
A195: =Feed!A128 -> L-Ileu | B195: =Feed!J128 -> 0 | C195: lbs
A196: =Feed!A129 -> Methionine hydroxy analog | B196: =Feed!J129 -> 0 | C196: lbs
A197: =Feed!A130 -> Glutamine | B197: =Feed!J130 -> 0 | C197: lbs
A198: =Feed!A131 -> Glutamic acid | B198: =Feed!J131 -> 0 | C198: lbs
A199: =Feed!A132 -> Biolys | B199: =Feed!J132 -> 0 | C199: lbs
A200: =Feed!A133 -> Liquid lysine 60% | B200: =Feed!J133 -> 0 | C200: lbs
A201: =Feed!A134 -> MHA dry | B201: =Feed!J134 -> 0 | C201: lbs
A202: =Feed!A135 -> Ractopamine 9 g/lb | B202: =Feed!J135 -> 0.02178565512 | C202: lbs
A203: =Feed!A136 -> Phase 2 supplement (PEP2) | B203: =Feed!J136 -> 0 | C203: lbs
A204: =Feed!A137 -> 2007 Starter base mix | B204: =Feed!J137 -> 0 | C204: lbs
A205: =Feed!A138 -> 2007 Grow-finish base mix | B205: =Feed!J138 -> 0 | C205: lbs
A206: =Feed!A139 -> Developer base mix | B206: =Feed!J139 -> 0 | C206: lbs
A207: =Feed!A140 -> 2007 Sow base mix | B207: =Feed!J140 -> 0 | C207: lbs
A208: =Feed!A141 -> Vitamin premix with phytase | B208: =Feed!J141 -> 0.7277263299 | C208: lbs
A209: =Feed!A142 -> Trace mineral premix | B209: =Feed!J142 -> 0.6872263299 | C209: lbs
A210: =Feed!A143 -> Sow add pack | B210: =Feed!J143 -> 0 | C210: lbs
A211: =Feed!A144 -> Vitamin premix without phytase | B211: =Feed!J144 -> 0 | C211: lbs
A212: =Feed!A145 -> GF DDGS Base Mix | B212: =Feed!J145 -> 0 | C212: lbs
A213: =Feed!A146 -> GF synthetics Base Mix | B213: =Feed!J146 -> 0 | C213: lbs
A214: =Feed!A147 -> Choline chloride 60% | B214: =Feed!J147 -> 0 | C214: lbs
A215: =Feed!A148 -> Natuphos 600 | B215: =Feed!J148 -> 0 | C215: lbs
A216: =Feed!A149 -> Natuphos 1200 | B216: =Feed!J149 -> 0 | C216: lbs
A217: =Feed!A150 -> Optiphos 2000 | B217: =Feed!J150 -> 0 | C217: lbs
A218: =Feed!A151 -> Phyzyme 1200 | B218: =Feed!J151 -> 0 | C218: lbs
A219: =Feed!A152 -> Phyzyme 5000 | B219: =Feed!J152 -> 0 | C219: lbs
A220: =Feed!A153 -> Ronozyme CT (10,000) | B220: =Feed!J153 -> 0 | C220: lbs
A221: =Feed!A154 -> Ronozyme M (50,000) | B221: =Feed!J154 -> 0 | C221: lbs
A222: =Feed!A155 -> Ronozyme PMX PLT (4625 FYT/g) | B222: =Feed!J155 -> 0.07115495961 | C222: lbs
A223: =Feed!A156 -> Zinc oxide | B223: =Feed!J156 -> 0 | C223: lbs
A224: =Feed!A157 -> Copper sulfate | B224: =Feed!J157 -> 0 | C224: lbs
A225: =Feed!A158 -> Potassium chloride | B225: =Feed!J158 -> 0 | C225: lbs
A226: =Feed!A159 -> Calcium chloride | B226: =Feed!J159 -> 0 | C226: lbs
A227: =Feed!A160 -> Acidifier | B227: =Feed!J160 -> 0 | C227: lbs
A228: =Feed!A161 -> Vitamin E, 20,000 IU | B228: =Feed!J161 -> 0 | C228: lbs
A229: =Feed!A162 -> Phase 2 supplement D | B229: =Feed!J162 -> 0 | C229: lbs
A230: =Feed!A163 -> DPS 50 | B230: =Feed!J163 -> 0 | C230: lbs
A231: =Feed!A164 -> PEP2+ | B231: =Feed!J164 -> 0 | C231: lbs
A232: =Feed!A165 -> PEP NS | B232: =Feed!J165 -> 0 | C232: lbs
A233: =Feed!A166 -> Natural vitamin E 20,000 IU/lb | B233: =Feed!J166 -> 0 | C233: lbs
A234: =Feed!A167 -> Other ingredient | B234: =Feed!J167 -> 0 | C234: lbs
A235: =Feed!A168 -> Corn DDGS, 10.5% Oil | B235: =Feed!J168 -> 0 | C235: lbs
A236: =Feed!A169 -> Corn DDGS, 7.5% Oil | B236: =Feed!J169 -> 5.25 | C236: lbs
A237: =Feed!A170 -> Corn DDGS, 4.5% Oil | B237: =Feed!J170 -> 0 | C237: lbs
A238: =Feed!A171 -> Denegard | B238: =Feed!J171 -> 0.091875 | C238: lbs
A239: =Feed!A172 -> CTC 50 | B239: =Feed!J172 -> 0.21 | C239: lbs
A240: =Feed!A173 -> Bentonite | B240: =Feed!J173 -> 0 | C240: lbs
A241: =Feed!A174 -> Phase 2 supplement (Feb, 2014) | B241: =Feed!J174 -> 2.1 | C241: lbs
A242: =Feed!A175 -> Other ingredient | B242: =Feed!J175 -> 0
A243: =Feed!A176 -> Other ingredient | B243: =Feed!J176 -> 0
A244: =Feed!A177 -> Other ingredient | B244: =Feed!J177 -> 0
A245: =Feed!A178 -> Other ingredient | B245: =Feed!J178 -> 0
A246: =Feed!A179 -> Other ingredient | B246: =Feed!J179 -> 0
A247: =Feed!A180 -> Other ingredient | B247: =Feed!J180 -> 0
A248: =Feed!A181 -> Other ingredient | B248: =Feed!J181 -> 0
... 18 more rows

Sheet Nursery
A1: KSU Nursery Swine Budget | C1: Current Prices | G1: =IF(C1=Prices!B4,TEXT(Prices!B5,"MMM-YYYY"),IF(C1=Prices!D4,TEXT(Prices!D5,"MMM-YYYY"),TEXT(Prices!G5,"MMM-YYYY"))) -> (as of December 1, 2015)
K2: INTERNAL NOTES | L2: Click on "Current Prices" to change to "One Year Out Prices " or "Five Years Out Prices"
A3: Production Efficiency Information
A4: Nursery Mortality (%) | B4: 3.87 | K4: production data from NPB/Stadler "2014 U.S. Pork Industry Productivity Analysis"
A5: Feed to Gain Conversion | B5: 1.48 | K5: production data from NPB/Stadler "2014 U.S. Pork Industry Productivity Analysis"
A6: Entry Weight (lbs) | B6: 13.4 | K6: production data from NPB/Stadler "2014 U.S. Pork Industry Productivity Analysis"
A7: Exit Weight (lbs) | B7: 50.9 | K7: production data from NPB/Stadler "2014 U.S. Pork Industry Productivity Analysis"
A9: Revenue | B9: Price | C9: Unit | E9: Qty | F9: Unit | J9: Total per Year per Pig Sold
A10: Feeder Pigs | B10: =IF($C$1=Prices!$A$1, Prices!B16, IF($C$1=Prices!$A$2, Prices!D16, IF($C$1=Prices!$A$3, Prices!G16, ""))) -> 46.7 | C10: per hd | D10: x | E10: =B7 -> 50.9 | F10: lbs | G10: x | H10: =1-B4/100 -> 0.9613 | I10: = | J10: =B10*H10 -> 44.89271 | K10: 50.9 lbs is from NPB/Stadler 2014 report table 4
A11: Less cost of Weaned Pigs | B11: =IF($C$1=Prices!$A$1, Prices!B15, IF($C$1=Prices!$A$2, Prices!D15, IF($C$1=Prices!$A$3, Prices!G15, ""))) -> 37.15 | C11: per hd | D11: x | E11: 1 | F11: hd | I11: = | J11: =-1*(B11)*E11 -> -37.15
A12: Manure Credit | J12: 0.5 | K12: Per April KSU team meeting; also note ERS COP places $4.44/cwt gain ($1.70/pig) so we are conservative
A13: Other revenue | J13: 0
A14: Gross Income | J14: =SUM(J10:J13) -> 8.24271
A16: Variable Costs
A17: Nursery Feed | B17: =IF($C$1=Prices!$A$1, SUMPRODUCT(Feed!$K$23:$K$174,Prices!$B$41:$B$192), IF($C$1=Prices!$A$2, SUMPRODUCT(Feed!$K$23:$K$174,Prices!$D$41:$D$192), IF($C$1=Prices!$A$3,SUMPRODUCT(Feed!$K$23:$K$174,Prices!$G$41:$G$192), "")))/Feed!K189 -> 0.1363857163 | C17: per lb | D17: x | E17: =IF(B5=1.48,(((B7-50.9)*0.011+B5)*(B7-B6)),(B5*(B7-B6))) -> 55.5 | F17: lbs | I17: = | J17: =(B17*E17) -> 7.569407256 | K17: Worked from April 2015 KSU XL Ration, collapsing down to #s by phase here w/ details in Feed tab and notes below; Also scaling feed lbs given changes to Feed Conversion; Can cross-check w/ ERS COP data also. Schulz' 3/31/15 values are $80.51/pig
A18: Feed Processing | B18: =IF($C$1=Prices!$A$1, Prices!B30, IF($C$1=Prices!$A$2, Prices!D30, IF($C$1=Prices!$A$3,Prices!G30, ""))) -> 17 | C18: per ton | D18: x | E18: =SUM(E17:E17)/2000 -> 0.02775 | F18: ton | I18: = | J18: =B18*E18 -> 0.47175
A19: Labor | B19: 15 | C19: per hour | D19: x | E19: 0.2 | F19: hours | I19: = | J19: =B19*E19 -> 3 | K19: Note: Using Schulz's 3/31/15 Iowa St. values (http://www.extension.iastate.edu/agdm/livestock/pdf/b1-21.pdf) of 0.7 hrs/pig for wean-fin & Stadler has 19% (45) of days in Nursery of 165 wean-finish.
A20: Vet Medicine/Drugs | J20: =2.69*(($B$7-$B$6)/100) -> 1.00875 | K20: Note: Using ERS $2.69/cwt produced value
A21: Marketing, Bedding, and Misc | J21: =(0.07+0.16+0.12)*(($B$7-$B$6)/100) -> 0.13125 | K21: Note: Using ERS $0.35/cwt produced value (Bed&Litter, Mkt,Custom Srv).
A22: Utilities, Gas, Fuel, Oil | J22: =3.36*(($B$7-$B$6)/100) -> 1.26 | K22: Note: Using ERS $3.36/cwt produced values
A23: Machinery, Facility/Equip. Repairs | J23: =1.24*(($B$7-$B$6)/100) -> 0.465 | K23: Note: Using ERS $1.24/cwt produced value
A24: Other variable costs | J24: 0
A25: Total Variable Costs | J25: =SUM(J17:J24) -> 13.90615726
A27: Fixed Costs
A28: Machinery, Facilities, General Overhead | J28: =(9.74+2.35)*(($B$7-$B$6)/100) -> 4.53375 | K28: Note: Using ERS $9.74/cwt produced value for capital recovery of mach. & equipment + $2.35/cwt prod for general farm overhead
A29: Taxes and Insurance | J29: =1.08*(($B$7-$B$6)/100) -> 0.405 | K29: Note: Using ERS $1.08/cwt produced value
A30: Legal, Accounting, etc. | J30: 0.5 | K30: no source
A31: Other fixed costs | J31: 0
A32: Total Fixed Costs | J32: =SUM(J28:J31) -> 5.43875
A34: Total Costs | J34: =J25+J32 -> 19.34490726
A35: Income Over Variable Costs | J35: =J14-J25 -> -5.663447256
A36: Income Over Total Costs | J36: =J14-J34 -> -11.10219726
A38: Kansas State University, Department of Agricultural Economics - www.agmanager.info
A39: Publication: AM-FMG-Nursery | J39: =TEXT(Notes!D2,"MMM. DD, YYYY") -> Dec. 01, 2015
A41: =A1 -> KSU Nursery Swine Budget
A82: Kansas State University, Department of Agricultural Economics - www.agmanager.info
A83: =A39 -> Publication: AM-FMG-Nursery | J83: =J39 -> Dec. 01, 2015
A85: =A41 -> KSU Nursery Swine Budget
A86: Budget Assumptions
A88: Feed Ration
A89: Ingredient | B89: Qty | C89: Unit
A90: =Feed!A23 -> Corn, Yellow Dent | B90: =Feed!F23 -> 28.49171889 | C90: lbs
A91: =Feed!A24 -> Corn, Nutridense | B91: =Feed!F24 -> 0 | C91: lbs
A92: =Feed!A25 -> Corn Bran | B92: =Feed!F25 -> 0 | C92: lbs
A93: =Feed!A26 -> Corn DDG | B93: =Feed!F26 -> 0 | C93: lbs
A94: =Feed!A27 -> Corn DDGS, >10% Oil | B94: =Feed!F27 -> 0 | C94: lbs
A95: =Feed!A28 -> Corn DDGS, >6 and <9% Oil | B95: =Feed!F28 -> 0 | C95: lbs
A96: =Feed!A29 -> Corn DDGS, <4% Oil | B96: =Feed!F29 -> 0 | C96: lbs
A97: =Feed!A30 -> Corn HP DDG | B97: =Feed!F30 -> 0 | C97: lbs
A98: =Feed!A31 -> Soybean Meal, Dehull, Sol Extr | B98: =Feed!F31 -> 0 | C98: lbs
A99: =Feed!A32 -> Soybean Meal, Dehulled, Expelled | B99: =Feed!F32 -> 0 | C99: lbs
A100: =Feed!A33 -> Soybean Meal, Solvent Extracted | B100: =Feed!F33 -> 0 | C100: lbs
A101: =Feed!A34 -> Corn Gluten Meal | B101: =Feed!F34 -> 0 | C101: lbs
A102: =Feed!A35 -> Corn Grits, Hominy Feed | B102: =Feed!F35 -> 0 | C102: lbs
A103: =Feed!A36 -> Cotton Seeds, Fullfat | B103: =Feed!F36 -> 0 | C103: lbs
A104: =Feed!A37 -> Cotton Seed Meal | B104: =Feed!F37 -> 0 | C104: lbs
A105: =Feed!A38 -> Feather Meal | B105: =Feed!F38 -> 0 | C105: lbs
A106: =Feed!A39 -> Fish Meal Combined | B106: =Feed!F39 -> 0 | C106: lbs
A107: =Feed!A40 -> Flaxseed | B107: =Feed!F40 -> 0 | C107: lbs
A108: =Feed!A41 -> Flaxseed Meal | B108: =Feed!F41 -> 0 | C108: lbs
A109: =Feed!A42 -> Lupins | B109: =Feed!F42 -> 0 | C109: lbs
A110: =Feed!A43 -> Meat Meal | B110: =Feed!F43 -> 0 | C110: lbs
A111: =Feed!A44 -> Meat and Bone Meal, P >4% | B111: =Feed!F44 -> 0 | C111: lbs
A112: =Feed!A45 -> Milk, Casein | B112: =Feed!F45 -> 0 | C112: lbs
A113: =Feed!A46 -> Milk, Lactose | B113: =Feed!F46 -> 0 | C113: lbs
A114: =Feed!A47 -> Milk, Skim Milk Powder | B114: =Feed!F47 -> 0 | C114: lbs
A115: =Feed!A48 -> Milk, Whey Powder | B115: =Feed!F48 -> 0 | C115: lbs
A116: =Feed!A49 -> Milk, Whey Permeate, 85% lactose | B116: =Feed!F49 -> 0 | C116: lbs
A117: =Feed!A50 -> Milk, Whey Protein Concentrate | B117: =Feed!F50 -> 0 | C117: lbs
A118: =Feed!A51 -> Millet | B118: =Feed!F51 -> 0 | C118: lbs
A119: =Feed!A52 -> Molasses, Sugarbeet | B119: =Feed!F52 -> 0 | C119: lbs
A120: =Feed!A53 -> Molasses, Sugarcane | B120: =Feed!F53 -> 0 | C120: lbs
A121: =Feed!A54 -> Oats | B121: =Feed!F54 -> 0 | C121: lbs
A122: =Feed!A55 -> Oats, Naked | B122: =Feed!F55 -> 0 | C122: lbs
A123: =Feed!A56 -> Oat Groats | B123: =Feed!F56 -> 0 | C123: lbs
A124: =Feed!A57 -> Peanut Meal, Expelled | B124: =Feed!F57 -> 0 | C124: lbs
A125: =Feed!A58 -> Peanut Meal, Extracted | B125: =Feed!F58 -> 0 | C125: lbs
A126: =Feed!A59 -> Peas, Field Peas | B126: =Feed!F59 -> 0 | C126: lbs
A127: =Feed!A60 -> Pea Protein Concentrate | B127: =Feed!F60 -> 0 | C127: lbs
A128: =Feed!A61 -> Potato Protein Concentrate | B128: =Feed!F61 -> 0 | C128: lbs
A129: =Feed!A62 -> Poultry Byproduct | B129: =Feed!F62 -> 0 | C129: lbs
A130: =Feed!A63 -> Rice | B130: =Feed!F63 -> 0 | C130: lbs
A131: =Feed!A64 -> Rice Bran | B131: =Feed!F64 -> 0 | C131: lbs
A132: =Feed!A65 -> Rice Bran, Defatted | B132: =Feed!F65 -> 0 | C132: lbs
A133: =Feed!A66 -> Rice, Broken | B133: =Feed!F66 -> 0 | C133: lbs
A134: =Feed!A67 -> Rye | B134: =Feed!F67 -> 0 | C134: lbs
A135: =Feed!A68 -> Sesame Meal | B135: =Feed!F68 -> 0 | C135: lbs
A136: =Feed!A69 -> Sorghum | B136: =Feed!F69 -> 0 | C136: lbs
A137: =Feed!A70 -> Soybeans, Full Fat | B137: =Feed!F70 -> 0 | C137: lbs
A138: =Feed!A71 -> Soybeans, High Protein, Full Fat | B138: =Feed!F71 -> 0 | C138: lbs
A139: =Feed!A72 -> Soybeans, Low Oligosaccharide, Full Fat | B139: =Feed!F72 -> 0 | C139: lbs
A140: =Feed!A73 -> Soybean Meal, High Protein, Expelled | B140: =Feed!F73 -> 0 | C140: lbs
A141: =Feed!A74 -> Soybean Meal, Low Oligosacch, Expell | B141: =Feed!F74 -> 0 | C141: lbs
A142: =Feed!A75 -> Soybean Meal, Expelled | B142: =Feed!F75 -> 0 | C142: lbs
A143: =Feed!A76 -> Soybean Meal, Dehulled, Expelled | B143: =Feed!F76 -> 0 | C143: lbs
A144: =Feed!A77 -> Soybean Meal, Solvent Extracted | B144: =Feed!F77 -> 0 | C144: lbs
A145: =Feed!A78 -> Soybean Meal, Dehull, Sol Extr | B145: =Feed!F78 -> 14.95518111 | C145: lbs
A146: =Feed!A79 -> Soybean Meal, High Prot, Dehull, Solv Extr | B146: =Feed!F79 -> 0 | C146: lbs
A147: =Feed!A80 -> Soybean Meal, Enzyme Treated | B147: =Feed!F80 -> 0 | C147: lbs
A148: =Feed!A81 -> Soybean Meal, Fermented | B148: =Feed!F81 -> 0 | C148: lbs
A149: =Feed!A82 -> Soybean Hulls | B149: =Feed!F82 -> 0 | C149: lbs
A150: =Feed!A83 -> Soy Protein Concentrate | B150: =Feed!F83 -> 0 | C150: lbs
A151: =Feed!A84 -> Soy Protein Isolate | B151: =Feed!F84 -> 0 | C151: lbs
A152: =Feed!A85 -> Sugar Beet Pulp | B152: =Feed!F85 -> 0 | C152: lbs
A153: =Feed!A86 -> Sunflower, Full Fat | B153: =Feed!F86 -> 0 | C153: lbs
A154: =Feed!A87 -> Sunflower Meal, Solvent Extracted | B154: =Feed!F87 -> 0 | C154: lbs
A155: =Feed!A88 -> Sunflower Meal, Dehulled, Solvent Extr | B155: =Feed!F88 -> 0 | C155: lbs
A156: =Feed!A89 -> Triticale | B156: =Feed!F89 -> 0 | C156: lbs
A157: =Feed!A90 -> Wheat, Hard Red | B157: =Feed!F90 -> 0 | C157: lbs
A158: =Feed!A91 -> Wheat, Soft Red | B158: =Feed!F91 -> 0 | C158: lbs
A159: =Feed!A92 -> Wheat Bran | B159: =Feed!F92 -> 0 | C159: lbs
A160: =Feed!A93 -> Wheat Middlings | B160: =Feed!F93 -> 0 | C160: lbs
A161: =Feed!A94 -> Wheat Shorts | B161: =Feed!F94 -> 0 | C161: lbs
A162: =Feed!A95 -> Wheat DDGS | B162: =Feed!F95 -> 0 | C162: lbs
A163: =Feed!A96 -> Yeast, Brewers' Yeast | B163: =Feed!F96 -> 0 | C163: lbs
A164: =Feed!A97 -> Yeast, Single Cell Protein | B164: =Feed!F97 -> 0 | C164: lbs
A165: =Feed!A98 -> Beef Tallow | B165: =Feed!F98 -> 0 | C165: lbs
A166: =Feed!A99 -> Choice White Grease | B166: =Feed!F99 -> 0 | C166: lbs
A167: =Feed!A100 -> Poultry Fat | B167: =Feed!F100 -> 0 | C167: lbs
A168: =Feed!A101 -> Lard | B168: =Feed!F101 -> 0 | C168: lbs
A169: =Feed!A102 -> Restaurant Grease | B169: =Feed!F102 -> 0 | C169: lbs
A170: =Feed!A103 -> Canola oil | B170: =Feed!F103 -> 0 | C170: lbs
A171: =Feed!A104 -> Coconut oil | B171: =Feed!F104 -> 0 | C171: lbs
A172: =Feed!A105 -> Corn oil | B172: =Feed!F105 -> 0 | C172: lbs
A173: =Feed!A106 -> Palm Kernel oil | B173: =Feed!F106 -> 0 | C173: lbs
A174: =Feed!A107 -> Soybean oil | B174: =Feed!F107 -> 0 | C174: lbs
A175: =Feed!A108 -> Soybean Lecithin | B175: =Feed!F108 -> 0 | C175: lbs
A176: =Feed!A109 -> Sunflower oil | B176: =Feed!F109 -> 0 | C176: lbs
A177: =Feed!A110 -> Fat, A/V blend | B177: =Feed!F110 -> 0 | C177: lbs
A178: =Feed!A111 -> Calcium carbonate | B178: =Feed!F111 -> 0 | C178: lbs
A179: =Feed!A112 -> Calcium phosphate (tricalcium) | B179: =Feed!F112 -> 0 | C179: lbs
A180: =Feed!A113 -> Calcium phosphate (dicalcium) | B180: =Feed!F113 -> 0 | C180: lbs
A181: =Feed!A114 -> Calcium phosphate (monocalcium) | B181: =Feed!F114 -> 0.324 | C181: lbs
A182: =Feed!A115 -> Calcium sulfate, dihydrate | B182: =Feed!F115 -> 0 | C182: lbs
A183: =Feed!A116 -> Limestone, ground | B183: =Feed!F116 -> 0.46575 | C183: lbs
A184: =Feed!A117 -> Magnesium phosphate | B184: =Feed!F117 -> 0 | C184: lbs
A185: =Feed!A118 -> Sodium carbonate | B185: =Feed!F118 -> 0 | C185: lbs
A186: =Feed!A119 -> Sodium bicarbonate | B186: =Feed!F119 -> 0 | C186: lbs
A187: =Feed!A120 -> Sodium chloride | B187: =Feed!F120 -> 0.2025 | C187: lbs
A188: =Feed!A121 -> Sodium phosphate, monobasic | B188: =Feed!F121 -> 0 | C188: lbs
A189: =Feed!A122 -> Sodium sulfate, decahydrate | B189: =Feed!F122 -> 0 | C189: lbs
A190: =Feed!A123 -> L-Lys-HCL | B190: =Feed!F123 -> 0.168 | C190: lbs
A191: =Feed!A124 -> DL-Met | B191: =Feed!F124 -> 0.034425 | C191: lbs
A192: =Feed!A125 -> L-Thr | B192: =Feed!F125 -> 0.04455 | C192: lbs
A193: =Feed!A126 -> L-Trp | B193: =Feed!F126 -> 0 | C193: lbs
A194: =Feed!A127 -> L-Val | B194: =Feed!F127 -> 0 | C194: lbs
A195: =Feed!A128 -> L-Ileu | B195: =Feed!F128 -> 0 | C195: lbs
A196: =Feed!A129 -> Methionine hydroxy analog | B196: =Feed!F129 -> 0 | C196: lbs
A197: =Feed!A130 -> Glutamine | B197: =Feed!F130 -> 0 | C197: lbs
A198: =Feed!A131 -> Glutamic acid | B198: =Feed!F131 -> 0 | C198: lbs
A199: =Feed!A132 -> Biolys | B199: =Feed!F132 -> 0 | C199: lbs
A200: =Feed!A133 -> Liquid lysine 60% | B200: =Feed!F133 -> 0 | C200: lbs
A201: =Feed!A134 -> MHA dry | B201: =Feed!F134 -> 0 | C201: lbs
A202: =Feed!A135 -> Ractopamine 9 g/lb | B202: =Feed!F135 -> 0 | C202: lbs
A203: =Feed!A136 -> Phase 2 supplement (PEP2) | B203: =Feed!F136 -> 0 | C203: lbs
A204: =Feed!A137 -> 2007 Starter base mix | B204: =Feed!F137 -> 0 | C204: lbs
A205: =Feed!A138 -> 2007 Grow-finish base mix | B205: =Feed!F138 -> 0 | C205: lbs
A206: =Feed!A139 -> Developer base mix | B206: =Feed!F139 -> 0 | C206: lbs
A207: =Feed!A140 -> 2007 Sow base mix | B207: =Feed!F140 -> 0 | C207: lbs
A208: =Feed!A141 -> Vitamin premix with phytase | B208: =Feed!F141 -> 0.10125 | C208: lbs
A209: =Feed!A142 -> Trace mineral premix | B209: =Feed!F142 -> 0.06075 | C209: lbs
A210: =Feed!A143 -> Sow add pack | B210: =Feed!F143 -> 0 | C210: lbs
A211: =Feed!A144 -> Vitamin premix without phytase | B211: =Feed!F144 -> 0 | C211: lbs
A212: =Feed!A145 -> GF DDGS Base Mix | B212: =Feed!F145 -> 0 | C212: lbs
A213: =Feed!A146 -> GF synthetics Base Mix | B213: =Feed!F146 -> 0 | C213: lbs
A214: =Feed!A147 -> Choline chloride 60% | B214: =Feed!F147 -> 0 | C214: lbs
A215: =Feed!A148 -> Natuphos 600 | B215: =Feed!F148 -> 0 | C215: lbs
A216: =Feed!A149 -> Natuphos 1200 | B216: =Feed!F149 -> 0 | C216: lbs
A217: =Feed!A150 -> Optiphos 2000 | B217: =Feed!F150 -> 0 | C217: lbs
A218: =Feed!A151 -> Phyzyme 1200 | B218: =Feed!F151 -> 0 | C218: lbs
A219: =Feed!A152 -> Phyzyme 5000 | B219: =Feed!F152 -> 0 | C219: lbs
A220: =Feed!A153 -> Ronozyme CT (10,000) | B220: =Feed!F153 -> 0 | C220: lbs
A221: =Feed!A154 -> Ronozyme M (50,000) | B221: =Feed!F154 -> 0 | C221: lbs
A222: =Feed!A155 -> Ronozyme PMX PLT (4625 FYT/g) | B222: =Feed!F155 -> 0 | C222: lbs
A223: =Feed!A156 -> Zinc oxide | B223: =Feed!F156 -> 0 | C223: lbs
A224: =Feed!A157 -> Copper sulfate | B224: =Feed!F157 -> 0 | C224: lbs
A225: =Feed!A158 -> Potassium chloride | B225: =Feed!F158 -> 0 | C225: lbs
A226: =Feed!A159 -> Calcium chloride | B226: =Feed!F159 -> 0 | C226: lbs
A227: =Feed!A160 -> Acidifier | B227: =Feed!F160 -> 0 | C227: lbs
A228: =Feed!A161 -> Vitamin E, 20,000 IU | B228: =Feed!F161 -> 0 | C228: lbs
A229: =Feed!A162 -> Phase 2 supplement D | B229: =Feed!F162 -> 0 | C229: lbs
A230: =Feed!A163 -> DPS 50 | B230: =Feed!F163 -> 0 | C230: lbs
A231: =Feed!A164 -> PEP2+ | B231: =Feed!F164 -> 0 | C231: lbs
A232: =Feed!A165 -> PEP NS | B232: =Feed!F165 -> 0 | C232: lbs
A233: =Feed!A166 -> Natural vitamin E 20,000 IU/lb | B233: =Feed!F166 -> 0 | C233: lbs
A234: =Feed!A167 -> Other ingredient | B234: =Feed!F167 -> 0 | C234: lbs
A235: =Feed!A168 -> Corn DDGS, 10.5% Oil | B235: =Feed!F168 -> 0 | C235: lbs
A236: =Feed!A169 -> Corn DDGS, 7.5% Oil | B236: =Feed!F169 -> 5.25 | C236: lbs
A237: =Feed!A170 -> Corn DDGS, 4.5% Oil | B237: =Feed!F170 -> 0 | C237: lbs
A238: =Feed!A171 -> Denegard | B238: =Feed!F171 -> 0.091875 | C238: lbs
A239: =Feed!A172 -> CTC 50 | B239: =Feed!F172 -> 0.21 | C239: lbs
A240: =Feed!A173 -> Bentonite | B240: =Feed!F173 -> 0 | C240: lbs
A241: =Feed!A174 -> Phase 2 supplement (Feb, 2014) | B241: =Feed!F174 -> 2.1 | C241: lbs
A242: =Feed!A175 -> Other ingredient | B242: =Feed!F175 -> 0
A243: =Feed!A176 -> Other ingredient | B243: =Feed!F176 -> 0
A244: =Feed!A177 -> Other ingredient | B244: =Feed!F177 -> 0
A245: =Feed!A178 -> Other ingredient | B245: =Feed!F178 -> 0
A246: =Feed!A179 -> Other ingredient | B246: =Feed!F179 -> 0
A247: =Feed!A180 -> Other ingredient | B247: =Feed!F180 -> 0
A248: =Feed!A181 -> Other ingredient | B248: =Feed!F181 -> 0
... 17 more rows

Sheet Finishing
A1: KSU Finishing Swine Budget | C1: Current Prices | G1: =IF(C1=Prices!B4,TEXT(Prices!B5,"MMM-YYYY"),IF(C1=Prices!D4,TEXT(Prices!D5,"MMM-YYYY"),TEXT(Prices!G5,"MMM-YYYY"))) -> (as of December 1, 2015)
K2: INTERNAL NOTES | L2: Click on "Current Prices" to change to "One Year Out Prices " or "Five Years Out Prices"
A3: Production Efficiency Information
A4: Finisher Mortality (%) | B4: 5.04 | K4: production data from NPB/Stadler "2014 U.S. Pork Industry Productivity Analysis"
A5: Feed to Gain Conversion | B5: 2.66 | K5: production data from NPB/Stadler "2014 U.S. Pork Industry Productivity Analysis"
A6: Entry Weight (lbs) | B6: 50.9 | K6: production data from NPB/Stadler "2014 U.S. Pork Industry Productivity Analysis"
A7: Exit Weight (lbs) | B7: 273 | K7: production data from NPB/Stadler "2014 U.S. Pork Industry Productivity Analysis"
A9: Revenue | B9: Price | C9: Unit | E9: Qty | F9: Unit | J9: Total per Year per Pig Sold
A10: Market Hogs | B10: =IF($C$1=Prices!$A$1, Prices!B14, IF($C$1=Prices!$A$2, Prices!D14, IF($C$1=Prices!$A$3, Prices!G14, ""))) -> 40.36 | C10: per cwt | D10: x | E10: =B7 -> 273 | F10: lbs | G10: x | H10: =1-B4/100 -> 0.9496 | I10: = | J10: =B10*(E10/100)*H10 -> 104.6295869
A11: Less cost of Feeder Pigs | B11: =IF($C$1=Prices!$A$1, Prices!B16, IF($C$1=Prices!$A$2, Prices!D16, IF($C$1=Prices!$A$3, Prices!G16, ""))) -> 46.7 | C11: per hd | I11: = | J11: =-1*B11 -> -46.7
A12: Manure Credit | J12: 4 | K12: Per April KSU team meeting; also note ERS COP places $6.30/cwt gain ($15.70/pig) so we are conservative
A13: Other revenue | J13: 0
A14: Gross Income | J14: =SUM(J10:J13) -> 61.92958688
A16: Variable Costs
A17: Grow-Finish Feed | B17: =IF($C$1=Prices!$A$1, SUMPRODUCT(Feed!$L$23:$L$174,Prices!$B$41:$B$192), IF($C$1=Prices!$A$2, SUMPRODUCT(Feed!$L$23:$L$174,Prices!$D$41:$D$192), IF($C$1=Prices!$A$3,SUMPRODUCT(Feed!$L$23:$L$174,Prices!$G$41:$G$192), "")))/Feed!L189 -> 0.08931899297 | C17: per lb | D17: x | E17: =IF(B5=2.66,(((E10-272.1)*0.005+B5)*(E10-B6)),(B5*(E10-B6))) -> 591.78545 | F17: lbs | I17: = | J17: =(B17*E17) -> 52.85768045 | K17: Worked from April 2015 KSU XL Ration, collapsing down to #s by phase here w/ details in Feed tab and notes below; Also scaling feed lbs given changes to Feed Conversion and Mkt Wt; Deriving adjusted F/G per Mike on May 6, 2015 to get updated lbs consumed. Schulz' 3/31/15 values are $67/pig
A18: Feed Processing | B18: =IF($C$1=Prices!$A$1, Prices!B30, IF($C$1=Prices!$A$2, Prices!D30, IF($C$1=Prices!$A$3,Prices!G30, ""))) -> 17 | C18: per ton | D18: x | E18: =SUM(E17:E17)/2000 -> 0.295892725 | F18: ton | I18: = | J18: =B18*E18 -> 5.030176325
A19: Labor | B19: 15 | C19: per hour | D19: x | E19: 0.2 | F19: hours | I19: = | J19: =B19*E19 -> 3 | K19: Note: Using Schulz's 3/31/15 Iowa St. values (http://www.extension.iastate.edu/agdm/livestock/pdf/b1-21.pdf) of 0.2 hrs/pig
A20: Vet Medicine/Drugs | J20: =1.19*(($B$7-$B$6)/100) -> 2.64299 | K20: Note: Using ERS $1.19/cwt produced value
A21: Marketing, Bedding, and Misc | J21: =(0.02+0.24+0.18)*(($B$7-$B$6)/100) -> 0.97724 | K21: Note: Using ERS $0.44/cwt produced value (Bed&Litter, Mkt,Custom Srv).
A22: Utilities, Gas, Fuel, Oil | J22: =1.27*(($B$7-$B$6)/100) -> 2.82067 | K22: Note: Using ERS $1.27/cwt produced values
A23: Machinery, Facility/Equip. Repairs | J23: =0.58*(($B$7-$B$6)/100) -> 1.28818 | K23: Note: Using ERS $0.58/cwt produced value
A24: Other variable costs | J24: 0
A25: Total Variable Costs | J25: =SUM(J17:J24) -> 68.61693677 | K25: =J25-J11 -> 115.3169368
A27: Fixed Costs
A28: Machinery, Facilities, General Overhead | J28: =(5.97+0.79)*(($B$7-$B$6)/100) -> 15.01396 | K28: Note: Using ERS $5.97/cwt produced value for capital recovery of mach. & equipment + $0.79/cwt prod for general farm overhead
A29: Taxes and Insurance | J29: =0.41*(($B$7-$B$6)/100) -> 0.91061 | K29: Note: Using ERS $0.41/cwt produced value
A30: Legal, Accounting, etc. | J30: 1 | K30: no source
A31: Other fixed costs | J31: 0
A32: Total Fixed Costs | J32: =SUM(J28:J31) -> 16.92457 | K32: Compares to ERS COP data of $9.77/cwt produced (includes labor);
A34: Total Costs | J34: =J25+J32 -> 85.54150677 | K34: =J34-J11 -> 132.2415068
A35: Income Over Variable Costs | J35: =J14-J25 -> -6.687349893
A36: Income Over Total Costs | J36: =J14-J34 -> -23.61191989
A38: Kansas State University, Department of Agricultural Economics - www.agmanager.info
A39: Publication: AM-FMG-FinishingSwine | J39: =TEXT(Notes!D2,"MMM. DD, YYYY") -> Dec. 01, 2015
A41: =A1 -> KSU Finishing Swine Budget
A82: Kansas State University, Department of Agricultural Economics - www.agmanager.info
A83: =A39 -> Publication: AM-FMG-FinishingSwine | J83: =J39 -> Dec. 01, 2015
A85: =A41 -> KSU Finishing Swine Budget
A86: Budget Assumptions
A88: Feed Ration
A89: Ingredient | B89: Qty | C89: Unit
A90: =Feed!A23 -> Corn, Yellow Dent | B90: =Feed!L23 -> 464.3919634 | C90: lbs
A91: =Feed!A24 -> Corn, Nutridense | B91: =Feed!L24 -> 0 | C91: lbs
A92: =Feed!A25 -> Corn Bran | B92: =Feed!L25 -> 0 | C92: lbs
A93: =Feed!A26 -> Corn DDG | B93: =Feed!L26 -> 0 | C93: lbs
A94: =Feed!A27 -> Corn DDGS, >10% Oil | B94: =Feed!L27 -> 0 | C94: lbs
A95: =Feed!A28 -> Corn DDGS, >6 and <9% Oil | B95: =Feed!L28 -> 0 | C95: lbs
A96: =Feed!A29 -> Corn DDGS, <4% Oil | B96: =Feed!L29 -> 0 | C96: lbs
A97: =Feed!A30 -> Corn HP DDG | B97: =Feed!L30 -> 0 | C97: lbs
A98: =Feed!A31 -> Soybean Meal, Dehull, Sol Extr | B98: =Feed!L31 -> 0 | C98: lbs
A99: =Feed!A32 -> Soybean Meal, Dehulled, Expelled | B99: =Feed!L32 -> 0 | C99: lbs
A100: =Feed!A33 -> Soybean Meal, Solvent Extracted | B100: =Feed!L33 -> 0 | C100: lbs
A101: =Feed!A34 -> Corn Gluten Meal | B101: =Feed!L34 -> 0 | C101: lbs
A102: =Feed!A35 -> Corn Grits, Hominy Feed | B102: =Feed!L35 -> 0 | C102: lbs
A103: =Feed!A36 -> Cotton Seeds, Fullfat | B103: =Feed!L36 -> 0 | C103: lbs
A104: =Feed!A37 -> Cotton Seed Meal | B104: =Feed!L37 -> 0 | C104: lbs
A105: =Feed!A38 -> Feather Meal | B105: =Feed!L38 -> 0 | C105: lbs
A106: =Feed!A39 -> Fish Meal Combined | B106: =Feed!L39 -> 0 | C106: lbs
A107: =Feed!A40 -> Flaxseed | B107: =Feed!L40 -> 0 | C107: lbs
A108: =Feed!A41 -> Flaxseed Meal | B108: =Feed!L41 -> 0 | C108: lbs
A109: =Feed!A42 -> Lupins | B109: =Feed!L42 -> 0 | C109: lbs
A110: =Feed!A43 -> Meat Meal | B110: =Feed!L43 -> 0 | C110: lbs
A111: =Feed!A44 -> Meat and Bone Meal, P >4% | B111: =Feed!L44 -> 0 | C111: lbs
A112: =Feed!A45 -> Milk, Casein | B112: =Feed!L45 -> 0 | C112: lbs
A113: =Feed!A46 -> Milk, Lactose | B113: =Feed!L46 -> 0 | C113: lbs
A114: =Feed!A47 -> Milk, Skim Milk Powder | B114: =Feed!L47 -> 0 | C114: lbs
A115: =Feed!A48 -> Milk, Whey Powder | B115: =Feed!L48 -> 0 | C115: lbs
A116: =Feed!A49 -> Milk, Whey Permeate, 85% lactose | B116: =Feed!L49 -> 0 | C116: lbs
A117: =Feed!A50 -> Milk, Whey Protein Concentrate | B117: =Feed!L50 -> 0 | C117: lbs
A118: =Feed!A51 -> Millet | B118: =Feed!L51 -> 0 | C118: lbs
A119: =Feed!A52 -> Molasses, Sugarbeet | B119: =Feed!L52 -> 0 | C119: lbs
A120: =Feed!A53 -> Molasses, Sugarcane | B120: =Feed!L53 -> 0 | C120: lbs
A121: =Feed!A54 -> Oats | B121: =Feed!L54 -> 0 | C121: lbs
A122: =Feed!A55 -> Oats, Naked | B122: =Feed!L55 -> 0 | C122: lbs
A123: =Feed!A56 -> Oat Groats | B123: =Feed!L56 -> 0 | C123: lbs
A124: =Feed!A57 -> Peanut Meal, Expelled | B124: =Feed!L57 -> 0 | C124: lbs
A125: =Feed!A58 -> Peanut Meal, Extracted | B125: =Feed!L58 -> 0 | C125: lbs
A126: =Feed!A59 -> Peas, Field Peas | B126: =Feed!L59 -> 0 | C126: lbs
A127: =Feed!A60 -> Pea Protein Concentrate | B127: =Feed!L60 -> 0 | C127: lbs
A128: =Feed!A61 -> Potato Protein Concentrate | B128: =Feed!L61 -> 0 | C128: lbs
A129: =Feed!A62 -> Poultry Byproduct | B129: =Feed!L62 -> 0 | C129: lbs
A130: =Feed!A63 -> Rice | B130: =Feed!L63 -> 0 | C130: lbs
A131: =Feed!A64 -> Rice Bran | B131: =Feed!L64 -> 0 | C131: lbs
A132: =Feed!A65 -> Rice Bran, Defatted | B132: =Feed!L65 -> 0 | C132: lbs
A133: =Feed!A66 -> Rice, Broken | B133: =Feed!L66 -> 0 | C133: lbs
A134: =Feed!A67 -> Rye | B134: =Feed!L67 -> 0 | C134: lbs
A135: =Feed!A68 -> Sesame Meal | B135: =Feed!L68 -> 0 | C135: lbs
A136: =Feed!A69 -> Sorghum | B136: =Feed!L69 -> 0 | C136: lbs
A137: =Feed!A70 -> Soybeans, Full Fat | B137: =Feed!L70 -> 0 | C137: lbs
A138: =Feed!A71 -> Soybeans, High Protein, Full Fat | B138: =Feed!L71 -> 0 | C138: lbs
A139: =Feed!A72 -> Soybeans, Low Oligosaccharide, Full Fat | B139: =Feed!L72 -> 0 | C139: lbs
A140: =Feed!A73 -> Soybean Meal, High Protein, Expelled | B140: =Feed!L73 -> 0 | C140: lbs
A141: =Feed!A74 -> Soybean Meal, Low Oligosacch, Expell | B141: =Feed!L74 -> 0 | C141: lbs
A142: =Feed!A75 -> Soybean Meal, Expelled | B142: =Feed!L75 -> 0 | C142: lbs
A143: =Feed!A76 -> Soybean Meal, Dehulled, Expelled | B143: =Feed!L76 -> 0 | C143: lbs
A144: =Feed!A77 -> Soybean Meal, Solvent Extracted | B144: =Feed!L77 -> 0 | C144: lbs
A145: =Feed!A78 -> Soybean Meal, Dehull, Sol Extr | B145: =Feed!L78 -> 110.143669 | C145: lbs
A146: =Feed!A79 -> Soybean Meal, High Prot, Dehull, Solv Extr | B146: =Feed!L79 -> 0 | C146: lbs
A147: =Feed!A80 -> Soybean Meal, Enzyme Treated | B147: =Feed!L80 -> 0 | C147: lbs
A148: =Feed!A81 -> Soybean Meal, Fermented | B148: =Feed!L81 -> 0 | C148: lbs
A149: =Feed!A82 -> Soybean Hulls | B149: =Feed!L82 -> 0 | C149: lbs
A150: =Feed!A83 -> Soy Protein Concentrate | B150: =Feed!L83 -> 0 | C150: lbs
A151: =Feed!A84 -> Soy Protein Isolate | B151: =Feed!L84 -> 0 | C151: lbs
A152: =Feed!A85 -> Sugar Beet Pulp | B152: =Feed!L85 -> 0 | C152: lbs
A153: =Feed!A86 -> Sunflower, Full Fat | B153: =Feed!L86 -> 0 | C153: lbs
A154: =Feed!A87 -> Sunflower Meal, Solvent Extracted | B154: =Feed!L87 -> 0 | C154: lbs
A155: =Feed!A88 -> Sunflower Meal, Dehulled, Solvent Extr | B155: =Feed!L88 -> 0 | C155: lbs
A156: =Feed!A89 -> Triticale | B156: =Feed!L89 -> 0 | C156: lbs
A157: =Feed!A90 -> Wheat, Hard Red | B157: =Feed!L90 -> 0 | C157: lbs
A158: =Feed!A91 -> Wheat, Soft Red | B158: =Feed!L91 -> 0 | C158: lbs
A159: =Feed!A92 -> Wheat Bran | B159: =Feed!L92 -> 0 | C159: lbs
A160: =Feed!A93 -> Wheat Middlings | B160: =Feed!L93 -> 0 | C160: lbs
A161: =Feed!A94 -> Wheat Shorts | B161: =Feed!L94 -> 0 | C161: lbs
A162: =Feed!A95 -> Wheat DDGS | B162: =Feed!L95 -> 0 | C162: lbs
A163: =Feed!A96 -> Yeast, Brewers' Yeast | B163: =Feed!L96 -> 0 | C163: lbs
A164: =Feed!A97 -> Yeast, Single Cell Protein | B164: =Feed!L97 -> 0 | C164: lbs
A165: =Feed!A98 -> Beef Tallow | B165: =Feed!L98 -> 0 | C165: lbs
A166: =Feed!A99 -> Choice White Grease | B166: =Feed!L99 -> 0 | C166: lbs
A167: =Feed!A100 -> Poultry Fat | B167: =Feed!L100 -> 0 | C167: lbs
A168: =Feed!A101 -> Lard | B168: =Feed!L101 -> 0 | C168: lbs
A169: =Feed!A102 -> Restaurant Grease | B169: =Feed!L102 -> 0 | C169: lbs
A170: =Feed!A103 -> Canola oil | B170: =Feed!L103 -> 0 | C170: lbs
A171: =Feed!A104 -> Coconut oil | B171: =Feed!L104 -> 0 | C171: lbs
A172: =Feed!A105 -> Corn oil | B172: =Feed!L105 -> 0 | C172: lbs
A173: =Feed!A106 -> Palm Kernel oil | B173: =Feed!L106 -> 0 | C173: lbs
A174: =Feed!A107 -> Soybean oil | B174: =Feed!L107 -> 0 | C174: lbs
A175: =Feed!A108 -> Soybean Lecithin | B175: =Feed!L108 -> 0 | C175: lbs
A176: =Feed!A109 -> Sunflower oil | B176: =Feed!L109 -> 0 | C176: lbs
A177: =Feed!A110 -> Fat, A/V blend | B177: =Feed!L110 -> 0 | C177: lbs
A178: =Feed!A111 -> Calcium carbonate | B178: =Feed!L111 -> 0 | C178: lbs
A179: =Feed!A112 -> Calcium phosphate (tricalcium) | B179: =Feed!L112 -> 0 | C179: lbs
A180: =Feed!A113 -> Calcium phosphate (dicalcium) | B180: =Feed!L113 -> 0 | C180: lbs
A181: =Feed!A114 -> Calcium phosphate (monocalcium) | B181: =Feed!L114 -> 2.20671783 | C181: lbs
A182: =Feed!A115 -> Calcium sulfate, dihydrate | B182: =Feed!L115 -> 0 | C182: lbs
A183: =Feed!A116 -> Limestone, ground | B183: =Feed!L116 -> 5.295528 | C183: lbs
A184: =Feed!A117 -> Magnesium phosphate | B184: =Feed!L117 -> 0 | C184: lbs
A185: =Feed!A118 -> Sodium carbonate | B185: =Feed!L118 -> 0 | C185: lbs
A186: =Feed!A119 -> Sodium bicarbonate | B186: =Feed!L119 -> 0 | C186: lbs
A187: =Feed!A120 -> Sodium chloride | B187: =Feed!L120 -> 2.94196 | C187: lbs
A188: =Feed!A121 -> Sodium phosphate, monobasic | B188: =Feed!L121 -> 0 | C188: lbs
A189: =Feed!A122 -> Sodium sulfate, decahydrate | B189: =Feed!L122 -> 0 | C189: lbs
A190: =Feed!A123 -> L-Lys-HCL | B190: =Feed!L123 -> 1.588352634 | C190: lbs
A191: =Feed!A124 -> DL-Met | B191: =Feed!L124 -> 0.1034758814 | C191: lbs
A192: =Feed!A125 -> L-Thr | B192: =Feed!L125 -> 0.3744400224 | C192: lbs
A193: =Feed!A126 -> L-Trp | B193: =Feed!L126 -> 0 | C193: lbs
A194: =Feed!A127 -> L-Val | B194: =Feed!L127 -> 0 | C194: lbs
A195: =Feed!A128 -> L-Ileu | B195: =Feed!L128 -> 0 | C195: lbs
A196: =Feed!A129 -> Methionine hydroxy analog | B196: =Feed!L129 -> 0 | C196: lbs
A197: =Feed!A130 -> Glutamine | B197: =Feed!L130 -> 0 | C197: lbs
A198: =Feed!A131 -> Glutamic acid | B198: =Feed!L131 -> 0 | C198: lbs
A199: =Feed!A132 -> Biolys | B199: =Feed!L132 -> 0 | C199: lbs
A200: =Feed!A133 -> Liquid lysine 60% | B200: =Feed!L133 -> 0 | C200: lbs
A201: =Feed!A134 -> MHA dry | B201: =Feed!L134 -> 0 | C201: lbs
A202: =Feed!A135 -> Ractopamine 9 g/lb | B202: =Feed!L135 -> 0.02178565512 | C202: lbs
A203: =Feed!A136 -> Phase 2 supplement (PEP2) | B203: =Feed!L136 -> 0 | C203: lbs
A204: =Feed!A137 -> 2007 Starter base mix | B204: =Feed!L137 -> 0 | C204: lbs
A205: =Feed!A138 -> 2007 Grow-finish base mix | B205: =Feed!L138 -> 0 | C205: lbs
A206: =Feed!A139 -> Developer base mix | B206: =Feed!L139 -> 0 | C206: lbs
A207: =Feed!A140 -> 2007 Sow base mix | B207: =Feed!L140 -> 0 | C207: lbs
A208: =Feed!A141 -> Vitamin premix with phytase | B208: =Feed!L141 -> 0.6264763299 | C208: lbs
A209: =Feed!A142 -> Trace mineral premix | B209: =Feed!L142 -> 0.6264763299 | C209: lbs
A210: =Feed!A143 -> Sow add pack | B210: =Feed!L143 -> 0 | C210: lbs
A211: =Feed!A144 -> Vitamin premix without phytase | B211: =Feed!L144 -> 0 | C211: lbs
A212: =Feed!A145 -> GF DDGS Base Mix | B212: =Feed!L145 -> 0 | C212: lbs
A213: =Feed!A146 -> GF synthetics Base Mix | B213: =Feed!L146 -> 0 | C213: lbs
A214: =Feed!A147 -> Choline chloride 60% | B214: =Feed!L147 -> 0 | C214: lbs
A215: =Feed!A148 -> Natuphos 600 | B215: =Feed!L148 -> 0 | C215: lbs
A216: =Feed!A149 -> Natuphos 1200 | B216: =Feed!L149 -> 0 | C216: lbs
A217: =Feed!A150 -> Optiphos 2000 | B217: =Feed!L150 -> 0 | C217: lbs
A218: =Feed!A151 -> Phyzyme 1200 | B218: =Feed!L151 -> 0 | C218: lbs
A219: =Feed!A152 -> Phyzyme 5000 | B219: =Feed!L152 -> 0 | C219: lbs
A220: =Feed!A153 -> Ronozyme CT (10,000) | B220: =Feed!L153 -> 0 | C220: lbs
A221: =Feed!A154 -> Ronozyme M (50,000) | B221: =Feed!L154 -> 0 | C221: lbs
A222: =Feed!A155 -> Ronozyme PMX PLT (4625 FYT/g) | B222: =Feed!L155 -> 0.07115495961 | C222: lbs
A223: =Feed!A156 -> Zinc oxide | B223: =Feed!L156 -> 0 | C223: lbs
A224: =Feed!A157 -> Copper sulfate | B224: =Feed!L157 -> 0 | C224: lbs
A225: =Feed!A158 -> Potassium chloride | B225: =Feed!L158 -> 0 | C225: lbs
A226: =Feed!A159 -> Calcium chloride | B226: =Feed!L159 -> 0 | C226: lbs
A227: =Feed!A160 -> Acidifier | B227: =Feed!L160 -> 0 | C227: lbs
A228: =Feed!A161 -> Vitamin E, 20,000 IU | B228: =Feed!L161 -> 0 | C228: lbs
A229: =Feed!A162 -> Phase 2 supplement D | B229: =Feed!L162 -> 0 | C229: lbs
A230: =Feed!A163 -> DPS 50 | B230: =Feed!L163 -> 0 | C230: lbs
A231: =Feed!A164 -> PEP2+ | B231: =Feed!L164 -> 0 | C231: lbs
A232: =Feed!A165 -> PEP NS | B232: =Feed!L165 -> 0 | C232: lbs
A233: =Feed!A166 -> Natural vitamin E 20,000 IU/lb | B233: =Feed!L166 -> 0 | C233: lbs
A234: =Feed!A167 -> Other ingredient | B234: =Feed!L167 -> 0 | C234: lbs
A235: =Feed!A168 -> Corn DDGS, 10.5% Oil | B235: =Feed!L168 -> 0 | C235: lbs
A236: =Feed!A169 -> Corn DDGS, 7.5% Oil | B236: =Feed!L169 -> 0 | C236: lbs
A237: =Feed!A170 -> Corn DDGS, 4.5% Oil | B237: =Feed!L170 -> 0 | C237: lbs
A238: =Feed!A171 -> Denegard | B238: =Feed!L171 -> 0 | C238: lbs
A239: =Feed!A172 -> CTC 50 | B239: =Feed!L172 -> 0 | C239: lbs
A240: =Feed!A173 -> Bentonite | B240: =Feed!L173 -> 0 | C240: lbs
A241: =Feed!A174 -> Phase 2 supplement (Feb, 2014) | B241: =Feed!L174 -> 0 | C241: lbs
A242: =Feed!A175 -> Other ingredient | B242: =Feed!L175 -> 0
A243: =Feed!A176 -> Other ingredient | B243: =Feed!L176 -> 0
A244: =Feed!A177 -> Other ingredient | B244: =Feed!L177 -> 0
A245: =Feed!A178 -> Other ingredient | B245: =Feed!L178 -> 0
A246: =Feed!A179 -> Other ingredient | B246: =Feed!L179 -> 0
A247: =Feed!A180 -> Other ingredient | B247: =Feed!L180 -> 0
A248: =Feed!A181 -> Other ingredient | B248: =Feed!L181 -> 0
... 17 more rows

Sheet Feed (2)_IDOtherIngValues (hidden)
A1: SWINE RATIONS TO SET FEED COSTS
A3: Ingredient | E3: Usage per pig, lb | H3: Total Useage (lbs per pig) by Production Phase/Type
B4: Price | C4: Unit | E4: Sows | F4: Nursery | G4: GF | H4: Farrow-Finish | I4: Farrow-Wean | J4: Wean-Finish | K4: Nursery | L4: Finish | P4: Currently Used?
A5: Corn | H5: =SUM(E5:G5) -> 0 | I5: =E5 -> 0 | J5: =F5+G5 -> 0 | K5: =F5 -> 0 | L5: =G5 -> 0 | P5: 0
A6: Soybean Meal, Dehull, Sol Extr | H6: 0 | I6: 0 | J6: 0 | K6: 0 | L6: 0 | P6: 0
A7: Corn | H7: 0 | I7: 0 | J7: 0 | K7: 0 | L7: 0 | P7: 0
A8: Milo | H8: 0 | I8: 0 | J8: 0 | K8: 0 | L8: 0 | P8: 0
A9: Alfalfa Meal | H9: 0 | I9: 0 | J9: 0 | K9: 0 | L9: 0 | P9: 0
A10: Bakery Meal | H10: 0 | I10: 0 | J10: 0 | K10: 0 | L10: 0 | P10: 0
A11: Barley | H11: 0 | I11: 0 | J11: 0 | K11: 0 | L11: 0 | P11: 0
A12: Barley, Hulless | H12: 0 | I12: 0 | J12: 0 | K12: 0 | L12: 0 | P12: 0
A13: Beans, Faba | H13: 0 | I13: 0 | J13: 0 | K13: 0 | L13: 0 | P13: 0
A14: Blood Meal | H14: 0 | I14: 0 | J14: 0 | K14: 0 | L14: 0 | P14: 0
A15: Blood Plasma | H15: 0 | I15: 0 | J15: 0 | K15: 0 | L15: 0 | P15: 0
A16: Brewers Grain | H16: 0 | I16: 0 | J16: 0 | K16: 0 | L16: 0 | P16: 0
A17: Canola, Full Fat | H17: 0 | I17: 0 | J17: 0 | K17: 0 | L17: 0 | P17: 0
A18: Canola Meal, Expelled | H18: 0 | I18: 0 | J18: 0 | K18: 0 | L18: 0 | P18: 0
A19: Canola Meal, Solvent Extracted | H19: 0 | I19: 0 | J19: 0 | K19: 0 | L19: 0 | P19: 0
A20: Casava Meal | H20: 0 | I20: 0 | J20: 0 | K20: 0 | L20: 0 | P20: 0
A21: Citrus Pulp | H21: 0 | I21: 0 | J21: 0 | K21: 0 | L21: 0 | P21: 0
A22: Copra Meal | H22: 0 | I22: 0 | J22: 0 | K22: 0 | L22: 0 | P22: 0
A23: Corn, Yellow Dent | B23: 3.73 | C23: $/bu | E23: 97.9293231 | F23: 28.49171889 | G23: 464.3919634 | H23: 590.8130054 | I23: 97.9293231 | J23: 492.8836823 | K23: 28.49171889 | L23: 464.3919634 | P23: =IF(SUM(E23:G222)=0,0,1) -> 1
A24: L-Lys-HCL | B24: 0.909 | C24: $/lb | E24: 0.1075 | F24: 0.168 | G24: 1.588352634 | H24: 1.863852634 | I24: 0.1075 | J24: 1.756352634 | K24: 0.168 | L24: 1.588352634 | P24: 1
A25: Vitamin premix with phytase | B25: 0.677 | C25: $/lb | E25: 0.3125 | F25: 0.10125 | G25: 0.6264763299 | H25: 1.04022633 | I25: 0.3125 | J25: 0.7277263299 | K25: 0.10125 | L25: 0.6264763299 | P25: 1
A26: Trace mineral premix | B26: 0.41 | C26: $/lb | E26: 0.1875 | F26: 0.06075 | G26: 0.6264763299 | H26: 0.8747263299 | I26: 0.1875 | J26: 0.6872263299 | K26: 0.06075 | L26: 0.6264763299 | P26: 1
A27: L-Thr | B27: 3.5102 | C27: $/lb | E27: 0.01875 | F27: 0.04455 | G27: 0.3744400224 | H27: 0.4377400224 | I27: 0.01875 | J27: 0.4189900224 | K27: 0.04455 | L27: 0.3744400224 | P27: 1
A28: DL-Met | B28: 4.359 | C28: $/lb | E28: 0.01875 | F28: 0.034425 | G28: 0.1034758814 | H28: 0.1566508814 | I28: 0.01875 | J28: 0.1379008814 | K28: 0.034425 | L28: 0.1034758814 | P28: 1
A29: Ronozyme PMX PLT (4625 FYT/g) | B29: 0.8332 | C29: $/lb | E29: 0 | F29: 0 | G29: 0.07115495961 | H29: 0.07115495961 | I29: 0 | J29: 0.07115495961 | K29: 0 | L29: 0.07115495961 | P29: 1
A30: Ractopamine 9 g/lb | B30: 37 | C30: $/lb | E30: 0 | F30: 0 | G30: 0.02178565512 | H30: 0.02178565512 | I30: 0 | J30: 0.02178565512 | K30: 0 | L30: 0.02178565512 | P30: 1
A31: Sow add pack | B31: 1.7 | C31: $/lb | E31: 0.3125 | F31: 0 | G31: 0 | H31: 0.3125 | I31: 0.3125 | J31: 0 | K31: 0 | L31: 0 | P31: 1
A32: L-Trp | C32: $/lb | E32: 0 | F32: 0 | G32: 0 | H32: 0 | I32: 0 | J32: 0 | K32: 0 | L32: 0 | P32: 1
A33: L-Val | B33: 7 | C33: $/lb | E33: 0 | F33: 0 | G33: 0 | H33: 0 | I33: 0 | J33: 0 | K33: 0 | L33: 0 | P33: 1
A34: L-Ileu | B34: 7 | C34: $/lb | E34: 0 | F34: 0 | G34: 0 | H34: 0 | I34: 0 | J34: 0 | K34: 0 | L34: 0 | P34: 1
A35: Methionine hydroxy analog | B35: 1.2 | C35: $/lb | E35: 0 | F35: 0 | G35: 0 | H35: 0 | I35: 0 | J35: 0 | K35: 0 | L35: 0 | P35: 1
A36: Glutamine | B36: 0 | C36: $/lb | E36: 0 | F36: 0 | G36: 0 | H36: 0 | I36: 0 | J36: 0 | K36: 0 | L36: 0 | P36: 1
A37: Glutamic acid | B37: 0 | C37: $/lb | E37: 0 | F37: 0 | G37: 0 | H37: =SUM(E37:G37) -> 0 | I37: =E37 -> 0 | J37: =F37+G37 -> 0 | K37: =F37 -> 0 | L37: =G37 -> 0 | P37: 1
A38: Biolys | B38: 0.7 | C38: $/lb | E38: 0 | F38: 0 | G38: 0 | H38: 0 | I38: 0 | J38: 0 | K38: 0 | L38: 0 | P38: 1
A39: Liquid lysine 60% | B39: 0.6 | C39: $/lb | E39: 0 | F39: 0 | G39: 0 | H39: 0 | I39: 0 | J39: 0 | K39: 0 | L39: 0 | P39: 1
A40: MHA dry | B40: 2.2 | C40: $/lb | E40: 0 | F40: 0 | G40: 0 | H40: 0 | I40: 0 | J40: 0 | K40: 0 | L40: 0 | P40: 1
A41: Phase 2 supplement (PEP2) | B41: 0.45 | C41: $/lb | E41: 0 | F41: 0 | G41: 0 | H41: 0 | I41: 0 | J41: 0 | K41: 0 | L41: 0 | P41: 1
A42: 2007 Starter base mix | B42: 0.36 | C42: $/lb | E42: 0 | F42: 0 | G42: 0 | H42: 0 | I42: 0 | J42: 0 | K42: 0 | L42: 0 | P42: 1
A43: 2007 Grow-finish base mix | B43: 0.22 | C43: $/lb | E43: 0 | F43: 0 | G43: 0 | H43: 0 | I43: 0 | J43: 0 | K43: 0 | L43: 0 | P43: 1
A44: Developer base mix | B44: 0.2 | C44: $/lb | E44: 0 | F44: 0 | G44: 0 | H44: 0 | I44: 0 | J44: 0 | K44: 0 | L44: 0 | P44: 1
A45: 2007 Sow base mix | B45: 0.22 | C45: $/lb | E45: 0 | F45: 0 | G45: 0 | H45: 0 | I45: 0 | J45: 0 | K45: 0 | L45: 0 | P45: 1
A46: Natural vitamin E 20,000 IU/lb | B46: 9.4375 | C46: $/lb | E46: 0 | F46: 0 | G46: 0 | H46: 0 | I46: 0 | J46: 0 | K46: 0 | L46: 0 | P46: 1
A47: Denegard | B47: 4.7286 | C47: $/lb | E47: 0 | F47: 0.091875 | G47: 0 | H47: 0.091875 | I47: 0 | J47: 0.091875 | K47: 0.091875 | L47: 0 | P47: 1
A48: CTC 50 | B48: 1.44 | C48: $/lb | E48: 0 | F48: 0.21 | G48: 0 | H48: 0.21 | I48: 0 | J48: 0.21 | K48: 0.21 | L48: 0 | P48: 1
A49: Vitamin premix without phytase | B49: 0.9 | C49: $/lb | E49: 0 | F49: 0 | G49: 0 | H49: 0 | I49: 0 | J49: 0 | K49: 0 | L49: 0 | P49: 1
A50: GF DDGS Base Mix | B50: 0.25 | C50: $/lb | E50: 0 | F50: 0 | G50: 0 | H50: 0 | I50: 0 | J50: 0 | K50: 0 | L50: 0 | P50: 1
A51: GF synthetics Base Mix | B51: 0.3 | C51: $/lb | E51: 0 | F51: 0 | G51: 0 | H51: 0 | I51: 0 | J51: 0 | K51: 0 | L51: 0 | P51: 1
A52: Choline chloride 60% | B52: 0.6 | C52: $/lb | E52: 0 | F52: 0 | G52: 0 | H52: 0 | I52: 0 | J52: 0 | K52: 0 | L52: 0 | P52: 1
A53: Natuphos 600 | B53: 0 | C53: $/lb | E53: 0 | F53: 0 | G53: 0 | H53: 0 | I53: 0 | J53: 0 | K53: 0 | L53: 0 | P53: 1
A54: Natuphos 1200 | B54: 0 | C54: $/lb | E54: 0 | F54: 0 | G54: 0 | H54: 0 | I54: 0 | J54: 0 | K54: 0 | L54: 0 | P54: 1
A55: Optiphos 2000 | B55: 0 | C55: $/lb | E55: 0 | F55: 0 | G55: 0 | H55: 0 | I55: 0 | J55: 0 | K55: 0 | L55: 0 | P55: =IF(SUM(E55:G254)=0,0,1) -> 1
A56: Phyzyme 1200 | B56: 0 | C56: $/lb | E56: 0 | F56: 0 | G56: 0 | H56: 0 | I56: 0 | J56: 0 | K56: 0 | L56: 0 | P56: 1
A57: Phyzyme 5000 | B57: 0 | C57: $/lb | E57: 0 | F57: 0 | G57: 0 | H57: 0 | I57: 0 | J57: 0 | K57: 0 | L57: 0 | P57: 1
A58: Ronozyme CT (10,000) | B58: 0 | C58: $/lb | E58: 0 | F58: 0 | G58: 0 | H58: 0 | I58: 0 | J58: 0 | K58: 0 | L58: 0 | P58: 1
A59: Ronozyme M (50,000) | B59: 0 | C59: $/lb | E59: 0 | F59: 0 | G59: 0 | H59: 0 | I59: 0 | J59: 0 | K59: 0 | L59: 0 | P59: 1
A60: Bentonite | B60: 0.15 | C60: $/lb | E60: 0 | F60: 0 | G60: 0 | H60: 0 | I60: 0 | J60: 0 | K60: 0 | L60: 0 | P60: 1
A61: Zinc oxide | B61: 1.1 | C61: $/lb | E61: 0 | F61: 0 | G61: 0 | H61: 0 | I61: 0 | J61: 0 | K61: 0 | L61: 0 | P61: 1
A62: Copper sulfate | B62: 1.1 | C62: $/lb | E62: 0 | F62: 0 | G62: 0 | H62: 0 | I62: 0 | J62: 0 | K62: 0 | L62: 0 | P62: 1
A63: Potassium chloride | B63: 0.175 | C63: $/lb | E63: 0 | F63: 0 | G63: 0 | H63: 0 | I63: 0 | J63: 0 | K63: 0 | L63: 0 | P63: 1
A64: Calcium chloride | B64: 0.2 | C64: $/lb | E64: 0 | F64: 0 | G64: 0 | H64: 0 | I64: 0 | J64: 0 | K64: 0 | L64: 0 | P64: 1
A65: Acidifier | B65: 1 | C65: $/lb | E65: 0 | F65: 0 | G65: 0 | H65: 0 | I65: 0 | J65: 0 | K65: 0 | L65: 0 | P65: 1
A66: Vitamin E, 20,000 IU | B66: 0.4 | C66: $/lb | E66: 0 | F66: 0 | G66: 0 | H66: 0 | I66: 0 | J66: 0 | K66: 0 | L66: 0 | P66: 1
A67: Phase 2 supplement D | B67: 0.4 | C67: $/lb | E67: 0 | F67: 0 | G67: 0 | H67: 0 | I67: 0 | J67: 0 | K67: 0 | L67: 0 | P67: 1
A68: DPS 50 | B68: 0.5 | C68: $/lb | E68: 0 | F68: 0 | G68: 0 | H68: 0 | I68: 0 | J68: 0 | K68: 0 | L68: 0 | P68: 1
A69: PEP2+ | B69: 0.6 | C69: $/lb | E69: 0 | F69: 0 | G69: 0 | H69: =SUM(E69:G69) -> 0 | I69: =E69 -> 0 | J69: =F69+G69 -> 0 | K69: =F69 -> 0 | L69: =G69 -> 0 | P69: 1
A70: PEP NS | B70: 0.5 | C70: $/lb | E70: 0 | F70: 0 | G70: 0 | H70: 0 | I70: 0 | J70: 0 | K70: 0 | L70: 0 | P70: 1
A71: Phase 2 supplement (Feb, 2014) | B71: 0.7362 | C71: $/lb | E71: 0 | F71: 2.1 | G71: 0 | H71: 2.1 | I71: 0 | J71: 2.1 | K71: 2.1 | L71: 0 | P71: 1
A72: Other ingredient | C72: $/lb | E72: 0 | F72: 0 | G72: 0 | H72: 0 | I72: 0 | J72: 0 | K72: 0 | L72: 0 | P72: 1
A73: Corn DDGS, 10.5% Oil | B73: 0.125 | C73: $/lb | E73: 0 | F73: 0 | G73: 0 | H73: 0 | I73: 0 | J73: 0 | K73: 0 | L73: 0 | P73: 1
A74: Corn DDGS, 4.5% Oil | B74: 0.125 | C74: $/lb | E74: 0 | F74: 0 | G74: 0 | H74: 0 | I74: 0 | J74: 0 | K74: 0 | L74: 0 | P74: 1
A75: Soybean Meal, Dehull, Sol Extr | B75: 363.15 | C75: $/ton | E75: 22.3056769 | F75: 14.95518111 | G75: 110.143669 | H75: 147.404527 | I75: 22.3056769 | J75: 125.0988501 | K75: 14.95518111 | L75: 110.143669 | P75: 1
A76: Limestone, ground | B76: 35.2 | C76: $/ton | E76: 1.6025 | F76: 0.46575 | G76: 5.295528 | H76: 7.363778 | I76: 1.6025 | J76: 5.761278 | K76: 0.46575 | L76: 5.295528 | P76: 1
A77: Sodium chloride | B77: =0.058*2000 -> 116 | C77: $/ton | E77: 0.58 | F77: 0.2025 | G77: 2.94196 | H77: 3.72446 | I77: 0.58 | J77: 3.14446 | K77: 0.2025 | L77: 2.94196 | P77: 1
A78: Calcium phosphate (monocalcium) | B78: 656 | C78: $/ton | E78: 1.625 | F78: 0.324 | G78: 2.20671783 | H78: 4.15571783 | I78: 1.625 | J78: 2.53071783 | K78: 0.324 | L78: 2.20671783 | P78: 1
A79: Soybean Meal, Dehull, Sol Extr | C79: $/ton | E79: 0 | F79: 0 | G79: 0 | H79: 0 | I79: 0 | J79: 0 | K79: 0 | L79: 0 | P79: 1
A80: Corn DDGS, 7.5% Oil | B80: 192 | C80: $/ton | E80: 0 | F80: 5.25 | G80: 0 | H80: 5.25 | I80: 0 | J80: 5.25 | K80: 5.25 | L80: 0 | P80: 1
A81: Complete nursery pellet | B81: 700 | C81: $/ton | E81: 0 | F81: 3 | G81: 0 | H81: 3 | I81: 0 | J81: 3 | K81: 3 | L81: 0 | P81: 1
A82: Corn, Nutridense | B82: 0.048 | E82: 0 | F82: 0 | G82: 0 | H82: 0 | I82: 0 | J82: 0 | K82: 0 | L82: 0 | P82: 1
A83: Corn Bran | E83: 0 | F83: 0 | G83: 0 | H83: 0 | I83: 0 | J83: 0 | K83: 0 | L83: 0 | P83: 1
A84: Corn DDG | E84: 0 | F84: 0 | G84: 0 | H84: 0 | I84: 0 | J84: 0 | K84: 0 | L84: 0 | P84: 1
A85: Corn DDGS, >10% Oil | B85: 0.125 | E85: 0 | F85: 0 | G85: 0 | H85: 0 | I85: 0 | J85: 0 | K85: 0 | L85: 0 | P85: 1
A86: Corn DDGS, >6 and <9% Oil | B86: 0.078 | E86: 0 | F86: 0 | G86: 0 | H86: 0 | I86: 0 | J86: 0 | K86: 0 | L86: 0 | P86: 1
A87: Corn DDGS, <4% Oil | E87: 0 | F87: 0 | G87: 0 | H87: 0 | I87: 0 | J87: 0 | K87: 0 | L87: 0 | P87: =IF(SUM(E87:G286)=0,0,1) -> 1
A88: Corn HP DDG | B88: 0.06 | E88: 0 | F88: 0 | G88: 0 | H88: 0 | I88: 0 | J88: 0 | K88: 0 | L88: 0 | P88: 1
A89: Soybean Meal, Dehulled, Expelled | E89: 0 | F89: 0 | G89: 0 | H89: 0 | I89: 0 | J89: 0 | K89: 0 | L89: 0 | P89: 1
A90: Soybean Meal, Solvent Extracted | E90: 0 | F90: 0 | G90: 0 | H90: 0 | I90: 0 | J90: 0 | K90: 0 | L90: 0 | P90: 1
A91: Corn Gluten Meal | E91: 0 | F91: 0 | G91: 0 | H91: 0 | I91: 0 | J91: 0 | K91: 0 | L91: 0 | P91: 1
A92: Corn Grits, Hominy Feed | B92: 0.045 | E92: 0 | F92: 0 | G92: 0 | H92: 0 | I92: 0 | J92: 0 | K92: 0 | L92: 0 | P92: 1
A93: Cotton Seeds, Fullfat | E93: 0 | F93: 0 | G93: 0 | H93: 0 | I93: 0 | J93: 0 | K93: 0 | L93: 0 | P93: 1
A94: Cotton Seed Meal | E94: 0 | F94: 0 | G94: 0 | H94: 0 | I94: 0 | J94: 0 | K94: 0 | L94: 0 | P94: 1
A95: Feather Meal | E95: 0 | F95: 0 | G95: 0 | H95: 0 | I95: 0 | J95: 0 | K95: 0 | L95: 0 | P95: 1
A96: Fish Meal Combined | B96: 0.7 | E96: 0 | F96: 0 | G96: 0 | H96: 0 | I96: 0 | J96: 0 | K96: 0 | L96: 0 | P96: 1
A97: Flaxseed | E97: 0 | F97: 0 | G97: 0 | H97: 0 | I97: 0 | J97: 0 | K97: 0 | L97: 0 | P97: 1
A98: Flaxseed Meal | E98: 0 | F98: 0 | G98: 0 | H98: 0 | I98: 0 | J98: 0 | K98: 0 | L98: 0 | P98: 1
A99: Lupins | E99: 0 | F99: 0 | G99: 0 | H99: 0 | I99: 0 | J99: 0 | K99: 0 | L99: 0 | P99: 1
A100: Meat Meal | E100: 0 | F100: 0 | G100: 0 | H100: 0 | I100: 0 | J100: 0 | K100: 0 | L100: 0 | P100: 1
A101: Meat and Bone Meal, P >4% | B101: 0.15 | E101: 0 | F101: 0 | G101: 0 | H101: =SUM(E101:G101) -> 0 | I101: =E101 -> 0 | J101: =F101+G101 -> 0 | K101: =F101 -> 0 | L101: =G101 -> 0 | P101: 1
A102: Milk, Casein | E102: 0 | F102: 0 | G102: 0 | H102: 0 | I102: 0 | J102: 0 | K102: 0 | L102: 0 | P102: 1
A103: Milk, Lactose | B103: 0.3 | E103: 0 | F103: 0 | G103: 0 | H103: 0 | I103: 0 | J103: 0 | K103: 0 | L103: 0 | P103: 1
A104: Milk, Skim Milk Powder | B104: 1.2 | E104: 0 | F104: 0 | G104: 0 | H104: 0 | I104: 0 | J104: 0 | K104: 0 | L104: 0 | P104: 1
A105: Milk, Whey Powder | B105: 0.55 | E105: 0 | F105: 0 | G105: 0 | H105: 0 | I105: 0 | J105: 0 | K105: 0 | L105: 0 | P105: 1
A106: Milk, Whey Permeate, 85% lactose | B106: 0.45 | E106: 0 | F106: 0 | G106: 0 | H106: 0 | I106: 0 | J106: 0 | K106: 0 | L106: 0 | P106: 1
A107: Milk, Whey Protein Concentrate | E107: 0 | F107: 0 | G107: 0 | H107: 0 | I107: 0 | J107: 0 | K107: 0 | L107: 0 | P107: 1
A108: Millet | E108: 0 | F108: 0 | G108: 0 | H108: 0 | I108: 0 | J108: 0 | K108: 0 | L108: 0 | P108: 1
A109: Molasses, Sugarbeet | E109: 0 | F109: 0 | G109: 0 | H109: 0 | I109: 0 | J109: 0 | K109: 0 | L109: 0 | P109: 1
A110: Molasses, Sugarcane | E110: 0 | F110: 0 | G110: 0 | H110: 0 | I110: 0 | J110: 0 | K110: 0 | L110: 0 | P110: 1
A111: Oats | E111: 0 | F111: 0 | G111: 0 | H111: 0 | I111: 0 | J111: 0 | K111: 0 | L111: 0 | P111: 1
A112: Oats, Naked | E112: 0 | F112: 0 | G112: 0 | H112: 0 | I112: 0 | J112: 0 | K112: 0 | L112: 0 | P112: 1
A113: Oat Groats | B113: 0.175 | E113: 0 | F113: 0 | G113: 0 | H113: 0 | I113: 0 | J113: 0 | K113: 0 | L113: 0 | P113: 1
A114: Peanut Meal, Expelled | E114: 0 | F114: 0 | G114: 0 | H114: 0 | I114: 0 | J114: 0 | K114: 0 | L114: 0 | P114: 1
A115: Peanut Meal, Extracted | E115: 0 | F115: 0 | G115: 0 | H115: 0 | I115: 0 | J115: 0 | K115: 0 | L115: 0 | P115: 1
A116: Peas, Field Peas | B116: 0.08 | E116: 0 | F116: 0 | G116: 0 | H116: 0 | I116: 0 | J116: 0 | K116: 0 | L116: 0 | P116: 1
A117: Pea Protein Concentrate | E117: 0 | F117: 0 | G117: 0 | H117: 0 | I117: 0 | J117: 0 | K117: 0 | L117: 0 | P117: 1
A118: Potato Protein Concentrate | E118: 0 | F118: 0 | G118: 0 | H118: 0 | I118: 0 | J118: 0 | K118: 0 | L118: 0 | P118: 1
A119: Poultry Byproduct | B119: 0.12 | E119: 0 | F119: 0 | G119: 0 | H119: 0 | I119: 0 | J119: 0 | K119: 0 | L119: 0 | P119: =IF(SUM(E119:G318)=0,0,1) -> 1
A120: Rice | E120: 0 | F120: 0 | G120: 0 | H120: 0 | I120: 0 | J120: 0 | K120: 0 | L120: 0 | P120: 1
A121: Rice Bran | E121: 0 | F121: 0 | G121: 0 | H121: 0 | I121: 0 | J121: 0 | K121: 0 | L121: 0 | P121: 1
A122: Rice Bran, Defatted | E122: 0 | F122: 0 | G122: 0 | H122: 0 | I122: 0 | J122: 0 | K122: 0 | L122: 0 | P122: 1
A123: Rice, Broken | E123: 0 | F123: 0 | G123: 0 | H123: 0 | I123: 0 | J123: 0 | K123: 0 | L123: 0 | P123: 1
A124: Rye | E124: 0 | F124: 0 | G124: 0 | H124: 0 | I124: 0 | J124: 0 | K124: 0 | L124: 0 | P124: 1
A125: Sesame Meal | E125: 0 | F125: 0 | G125: 0 | H125: 0 | I125: 0 | J125: 0 | K125: 0 | L125: 0 | P125: 1
A126: Sorghum | B126: 0.1 | E126: 0 | F126: 0 | G126: 0 | H126: 0 | I126: 0 | J126: 0 | K126: 0 | L126: 0 | P126: 1
A127: Soybeans, Full Fat | B127: 0.2 | E127: 0 | F127: 0 | G127: 0 | H127: 0 | I127: 0 | J127: 0 | K127: 0 | L127: 0 | P127: 1
A128: Soybeans, High Protein, Full Fat | E128: 0 | F128: 0 | G128: 0 | H128: 0 | I128: 0 | J128: 0 | K128: 0 | L128: 0 | P128: 1
A129: Soybeans, Low Oligosaccharide, Full Fat | E129: 0 | F129: 0 | G129: 0 | H129: 0 | I129: 0 | J129: 0 | K129: 0 | L129: 0 | P129: 1
A130: Soybean Meal, High Protein, Expelled | E130: 0 | F130: 0 | G130: 0 | H130: 0 | I130: 0 | J130: 0 | K130: 0 | L130: 0 | P130: 1
A131: Soybean Meal, Low Oligosacch, Expell | E131: 0 | F131: 0 | G131: 0 | H131: 0 | I131: 0 | J131: 0 | K131: 0 | L131: 0 | P131: 1
A132: Soybean Meal, Expelled | E132: 0 | F132: 0 | G132: 0 | H132: 0 | I132: 0 | J132: 0 | K132: 0 | L132: 0 | P132: 1
A133: Soybean Meal, Dehulled, Expelled | B133: 0.175 | E133: 0 | F133: 0 | G133: 0 | H133: =SUM(E133:G133) -> 0 | I133: =E133 -> 0 | J133: =F133+G133 -> 0 | K133: =F133 -> 0 | L133: =G133 -> 0 | P133: 1
A134: Soybean Meal, Solvent Extracted | B134: 0.155 | E134: 0 | F134: 0 | G134: 0 | H134: 0 | I134: 0 | J134: 0 | K134: 0 | L134: 0 | P134: 1
A135: Soybean Meal, High Prot, Dehull, Solv Extr | B135: 0.32 | E135: 0 | F135: 0 | G135: 0 | H135: 0 | I135: 0 | J135: 0 | K135: 0 | L135: 0 | P135: 1
A136: Soybean Meal, Enzyme Treated | B136: 0.02 | E136: 0 | F136: 0 | G136: 0 | H136: 0 | I136: 0 | J136: 0 | K136: 0 | L136: 0 | P136: 1
A137: Soybean Meal, Fermented | B137: 0.035 | E137: 0 | F137: 0 | G137: 0 | H137: 0 | I137: 0 | J137: 0 | K137: 0 | L137: 0 | P137: 1
A138: Soybean Hulls | B138: 0.048 | E138: 0 | F138: 0 | G138: 0 | H138: 0 | I138: 0 | J138: 0 | K138: 0 | L138: 0 | P138: 1
A139: Soy Protein Concentrate | B139: 0.55 | E139: 0 | F139: 0 | G139: 0 | H139: 0 | I139: 0 | J139: 0 | K139: 0 | L139: 0 | P139: 1
A140: Soy Protein Isolate | B140: 0.175 | E140: 0 | F140: 0 | G140: 0 | H140: 0 | I140: 0 | J140: 0 | K140: 0 | L140: 0 | P140: 1
A141: Sugar Beet Pulp | B141: 0.2 | E141: 0 | F141: 0 | G141: 0 | H141: 0 | I141: 0 | J141: 0 | K141: 0 | L141: 0 | P141: 1
A142: Sunflower, Full Fat | B142: 0 | E142: 0 | F142: 0 | G142: 0 | H142: 0 | I142: 0 | J142: 0 | K142: 0 | L142: 0 | P142: 1
A143: Sunflower Meal, Solvent Extracted | B143: 0 | E143: 0 | F143: 0 | G143: 0 | H143: 0 | I143: 0 | J143: 0 | K143: 0 | L143: 0 | P143: 1
A144: Sunflower Meal, Dehulled, Solvent Extr | B144: 0 | E144: 0 | F144: 0 | G144: 0 | H144: 0 | I144: 0 | J144: 0 | K144: 0 | L144: 0 | P144: 1
A145: Triticale | B145: 0 | E145: 0 | F145: 0 | G145: 0 | H145: 0 | I145: 0 | J145: 0 | K145: 0 | L145: 0 | P145: 1
A146: Wheat, Hard Red | B146: 0.06 | E146: 0 | F146: 0 | G146: 0 | H146: 0 | I146: 0 | J146: 0 | K146: 0 | L146: 0 | P146: 1
A147: Wheat, Soft Red | B147: 0.45 | E147: 0 | F147: 0 | G147: 0 | H147: 0 | I147: 0 | J147: 0 | K147: 0 | L147: 0 | P147: 1
A148: Wheat Bran | B148: 0.05 | E148: 0 | F148: 0 | G148: 0 | H148: 0 | I148: 0 | J148: 0 | K148: 0 | L148: 0 | P148: 1
A149: Wheat Middlings | B149: 0.12 | E149: 0 | F149: 0 | G149: 0 | H149: 0 | I149: 0 | J149: 0 | K149: 0 | L149: 0 | P149: 1
A150: Wheat Shorts | B150: 0 | E150: 0 | F150: 0 | G150: 0 | H150: 0 | I150: 0 | J150: 0 | K150: 0 | L150: 0 | P150: 1
A151: Wheat DDGS | B151: 0 | E151: 0 | F151: 0 | G151: 0 | H151: 0 | I151: 0 | J151: 0 | K151: 0 | L151: 0 | P151: =IF(SUM(E151:G350)=0,0,1) -> 1
A152: Yeast, Brewers' Yeast | B152: 0 | E152: 0 | F152: 0 | G152: 0 | H152: 0 | I152: 0 | J152: 0 | K152: 0 | L152: 0 | P152: 1
A153: Yeast, Single Cell Protein | B153: 0 | E153: 0 | F153: 0 | G153: 0 | H153: 0 | I153: 0 | J153: 0 | K153: 0 | L153: 0 | P153: 1
A154: Beef Tallow | B154: 0.4 | E154: 0 | F154: 0 | G154: 0 | H154: 0 | I154: 0 | J154: 0 | K154: 0 | L154: 0 | P154: 1
A155: Choice White Grease | B155: 0.42 | E155: 0 | F155: 0 | G155: 0 | H155: 0 | I155: 0 | J155: 0 | K155: 0 | L155: 0 | P155: 1
A156: Poultry Fat | B156: 2.7 | E156: 0 | F156: 0 | G156: 0 | H156: 0 | I156: 0 | J156: 0 | K156: 0 | L156: 0 | P156: 1
A157: Lard | B157: 1.25 | E157: 0 | F157: 0 | G157: 0 | H157: 0 | I157: 0 | J157: 0 | K157: 0 | L157: 0 | P157: 1
A158: Restaurant Grease | B158: 0.38 | E158: 0 | F158: 0 | G158: 0 | H158: 0 | I158: 0 | J158: 0 | K158: 0 | L158: 0 | P158: 1
A159: Canola oil | B159: 1.2 | E159: 0 | F159: 0 | G159: 0 | H159: 0 | I159: 0 | J159: 0 | K159: 0 | L159: 0 | P159: 1
A160: Coconut oil | B160: 7 | E160: 0 | F160: 0 | G160: 0 | H160: 0 | I160: 0 | J160: 0 | K160: 0 | L160: 0 | P160: 1
A161: Corn oil | B161: 7 | E161: 0 | F161: 0 | G161: 0 | H161: 0 | I161: 0 | J161: 0 | K161: 0 | L161: 0 | P161: 1
A162: Palm Kernel oil | B162: 0 | E162: 0 | F162: 0 | G162: 0 | H162: 0 | I162: 0 | J162: 0 | K162: 0 | L162: 0 | P162: 1
A163: Soybean oil | B163: 0.38 | E163: 0 | F163: 0 | G163: 0 | H163: 0 | I163: 0 | J163: 0 | K163: 0 | L163: 0 | P163: 1
A164: Soybean Lecithin | B164: 0.7 | E164: 0 | F164: 0 | G164: 0 | H164: 0 | I164: 0 | J164: 0 | K164: 0 | L164: 0 | P164: 1
A165: Sunflower oil | B165: 0.6 | E165: 0 | F165: 0 | G165: 0 | H165: =SUM(E165:G165) -> 0 | I165: =E165 -> 0 | J165: =F165+G165 -> 0 | K165: =F165 -> 0 | L165: =G165 -> 0 | P165: 1
A166: Fat, A/V blend | B166: 2.2 | E166: 0 | F166: 0 | G166: 0 | H166: 0 | I166: 0 | J166: 0 | K166: 0 | L166: 0 | P166: 1
A167: Calcium carbonate | B167: 0 | E167: 0 | F167: 0 | G167: 0 | H167: 0 | I167: 0 | J167: 0 | K167: 0 | L167: 0 | P167: 1
A168: Calcium phosphate (tricalcium) | B168: 0 | E168: 0 | F168: 0 | G168: 0 | H168: 0 | I168: 0 | J168: 0 | K168: 0 | L168: 0 | P168: 1
A169: Calcium phosphate (dicalcium) | B169: 0.3 | E169: 0 | F169: 0 | G169: 0 | H169: 0 | I169: 0 | J169: 0 | K169: 0 | L169: 0 | P169: 1
A170: Calcium sulfate, dihydrate | B170: 0 | E170: 0 | F170: 0 | G170: 0 | H170: 0 | I170: 0 | J170: 0 | K170: 0 | L170: 0 | P170: 1
A171: Magnesium phosphate | B171: 0 | E171: 0 | F171: 0 | G171: 0 | H171: 0 | I171: 0 | J171: 0 | K171: 0 | L171: 0 | P171: 1
A172: Sodium carbonate | B172: 0 | E172: 0 | F172: 0 | G172: 0 | H172: 0 | I172: 0 | J172: 0 | K172: 0 | L172: 0 | P172: 1
A173: Sodium bicarbonate | B173: 0 | E173: 0 | F173: 0 | G173: 0 | H173: 0 | I173: 0 | J173: 0 | K173: 0 | L173: 0 | P173: 1
A174: Sodium phosphate, monobasic | B174: 0 | E174: 0 | F174: 0 | G174: 0 | H174: 0 | I174: 0 | J174: 0 | K174: 0 | L174: 0 | P174: 1
A175: Sodium sulfate, decahydrate | B175: 32 | E175: 0 | F175: 0 | G175: 0 | H175: 0 | I175: 0 | J175: 0 | K175: 0 | L175: 0 | P175: 1
A176: Other ingredient | E176: 0 | F176: 0 | G176: 0 | H176: 0 | I176: 0 | J176: 0 | K176: 0 | L176: 0 | P176: 1
A177: Other ingredient | E177: 0 | F177: 0 | G177: 0 | H177: 0 | I177: 0 | J177: 0 | K177: 0 | L177: 0 | P177: 1
A178: Other ingredient | E178: 0 | F178: 0 | G178: 0 | H178: 0 | I178: 0 | J178: 0 | K178: 0 | L178: 0 | P178: 1
A179: Other ingredient | E179: 0 | F179: 0 | G179: 0 | H179: 0 | I179: 0 | J179: 0 | K179: 0 | L179: 0 | P179: 1
A180: Other ingredient | E180: 0 | F180: 0 | G180: 0 | H180: 0 | I180: 0 | J180: 0 | K180: 0 | L180: 0 | P180: 1
A181: Other ingredient | E181: 0 | F181: 0 | G181: 0 | H181: 0 | I181: 0 | J181: 0 | K181: 0 | L181: 0 | P181: 1
A182: Other ingredient | E182: 0 | F182: 0 | G182: 0 | H182: 0 | I182: 0 | J182: 0 | K182: 0 | L182: 0 | P182: 1
A183: Other ingredient | E183: 0 | F183: 0 | G183: 0 | H183: 0 | I183: 0 | J183: 0 | K183: 0 | L183: 0 | P183: =IF(SUM(E183:G382)=0,0,1) -> 1
A184: Other ingredient | E184: 0 | F184: 0 | G184: 0 | H184: 0 | I184: 0 | J184: 0 | K184: 0 | L184: 0 | P184: 1
A185: Other ingredient | E185: 0 | F185: 0 | G185: 0 | H185: 0 | I185: 0 | J185: 0 | K185: 0 | L185: 0 | P185: 1
A186: Other ingredient | E186: 0 | F186: 0 | G186: 0 | H186: 0 | I186: 0 | J186: 0 | K186: 0 | L186: 0 | P186: 1
A187: Other ingredient | B187: 0 | E187: 0 | F187: 0 | G187: 0 | H187: 0 | I187: 0 | J187: 0 | K187: 0 | L187: 0 | P187: 1
H188: 0 | I188: 0 | J188: 0 | K188: 0 | L188: 0 | P188: 1
E189: =SUM(E23:E188) -> 125 | F189: =SUM(F23:F188) -> 55.5 | G189: 588.392 | H189: =SUM(H23:H188) -> 768.892 | I189: =SUM(I23:I188) -> 125 | J189: 643.892 | K189: 55.5 | L189: 588.392
H192: =H193+H194 -> 25.42446764 | I192: =I193+I194 -> 4.765 | J192: 20.65946764 | K192: 6.8031 | L192: 13.85636764
C193: $/lb | H193: =SUM(H24:H71) -> 7.180511812 | I193: =SUM(I24:I71) -> 0.9575 | J193: 6.223011812 | K193: 2.81085 | L193: 3.412161812
C194: $/ton | H194: =SUM(H76:H78)+H81 -> 18.24395583 | I194: =SUM(I76:I78)+I81 -> 3.8075 | J194: 14.43645583 | K194: 3.99225 | L194: 10.44420583
H195: =SUMPRODUCT($B$24:$B$71,H24:H71)/H193 -> 1.205481613 | I195: =SUMPRODUCT($B$24:$B$71,I24:I71)/I193 -> 1.112221932 | J195: 1.219830958 | K195: 1.008756732 | L195: 1.393708406
H196: =(SUMPRODUCT($B$76:$B$78,H76:H78)+$B$81*H81)/2000/H194 -> 0.151211538 | I196: =(SUMPRODUCT($B$76:$B$78,I76:I78)+$B$81*I81)/2000/I194 -> 0.1562295469 | J196: 0.1498880782 | K196: 0.2946243847 | L196: 0.09456328582
C197: $/lb: | H197: =SUMPRODUCT(H195:H196,H193:H194)/H192 -> 0.448964035 | I197: =SUMPRODUCT(I195:I196,I193:I194)/I192 -> 0.3483308499 | J197: =SUMPRODUCT(J195:J196,J193:J194)/J192 -> 0.4721745618 | K197: 0.5896838294 | L197: 0.4144807044
